{"text_format":"1","workbook":"xlsx","n_sheets":6,"sheets":["Budget Assumptions","Assumptions","Budget Detail","Budget Summary","Master COA","Lookups"],"not_rendered":{"charts":0,"images":0,"macros":1,"external_links":0,"defined_names":118,"comments":0,"pivot_tables":0},"unopened":[],"bounds":{"document_bytes":16777216,"sheet_cells":100000,"rows_first":2000,"rows_last":500,"rows_between":2000,"halvings":0,"cell_chars":16384,"cell_head_chars":4096},"cells_cut":0,"cells_raw":0,"read":"whole","date_system":"1900"}

{"sheet":"Budget Assumptions","index":0,"n_rows":100,"n_cols":11,"rows_kept":100,"cut":false,"hidden":true,"merged":[[9,10,13,10],[33,10,34,10],[37,10,38,10],[9,6,13,6],[9,9,13,9],[33,6,34,6],[33,9,34,9],[33,7,34,7],[37,7,38,7],[9,8,13,8],[33,8,34,8],[37,8,38,8],[37,6,38,6],[37,9,38,9],[9,7,13,7],[84,2,84,3],[86,1,86,2],[87,2,87,3],[90,2,90,3],[2,2,2,3],[3,2,3,3],[4,2,4,3],[5,2,5,3],[78,2,78,3],[79,2,79,3],[80,2,80,3],[81,2,81,3],[82,2,82,3],[83,2,83,3],[72,2,72,3],[73,2,73,3],[74,2,74,3],[75,2,75,3],[76,2,76,3],[77,2,77,3],[66,2,66,3],[67,2,67,3],[68,2,68,3],[69,2,69,3],[70,2,70,3],[71,2,71,3],[65,2,65,3],[54,1,54,3],[55,2,55,3],[56,2,56,3],[57,2,57,3],[58,2,58,3],[59,2,59,3],[60,2,60,3],[61,2,61,3],[62,2,62,3],[63,2,63,3],[64,2,64,3],[52,2,52,3],[28,1,28,2],[32,2,32,3],[33,2,34,3],[36,2,36,3],[37,2,38,3],[41,2,41,3],[43,1,43,2],[44,2,44,3],[45,2,45,3],[47,2,47,3],[49,2,49,3],[26,2,26,3],[9,1,13,1],[9,2,13,3],[14,2,14,3],[1,1,1,3],[6,2,6,3],[7,2,7,3],[8,2,8,3],[15,2,15,3],[16,2,16,3],[18,1,18,2],[22,2,22,3],[23,2,23,3]]}
[null,null,null,null,null,null,"","","","",""]
[null,"Programme Information:",null,null,null,null,"Data Type","Number Format","Reject if Blank?","Note/Validation","Note/Validation 2"]
[null,"Version Template",{"$f":"IF(ISBLANK(Version_Number), \"\", TEXT(Version_Number, H3))","v":"5.16 20210621 1900"},null,null,null,"Text (or Numeric)","@","","Required (REJECT if blank) CONFIRM NUMBER OR TEXT? (Date/time is after version)",""]
[null,"Budget Version",{"$f":"IF(ISBLANK(GenBudgetVersion), \"\", TEXT(GenBudgetVersion, H4))","v":""},null,null,null,"Numeric","0","","",""]
[null,"Budget Region",{"$f":"IF(ISBLANK(DefaultRegion), \"\", TEXT(DefaultRegion, H5))","v":"UK"},null,null,null,"Text","@","Y","",""]
[null,"Default Currency",{"$f":"IF(ISBLANK(DefaultCurrency), \"\", TEXT(DefaultCurrency, H6))","v":"GBP"},null,null,null,"Text","@","Y","DOUG - IF THIS FIELD IS BLANK, NULL OUT CURRENCY EXPRESSION IN COLUMN L ",""]
[null,"Network",{"$f":"IF(ISBLANK(GenNetwork), \"\", TEXT(GenNetwork, H7))","v":""},null,null,null,"Text","@","","",""]
[null,"Production Company",{"$f":"IF(ISBLANK(GenProdCo), \"\", TEXT(GenProdCo, H8))","v":""},null,null,null,"Text","@","","",""]
[null,"Programme Title",{"$f":"IF(ISBLANK(GenProgTitle), \"\", TEXT(GenProgTitle, H9))","v":""},null,null,null,"Text","@","Y","",""]
[null,"Programme\nDescription",{"$f":"IF(ISBLANK(GenProgDescription), \"\", TEXT(GenProgDescription, H10))","v":""},null,null,null,"Text","@","","",""]
[]
[]
[]
[]
[null,"Order",{"$f":"IF(ISBLANK(GenProgOrder), \"\", TEXT(GenProgOrder, H15))","v":""},null,null,null,"Text","@","Y","",""]
[null,"Co-Production (Y/N)",{"$f":"IF(ISBLANK(GenProdType), \"\", IF(GenProdType=\"Co-Production\", \"Y\", \"N\"))","v":""},null,null,null,"Y/N","","","Y or N Required",""]
[null,"Country",{"$f":"IF(ISBLANK(GenCountry), \"\", TEXT(GenCountry, H17))","v":""},null,null,null,"Text","@","","",""]
[null,null,null,null,null,null,"","","","",""]
[null,"Financial Summary:",null,"Currency",null,null,"","","","",""]
[null,"Budget",{"$f":"IF(ISBLANK(GenBudget), \"\", TEXT(GenBudget, H20))","v":"0.0000"},{"$f":"IF(ISBLANK(GenBudgetCurrency), \"\", GenBudgetCurrency)","v":"GBP"},null,null,"Currency","0.0000","Y","4 decimals, rounded",""]
[null,"Budget Discount(s)",{"$f":"IF(ISBLANK(GenBudgetDiscounts), \"\", TEXT(GenBudgetDiscounts, H21))","v":"0.0000"},{"$f":"IF(ISBLANK(GenBudgetDiscountsCurrency), \"\", GenBudgetDiscountsCurrency)","v":"GBP"},null,null,"Currency","0.0000","Y","",""]
[null,"Budget Total (Minus Discounts)",{"$f":"IF(ISBLANK(GenBudgetTotal), \"\", TEXT(GenBudgetTotal, H22))","v":"0.0000"},{"$f":"IF(ISBLANK(GenBudgetTotalCurrency), \"\", GenBudgetTotalCurrency)","v":"GBP"},null,null,"Currency","0.0000","Y","",""]
[null,"Episodes",{"$f":"IF(ISBLANK(GenNumberOfEps), \"\", TEXT(GenNumberOfEps, H23))","v":""},null,null,null,"Numeric","0","Y","Full Number Only",""]
[null,"Hours",{"$f":"IF(ISBLANK(GenNumberOfHours), \"\", TEXT(GenNumberOfHours, H24))","v":""},null,null,null,"Numeric","0.00","Y","2 decimals only",""]
[null,"Cost Per Episode",{"$f":"IF(ISBLANK(GenCostPerEp), \"\", TEXT(GenCostPerEp, H25))","v":"0.0000"},{"$f":"IF(ISBLANK(GenCostPerEpCurrency), \"\", GenCostPerEpCurrency)","v":"GBP"},null,null,"Currency","0.0000","","",""]
[null,"Cost Per Hour",{"$f":"IF(ISBLANK(GenCostPerHour), \"\", TEXT(GenCostPerHour, H26))","v":"0.0000"},{"$f":"IF(ISBLANK(GenCostPerHourCurrency), \"\", GenCostPerHourCurrency)","v":"GBP"},null,null,"Currency","0.0000","","",""]
[null,"Currency Assumptions",{"$f":"IF(ISBLANK(GenCurrencyAssumptions), \"\", TEXT(GenCurrencyAssumptions, H27))","v":"2021 Rate"},null,null,null,"Text","@","","",""]
[null,null,null,null,null,null,"","","","",""]
[null,"Financial Breakdown:",null,"Currency",null,null,"","","","",""]
[null,"Contracted Paid Development",{"$f":"IF(ISBLANK(GenFinContractedPaidDev), \"\", TEXT(GenFinContractedPaidDev, H30))","v":""},{"$f":"IF(ISBLANK(GenFinContractedPaidDevCurrency), \"\", GenFinContractedPaidDevCurrency)","v":"GBP"},null,null,"Currency","0.0000","","4 decimals, rounded",""]
[null,"Main Talent/Host Cost Per Episode",{"$f":"IF(ISBLANK(GenFinMainTalentCostPerEp), \"\", TEXT(GenFinMainTalentCostPerEp, H31))","v":""},{"$f":"IF(ISBLANK(GenFinMainTalentCostPerEpCurrency), \"\", GenFinMainTalentCostPerEpCurrency)","v":"GBP"},null,null,"Currency","0.0000","","4 decimals, rounded",""]
[null,"Production Fee",{"$f":"IF(ISBLANK(GenFinProductionFee), \"\", TEXT(GenFinProductionFee, H32))","v":"0.0000"},{"$f":"IF(ISBLANK(GenFinProductionFeeCurrency), \"\", GenFinProductionFeeCurrency)","v":"GBP"},null,null,"Currency","0.0000","","4 decimals, rounded",""]
[null,"Production Fee %",{"$f":"IF(ISBLANK(GenFinProdFeePercentage), \"\", TEXT(GenFinProdFeePercentage, H33))","v":""},null,null,null,"Percentage","0.0000","","2 decimals only",""]
[null,"Production Fee Exclusions",{"$f":"IF(ISBLANK(GenFinProdFeeExclusions), \"\", TEXT(GenFinProdFeeExclusions, H34))","v":""},null,null,null,"Text","@","","",""]
[null,"For example: Talent  "]
[null,"Package Fee",{"$f":"IF(ISBLANK(GenFinPackageFee), \"\", TEXT(GenFinPackageFee, H36))","v":"0.0000"},{"$f":"IF(ISBLANK(GenFinPackageFeeCurrency), \"\", GenFinPackageFeeCurrency)","v":"GBP"},null,null,"Currency","0.0000","","",""]
[null,"Package Fee %",{"$f":"IF(ISBLANK(GenFinPackageFeePercentage), \"\", TEXT(GenFinPackageFeePercentage, H37))","v":""},null,null,null,"Percentage","0.0000","","2 decimals only",""]
[null,"Package Fee Exclusions",{"$f":"IF(ISBLANK(GenFinPackageFeeExclusions), \"\", TEXT(GenFinPackageFeeExclusions, H38))","v":""},null,null,null,"Text","@","","",""]
[null,"For example: Talent  "]
[null,"One Time Fees",{"$f":"IF(ISBLANK(GenFinOneTimeFees), \"\", TEXT(GenFinOneTimeFees, H40))","v":""},{"$f":"IF(ISBLANK(GenFinOneTimeFeesCurrency), \"\", GenFinOneTimeFeesCurrency)","v":"GBP"},null,null,"Currency","0.0000","","",""]
[null,"Format Fee",{"$f":"IF(ISBLANK(GenFinFormatFee), \"\", TEXT(GenFinFormatFee, H41))","v":"0.0000"},{"$f":"IF(ISBLANK(GenFinFormatFeeCurrency), \"\", GenFinFormatFeeCurrency)","v":"GBP"},null,null,"Currency","0.0000","","",""]
[null,"Format Fee %",{"$f":"IF(ISBLANK(GenFinFormatFeePercentage), \"\", TEXT(GenFinFormatFeePercentage, H42))","v":""},null,null,null,"Percentage","0.0000","","2 decimals only",""]
[null,null,null,null,null,null,"","","","",""]
[null,"Schedule Summary:",null,"Units",null,null,"","","","",""]
[null,"Project Start Date",{"$f":"IF(ISBLANK(GenSchedProjectStart), \"\", GenSchedProjectStart)","v":""},null,null,null,"Date","M/D/YYYY","","",""]
[null,"Casting Start Date",{"$f":"IF(ISBLANK(GenSchedCastingStart), \"\", GenSchedCastingStart)","v":""},null,null,null,"Date","M/D/YYYY","","",""]
[null,"Casting\nNumber of Days or Weeks",{"$f":"IF(ISBLANK(GenSchedCastingDuration), \"\", TEXT(GenSchedCastingDuration, H47))","v":""},{"$f":"IF(ISBLANK(GenSchedCastingDurationUnits), \"\", GenSchedCastingDurationUnits)","v":"Days"},null,null,"Numeric","0.00","","2 decimals only",""]
[null,"Pre-Production Start Date",{"$f":"IF(ISBLANK(GenSchedPreProdStart), \"\", GenSchedPreProdStart)","v":""},null,null,null,"Date","M/D/YYYY","","",""]
[null,"Pre-Production\nNumber of Days or Weeks",{"$f":"IF(ISBLANK(GenSchedPreProdDuration), \"\", TEXT(GenSchedPreProdDuration, H49))","v":""},{"$f":"IF(ISBLANK(GenSchedPreProdDurationUnits), \"\", GenSchedPreProdDurationUnits)","v":"Days"},null,null,"Numeric","0.00","","2 decimals only",""]
[null,"Commencement of\nPrincipal Photography ",{"$f":"IF(ISBLANK(GenSchedPhotographyStart), \"\", GenSchedPhotographyStart)","v":""},null,null,null,"Date","M/D/YYYY",null,"",""]
[null,"Principle Photography\nNumber of Days or Weeks",{"$f":"IF(ISBLANK(GenSchedPhotgraphyDuration), \"\", TEXT(GenSchedPhotgraphyDuration, H51))","v":""},{"$f":"IF(ISBLANK(GenSchedPhotographyDurationUnits), \"\", GenSchedPhotographyDurationUnits)","v":"Weeks"},null,null,"Numeric","0.00","Y","2 decimals only",""]
[null,"Overall Schedule Length\nNumber of Days or Weeks",{"$f":"IF(ISBLANK(GenSchedOverallDuration), \"\", TEXT(GenSchedOverallDuration, H52))","v":""},{"$f":"IF(ISBLANK(GenSchedOverallDurationUnits), \"\", GenSchedOverallDurationUnits)","v":"Weeks"},null,null,"Numeric","0.00","Y","2 decimals only",""]
[null,"Projected Delivery Date_\nof \"First Master\"",{"$f":"IF(ISBLANK(GenSchedDeliveryOfFirstMaster), \"\", GenSchedDeliveryOfFirstMaster)","v":""},null,null,null,"Date","M/D/YYYY","","",""]
[null,null,null,null,null,null,"","","","",""]
[null,"Budget Assumptions:",null,null,null,null,"","","","",""]
[null,"Executive Producer or Showrunner\nnumber of weeks/number of days per week",{"$f":"IF(ISBLANK(GenMiscExecProducer), \"\", TEXT(GenMiscExecProducer, H56))","v":""},null,null,null,"Text","@","","EF confirmed freetext",""]
[null,"Staffing Assumptions",{"$f":"IF(ISBLANK(GenMiscStaffingAssumptions), \"\", TEXT(GenMiscStaffingAssumptions, H57))","v":""},null,null,null,"Text","@","","",""]
[null,"Shooting Locations",{"$f":"IF(ISBLANK(GenMiscShootingLocations), \"\", TEXT(GenMiscShootingLocations, H58))","v":""},null,null,null,"Text","@","","",""]
[null,"Post Production Location\n(off-line and on-line)",{"$f":"IF(ISBLANK(GenMiscPostLocation), \"\", TEXT(GenMiscPostLocation, H59))","v":""},null,null,null,"Text","@","","",""]
[null,"Post Production Staffing Breakdown",{"$f":"IF(ISBLANK(GenMiscPostStaffing), \"\", TEXT(GenMiscPostStaffing, H60))","v":""},null,null,null,"Text","@","","",""]
[null,"Talent Assumptions",{"$f":"IF(ISBLANK(GenMiscTalent), \"\", TEXT(GenMiscTalent, H61))","v":""},null,null,null,"Text","@","","",""]
[null,"Number of Shoot Days Per Episode",{"$f":"IF(ISBLANK(GenMiscShootDaysPerEp), \"\", TEXT(GenMiscShootDaysPerEp, H62))","v":""},null,null,null,"Numeric","0.00","","EF confirmed this format change, 2 decimals only","Text in DB, but Kathy's parser check for number"]
[null,"Number of Pick Up Days Per Episode",{"$f":"IF(ISBLANK(GenMiscPickupDaysPerEp), \"\", TEXT(GenMiscPickupDaysPerEp, H63))","v":""},null,null,null,"Numeric","0.00","","EF confirmed this format change, 2 decimals only",""]
[null,"Field Team On Location",{"$f":"IF(ISBLANK(GenMiscFieldTeam), \"\", TEXT(GenMiscFieldTeam, H64))","v":""},null,null,null,"Text","@","","",""]
[null,"Travel Assumptions",{"$f":"IF(ISBLANK(GenMiscTravelAssumptions), \"\", TEXT(GenMiscTravelAssumptions, H65))","v":""},null,null,null,"Text","@","","",""]
[null,"Risk Assessment",{"$f":"IF(ISBLANK(GenMiscRiskAssessment), \"\", TEXT(GenMiscRiskAssessment, H66))","v":"No"},null,null,null,"Y/N","@","","Y/N ONLY",""]
[null,"H&S and Risk Considerations",{"$f":"IF(ISBLANK(GenMiscHSandRiskConsiderations), \"\", TEXT(GenMiscHSandRiskConsiderations, H67))","v":""},null,null,null,"Text","@","","",""]
[null,"Field Assumptions",{"$f":"IF(ISBLANK(GenMiscFieldAssumptions), \"\", TEXT(GenMiscFieldAssumptions, H68))","v":""},null,null,null,"Text","@","","",""]
[null,"Number of Cameras",{"$f":"IF(ISBLANK(GenMiscNumberOfCameras), \"\", TEXT(GenMiscNumberOfCameras, H69))","v":""},null,null,null,"Numeric","0","","Whole number only",""]
[null,"Camera Format",{"$f":"IF(ISBLANK(GenMiscCameraFormat), \"\", TEXT(GenMiscCameraFormat, H70))","v":""},null,null,null,"Text","@","","",""]
[null,"HD or UHD",{"$f":"IF(OR(ISBLANK(GenMiscShootingFormat), GenMiscShootingFormat=\"N/A\"), \"\", GenMiscShootingFormat)","v":""},null,null,null,"Drop-down","","","HD, UHD or NA (DOUG - PASS NULL IF NA)",""]
[null,"Any Specialist Equipment?",{"$f":"IF(ISBLANK(GenMiscSpecialistEquipment), \"\", TEXT(GenMiscSpecialistEquipment, H72))","v":""},null,null,null,"Text","@","","",""]
[null,"Average Archive Minutes Per Episode",{"$f":"IF(ISBLANK(GenMiscArchiveCostPerEp), \"\", TEXT(GenMiscArchiveCostPerEp, H73))","v":""},null,null,null,"Numeric","0","","Whole number only",""]
[null,"Theme/Title Graphics",{"$f":"IF(ISBLANK(GenMiscTitleGraphics), \"\", TEXT(GenMiscTitleGraphics, H74))","v":""},null,null,null,"Text","@","","",""]
[null,"In Program Graphics",{"$f":"IF(ISBLANK(GenMiscInProgramGraphics), \"\", TEXT(GenMiscInProgramGraphics, H75))","v":""},null,null,null,"Text","@","","",""]
[null,"Music",{"$f":"IF(ISBLANK(GenMiscMusic), \"\", TEXT(GenMiscMusic, H76))","v":""},null,null,null,"Text","@","","",""]
[null,"Voice Over",{"$f":"IF(ISBLANK(GenMiscVoiceOver), \"\", TEXT(GenMiscVoiceOver, H77))","v":""},null,null,null,"Text","@","","",""]
[null,"Number of Offline Edit\nWeeks Per Episode",{"$f":"IF(ISBLANK(GenMiscOfflineEditWeeksPerEp), \"\", TEXT(GenMiscOfflineEditWeeksPerEp, H78))","v":""},null,null,null,"Text","@","","EF confirmed freetext",""]
[null,"Number of Cuts Per Episode",{"$f":"IF(ISBLANK(GenMiscNumberOfCutsPerEp), \"\", TEXT(GenMiscNumberOfCutsPerEp, H79))","v":""},null,null,null,"Text","@","","",""]
[null,"Notes Turnaround Time ",{"$f":"IF(ISBLANK(GenMiscNotesTurnaround), \"\", TEXT(GenMiscNotesTurnaround, H80))","v":""},null,null,null,"Text","@","","",""]
[null,"Potential Tax Incentives ",{"$f":"IF(ISBLANK(GenMiscTaxIncentivesYN),\"\", IF(GenMiscTaxIncentivesYN=\"Yes\", \"Y\", \"N\"))","v":"N"},null,null,null,"Y/N",null,"","Y/N ONLY",""]
[null,"Tax Incentive Description",{"$f":"IF(ISBLANK(GenMiscTaxIncentivesDescription), \"\", TEXT(GenMiscTaxIncentivesDescription, H82))","v":""},null,null,null,"Text","@","","",""]
[null,"Short Form / Promotional Assumptions",{"$f":"IF(ISBLANK(GenMiscShortFormPromotionalAssumptions), \"\", TEXT(GenMiscShortFormPromotionalAssumptions, H83))","v":""},null,null,null,"Text","@","","",""]
[null,"Insurance Assumptions",{"$f":"IF(ISBLANK(GenMiscInsuranceAssumptions), \"\", TEXT(GenMiscInsuranceAssumptions, H84))","v":""},null,null,null,"Text","@","","",""]
[null,"Other Budget Assumptions",{"$f":"IF(ISBLANK(GenMiscOtherBudgetAssumptions), \"\", TEXT(GenMiscOtherBudgetAssumptions, H85))","v":""},null,null,null,"Text","@","","",""]
[null,null,null,null,null,null,"","","","",""]
[null,"Genre Specific:",null,"Currency",null,null,"","","","",""]
[null,"Art Department Breakdown\nif applicable",{"$f":"IF(ISBLANK(GenGenreArtDeptBreakdown), \"\", TEXT(GenGenreArtDeptBreakdown, H88))","v":""},null,null,null,"Text","@","","",""]
[null,"Build Cost Per Episode\nif applicable",{"$f":"IF(ISBLANK(GenGenreBuildCostPerEp), \"\", TEXT(GenGenreBuildCostPerEp, H89))","v":""},{"$f":"IF(ISBLANK(GenGenreBuildCostPerEpCurrency), \"\", GenGenreBuildCostPerEpCurrency)","v":"GBP"},null,null,"Currency","0.0000","","4 decimals, rounded",""]
[null,"Prize Money Per Episode\nif applicable",{"$f":"IF(ISBLANK(GenGenrePrizeMoneyPerEp), \"\", TEXT(GenGenrePrizeMoneyPerEp, H90))","v":""},{"$f":"IF(ISBLANK(GenGenrePrizeMoneyPerEpCurrency),\"\",GenGenrePrizeMoneyPerEpCurrency)","v":"GBP"},null,null,"Currency","0.0000","","4 decimals, rounded",""]
[null,"Other Genre Specific Assumptions",{"$f":"IF(ISBLANK(GenGenreOtherAssumptions), \"\", TEXT(GenGenreOtherAssumptions, H91))","v":""},null,null,null,"Text","@","","",""]
[null,null,null,null,null,null,"","","","",""]
[null,null,null,null,null,null,"","","","",""]
[null,null,null,null,null,null,"","","","",""]
[null,null,null,null,null,null,"","","","",""]
[null,null,null,null,null,null,"","","","",""]
[null,null,null,null,null,null,"","","","",""]
[null,null,null,null,null,null,"","","","",""]
[null,null,null,null,null,null,"","","","",""]
[null,null,null,null,null,null,"","","","",""]

{"sheet":"Assumptions","index":1,"n_rows":90,"n_cols":11,"rows_kept":90,"cut":false,"hidden":false,"merged":[[71,2,71,3],[72,2,72,3],[73,2,73,3],[74,2,74,3],[83,2,83,3],[3,1,3,3],[17,1,17,2],[27,1,27,2],[42,1,42,2],[70,2,70,3],[67,2,67,3],[68,2,68,3],[69,2,69,3],[59,2,59,3],[25,2,25,3],[12,2,12,3],[13,2,13,3],[14,2,14,3],[21,2,21,3],[22,2,22,3],[15,2,15,3],[86,2,86,3],[89,2,89,3],[75,2,75,3],[76,2,76,3],[77,2,77,3],[78,2,78,3],[79,2,79,3],[80,2,80,3],[82,2,82,3],[85,1,85,2],[4,7,4,9],[5,7,5,9],[8,7,8,9],[9,7,9,9],[4,2,4,3],[5,2,5,3],[6,2,6,3],[7,2,11,3],[54,2,54,3],[56,2,56,3],[57,2,57,3],[58,2,58,3],[31,2,31,3],[32,2,33,3],[35,2,35,3],[40,2,40,3],[53,1,53,3],[7,1,11,1],[55,2,55,3],[65,2,65,3],[66,2,66,3],[81,2,81,3],[36,2,37,3],[43,2,43,3],[44,2,44,3],[46,2,46,3],[48,2,48,3],[51,2,51,3],[60,2,60,3],[61,2,61,3],[62,2,62,3],[63,2,63,3],[64,2,64,3]]}
[null,{"$f":"\"Budget Assumptions for \" & CHAR(34) & GenProgTitle & CHAR(34) & \" (\" & GenProdCo & \")\"","v":"Budget Assumptions for \"\" ()"},null,null,null,null,{"$f":"B1","v":"Budget Assumptions for \"\" ()"}]
[null,{"$f":"IF(GenBudgetVersion=\"\",\"\",\"Version \"&IF(ISNUMBER(GenBudgetVersion),GenBudgetVersion,CHAR(34)&GenBudgetVersion&CHAR(34))&\". \")\n&IF(GenDateSubmitted=\"\",\"\",\"Submitted \"&TEXT(GenDateSubmitted,\"d-mmm-yyyy\"))","v":""}]
[null,{"$f":"\"Budget Assumptions Template Version \" & TEXT(Version_Number,\"0.00\") & \" (\" & TEXT(Version_Date,\"DD-MMM-YYYY\") & \")\"","v":"Budget Assumptions Template Version 5.16 20210621 1900 (21-Jun-2021)"}]
[null,"Programme Information:",null,null,null,null,"VERSION"]
[null,"Network",null,null,null,null,"Budget Version"]
[null,"Production Company",null,null,null,null,"Date Submitted"]
[null,"Programme Title"]
[null,"Programme\nDescription",null,null,null,null,"GENERAL SETUP"]
[null,null,null,null,null,null,"Budget Region","UK"]
[null,null,null,null,null,null,"Default Currency","GBP"]
[]
[null,null,null,null,null,null,"CURRENCY","2021 Rate","Rate for this Budget","Override Rate",{"$f":"IF(COUNTA($J$13:$J$30)=0,\"\",LEFT(_xlfn.CONCAT(K13:K30),LEN(_xlfn.CONCAT(K13:K30))-2))","v":""}]
[null,"Order",null,null,null,null,"USD",1,{"$f":"IF(ISBLANK(J13),IF(ISNUMBER(H13),H13,0),J13)","v":1},null,{"$f":"IF(ISBLANK(J13),\"\",TEXT(J13,\"#,##0.0###\")&\" \" & G13&\"/USD, \")","v":""}]
[null,"For example: 6x60, 1x120, 1x60",{"$f":"IF(ISBLANK(GenProgOrder),\"A program order is required\",\"\")","v":"A program order is required"},null,null,null,"EUR",1.2285600000000001,1.2285600000000001,null,""]
[null,"Production Type",null,null,null,null,"GBP",1.35944,1.35944,null,""]
[null,"Country",null,null,null,null,"BRL",0.18904000000000001,0.18904000000000001,null,""]
[null,null,null,null,null,null,"CAD",0.78656000000000004,0.78656000000000004,null,""]
[null,"Financial Summary:",null,"Currency",null,null,"DKK",0.16516,0.16516,null,""]
[null,"Budget",{"$f":"'Budget Summary'!X6","v":0},{"$f":"IF(ISBLANK(DefaultCurrency), \"\", DefaultCurrency)","v":"GBP"},null,null,"NOK",0.11824,0.11824,null,""]
[null,"Budget Discount(s)",0,{"$f":"IF(ISBLANK(DefaultCurrency), \"\", DefaultCurrency)","v":"GBP"},null,null,"SEK",0.12196,0.12196,null,""]
[null,"Budget Total (Minus Discounts)",{"$f":"GenBudget-GenBudgetDiscounts","v":0},{"$f":"IF(ISBLANK(DefaultCurrency), \"\", DefaultCurrency)","v":"GBP"},null,null,"AUD",0.77454000000000001,0.77454000000000001,null,""]
[null,"Episodes",null,null,null,null,"INR",1.3665499999999999,1.3665499999999999,null,""]
[null,"Hours",null,null,null,null,"SGD",0.75731999999999999,0.75731999999999999,null,""]
[null,"Cost Per Episode",{"$f":"IFERROR(GenBudgetTotal/GenNumberOfEps * VLOOKUP(GenBudgetTotalCurrency,CurrencyTable,3,0)/VLOOKUP(GenCostPerEpCurrency,CurrencyTable,3,0),0)","v":0},{"$f":"IF(ISBLANK(DefaultCurrency), \"\", DefaultCurrency)","v":"GBP"},null,null,"JPY",0.96831999999999996,0.96831999999999996,null,""]
[null,"Cost Per Hour",{"$f":"IFERROR(GenBudgetTotal/GenNumberOfHours * VLOOKUP(GenBudgetTotalCurrency,CurrencyTable,3,0)/VLOOKUP(GenCostPerEpCurrency,CurrencyTable,3,0),0)","v":0},{"$f":"IF(ISBLANK(DefaultCurrency), \"\", DefaultCurrency)","v":"GBP"},null,null,"CNY",0.15475,0.15475,null,{"$f":"IF(ISBLANK(J25),\"\",TEXT(J25,\"#,##0.0###\")&\" \" & G25&\"/USD, \")","v":""}]
[null,"Currency Assumptions",{"$f":"IF(COUNTA($J$13:$J$30)=0,$H$12,$K$12)","v":"2021 Rate"},null,null,null,"MXN",5.0340000000000003E-2,5.0340000000000003E-2,null,""]
[null,null,null,null,null,null,"ARS",1.1780000000000001E-2,1.1780000000000001E-2,null,""]
[null,"Financial Breakdown:",null,"Currency",null,null,"COP",0.29039999999999999,0.29039999999999999,null,""]
[null,"Contracted Paid Development",null,{"$f":"IF(ISBLANK(DefaultCurrency), \"\", DefaultCurrency)","v":"GBP"},null,null,"Custom 1","N/A",0,null,""]
[null,"Main Talent/Host Cost Per Episode",null,{"$f":"IF(ISBLANK(DefaultCurrency), \"\", DefaultCurrency)","v":"GBP"},null,null,"Custom 2","N/A",0,null,""]
[null,"Production Fee",{"$f":"'Budget Summary'!X614","v":0},{"$f":"IF(ISBLANK(DefaultCurrency), \"\", DefaultCurrency)","v":"GBP"}]
[null,"Production Fee %"]
[null,"Production Fee Exclusions"]
[null,"For example: Talent  "]
[null,"Package Fee",{"$f":"'Budget Summary'!X618","v":0},{"$f":"IF(ISBLANK(DefaultCurrency), \"\", DefaultCurrency)","v":"GBP"}]
[null,"Package Fee %"]
[null,"Package Fee Exclusions"]
[null,"For example: Talent  "]
[null,"One Time Fees",null,{"$f":"IF(ISBLANK(DefaultCurrency), \"\", DefaultCurrency)","v":"GBP"}]
[null,"Format Fee",{"$f":"'Budget Summary'!X616","v":0},{"$f":"IF(ISBLANK(DefaultCurrency), \"\", DefaultCurrency)","v":"GBP"}]
[null,"Format Fee %"]
[]
[null,"Schedule Summary:",null,"Units"]
[null,"Project Start Date"]
[null,"Casting Start Date"]
[null,"Casting\nNumber of Days or Weeks",null,"Days"]
[null,"Pre-Production Start Date"]
[null,"Pre-Production\nNumber of Days or Weeks",null,"Days"]
[null,"Commencement of\nPrincipal Photography "]
[null,"Principle Photography\nNumber of Days or Weeks",null,"Weeks"]
[null,"Overall Schedule Length\nNumber of Days or Weeks",null,"Weeks"]
[null,"Projected Delivery Date\nof \"First Master\""]
[]
[null,"Budget Assumptions:"]
[null,"Executive Producer or Showrunner\nnumber of weeks/number of days per week"]
[null,"Staffing Assumptions"]
[null,"Shooting Locations"]
[null,"Post Production Location\n(off-line and on-line)"]
[null,"Post Production Staffing Breakdown"]
[null,"Talent Assumptions"]
[null,"Number of Shoot Days Per Episode"]
[null,"Number of Pick Up Days Per Episode"]
[null,"Field Team On Location"]
[null,"Travel Assumptions"]
[null,"Risk Assessment","No"]
[null,"H&S and Risk Considerations"]
[null,"Field Assumptions"]
[null,"Number of Cameras"]
[null,"Camera Format"]
[null,"HD or UHD"]
[null,"Any Specialist Equipment?"]
[null,"Average Archive Minutes Per Episode"]
[null,"Theme/Title Graphics"]
[null,"In Program Graphics"]
[null,"Music"]
[null,"Voice Over"]
[null,"Number of Offline Edit\nWeeks Per Episode"]
[null,"Number of Cuts Per Episode"]
[null,"Notes Turnaround Time "]
[null,"Potential Tax Incentives ","No"]
[null,"Tax Incentive Description"]
[null,"Short Form / Promotional Assumptions"]
[null,"Insurance Assumptions"]
[null,"Other Budget Assumptions"]
[]
[null,"Genre Specific:",null,"Currency"]
[null,"Art Department Breakdown\nif applicable"]
[null,"Build Cost Per Episode\nif applicable",null,{"$f":"IF(ISBLANK(DefaultCurrency), \"\", DefaultCurrency)","v":"GBP"}]
[null,"Prize Money Per Episode\nif applicable",null,{"$f":"IF(ISBLANK(DefaultCurrency), \"\", DefaultCurrency)","v":"GBP"}]
[null,"Other Genre Specific Assumptions"]

{"sheet":"Budget Detail","index":2,"n_rows":5,"n_cols":17,"rows_kept":5,"cut":false,"hidden":false,"merged":[]}
[{"$f":"\"Budget Detail for \" & GenProgTitle & \" (\" & GenProdCo & \")\"","v":"Budget Detail for  ()"}]
[null,null,null,{"$f":"\"Budget Assumptions Template Version \" & TEXT(Version_Number,\"0.00\") & \" (\" & TEXT(Version_Date,\"DD-MMM-YYYY\") & \")\"","v":"Budget Assumptions Template Version 5.16 20210621 1900 (21-Jun-2021)"}]
[]
["CC ID","Cost Categories ","SC ID","Sub Categories ","Line Item","Description","Quantity","Multiplier","Units","Unit Type","Fee/Rate","Currency","Local Currency\nSub-Total","Default Currency\nSub-Total","USD\nSub-Total","Date Updated","Notes"]
[{"$f":"FLOOR(C5,100)","v":1000},{"$f":"VLOOKUP(C5,MasterCOA,2,0)","v":"Development"},1001,{"$f":"VLOOKUP(C5,MasterCOA,DefaultRegionColumn,0)","v":"Contracted/Paid Development cost"},"Placeholder Row","Please delete or edit this row (placeholder for Budget Summary display)",1,1,1,"Fixed",0.01,"GBP",{"$f":"IF(ISBLANK(G5),1,G5)*IF(ISBLANK(H5),1,H5)*IF(ISBLANK(I5),1,I5)*K5","v":0.01},null,{"$f":"N5*IF(ISNA(VLOOKUP(M5,CurrencyTable,3,0)),1,VLOOKUP(M5,CurrencyTable,3,0))","v":0}]

{"sheet":"Budget Summary","index":3,"n_rows":719,"n_cols":25,"rows_kept":719,"cut":false,"hidden":false,"merged":[[3,4,4,4],[0,0,0,26],[3,23,3,24],[4,23,4,24],[3,1,4,1],[3,2,4,3]]}
[{"$f":"\"Category Summary for \" & GenProgTitle & \" (\" & GenProdCo & \")\"","v":"Category Summary for  ()"}]
[{"$f":"IF(GenBudgetVersion=\"\",\"\",\"Version \"&IF(ISNUMBER(GenBudgetVersion),GenBudgetVersion,CHAR(34)&GenBudgetVersion&CHAR(34))&\". \")\n&IF(GenDateSubmitted=\"\",\"\",\"Submitted \"&TEXT(GenDateSubmitted,\"d-mmm-yyyy\"))","v":""}]
[{"$f":"\"Budget Assumptions Template Version \" & TEXT(Version_Number,\"0.00\") & \" (\" & TEXT(Version_Date,\"DD-MMM-YYYY\") & \")\"","v":"Budget Assumptions Template Version 5.16 20210621 1900 (21-Jun-2021)"}]
[null,"CCID","COST CATEGORY",null,"LINE\nITEMS","USD","EUR","GBP","BRL","CAD","DKK","NOK","SEK","AUD","INR","SGD","JPY","CNY","MXN","ARS","COP",{"$f":"CurrencyCustom1","v":"Custom 1"},{"$f":"CurrencyCustom2","v":"Custom 2"},"TOTAL"]
[null,null,null,null,null,{"$f":"IF(F4=DefaultCurrency,\"\",TEXT(VLOOKUP(F4,CurrencyTable,3,0)/VLOOKUP(DefaultCurrency,CurrencyTable,3,0),\"#,##0.0000\") & \" / \" & DefaultCurrency)","v":"0.7356 / GBP"},"0.9037 / GBP","","0.1391 / GBP","0.5786 / GBP","0.1215 / GBP","0.0870 / GBP","0.0897 / GBP","0.5697 / GBP","1.0052 / GBP","0.5571 / GBP","0.7123 / GBP","0.1138 / GBP","0.0370 / GBP","0.0087 / GBP","0.2136 / GBP","0.0000 / GBP","0.0000 / GBP",{"$f":"DefaultCurrency","v":"GBP"}]
[null,"TOTAL",null,null,{"$f":"COUNTA(Col_CCID)","v":1},{"$f":"SUMIFS(Col_LocalSubtotal,Col_Currency,F$4)","v":0},0,0.01,0,0,0,0,0,0,0,0,0,0,0,0,0,0,0,{"$f":"SUM(Col_Value)/VLOOKUP(DefaultCurrency,CurrencyTable,3,0)","v":0},{"$f":"SUM($Y$7:$Y719)","v":{"$error":"#DIV/0!"}}]
[null,1000,"u","Development",{"$f":"COUNTIF(Col_CCID,$B7)","v":1},{"$f":"SUMIFS(Col_LocalSubtotal,Col_CCID,$B7,Col_Currency,F$4)","v":0},0,0.01,0,0,0,0,0,0,0,0,0,0,0,0,0,0,0,{"$f":"SUMIFS(Col_Value, Col_CCID,$B7)/DefaultCurrencyRate","v":0},{"$f":"X7/$X$6","v":{"$error":"#DIV/0!"}}]
[null,1001,null,{"$f":"VLOOKUP($B8,MasterCOA,4,0)","v":"Contracted/Paid Development cost"},{"$f":"COUNTIF(Col_SCID,$B8)","v":1},{"$f":"SUMIFS(Col_LocalSubtotal,Col_SCID,$B8,Col_Currency,F$4)","v":0},0,0.01,0,0,0,0,0,0,0,0,0,0,0,0,0,{"$f":"SUMIFS(Col_LocalSubtotal,Col_SCID,$B8,Col_Currency,V$4)","v":0},{"$f":"SUMIFS(Col_LocalSubtotal,Col_SCID,$B8,Col_Currency,W$4)","v":0},{"$f":"SUMIFS(Col_Value, Col_SCID,$B8)/VLOOKUP(DefaultCurrency,CurrencyTable,3,0)","v":0}]
[null,1099,null,{"$f":"VLOOKUP($B9,MasterCOA,4,0)","v":"Fringes - Development"},{"$f":"COUNTIF(Col_SCID,$B9)","v":0},0,0,0,0,0,0,0,0,0,0,0,0,0,0,0,0,{"$f":"SUMIFS(Col_LocalSubtotal,Col_SCID,$B9,Col_Currency,V$4)","v":0},{"$f":"SUMIFS(Col_LocalSubtotal,Col_SCID,$B9,Col_Currency,W$4)","v":0},{"$f":"SUMIFS(Col_Value, Col_SCID,$B9)/VLOOKUP(DefaultCurrency,CurrencyTable,3,0)","v":0}]
[null,1100,"u","Casting / Research",{"$f":"COUNTIF(Col_CCID,$B10)","v":0},{"$f":"SUMIFS(Col_LocalSubtotal,Col_CCID,$B10,Col_Currency,F$4)","v":0},0,0,0,0,0,0,0,0,0,0,0,0,0,0,0,0,0,{"$f":"SUMIFS(Col_Value, Col_CCID,$B10)/DefaultCurrencyRate","v":0},{"$f":"X10/$X$6","v":{"$error":"#DIV/0!"}}]
[null,1116,null,{"$f":"VLOOKUP($B11,MasterCOA,4,0)","v":"Casting Agency"},{"$f":"COUNTIF(Col_SCID,$B11)","v":0},{"$f":"SUMIFS(Col_LocalSubtotal,Col_SCID,$B11,Col_Currency,F$4)","v":0},0,0,0,0,0,0,0,0,0,0,0,0,0,0,0,{"$f":"SUMIFS(Col_LocalSubtotal,Col_SCID,$B11,Col_Currency,V$4)","v":0},0,{"$f":"SUMIFS(Col_Value, Col_SCID,$B11)/VLOOKUP(DefaultCurrency,CurrencyTable,3,0)","v":0}]
[null,1106,null,"Casting Assistant",0,0,0,0,0,0,0,0,0,0,0,0,0,0,0,0,0,0,0,0]
[null,1103,null,"Casting Assistant Director",0,0,0,0,0,0,0,0,0,0,0,0,0,0,0,0,0,0,0,0]
[null,1109,null,"Casting Assistant Producer",0,0,0,0,0,0,0,0,0,0,0,0,0,0,0,0,0,0,0,0]
[null,1105,null,"Casting Coordinator",0,0,0,0,0,0,0,0,0,0,0,0,0,0,0,0,0,0,0,0]
[null,1102,null,"Casting Director",0,0,0,0,0,0,0,0,0,0,0,0,0,0,0,0,0,0,0,0]
[null,1111,null,"Casting Editor",0,0,0,0,0,0,0,0,0,0,0,0,0,0,0,0,0,0,0,0]
[null,1104,null,"Casting Manager",0,0,0,0,0,0,0,0,0,0,0,0,0,0,0,0,0,0,0,0]
[null,1112,null,"Casting Materials / Audition Costs",0,0,0,0,0,0,0,0,0,0,0,0,0,0,0,0,0,0,0,0]
[null,1101,null,"Casting Producer",0,0,0,0,0,0,0,0,0,0,0,0,0,0,0,0,0,0,0,0]
[null,1110,null,"Casting Researcher",0,{"$f":"SUMIFS(Col_LocalSubtotal,Col_SCID,$B21,Col_Currency,F$4)","v":0},0,0,0,0,0,0,0,0,0,0,0,0,0,0,0,0,0,0]
[null,1107,null,"Celebrity Booker / Finder",0,0,0,0,0,0,0,0,0,0,0,0,0,0,0,0,0,0,0,0]
[null,1108,null,"Celebrity Co-ordinator",0,0,0,0,0,0,0,0,0,0,0,0,0,0,0,0,0,0,0,0]
[null,1199,null,"Fringes - Casting/Research",0,0,0,0,0,0,0,0,0,0,0,0,0,0,0,0,0,0,0,0]
[null,1113,null,"Research Materials",0,0,0,0,0,0,0,0,0,0,0,0,0,0,0,0,0,0,0,0]
[null,1115,null,"Research Materials - Books",0,0,0,0,0,0,0,0,0,0,0,0,0,0,0,0,0,0,0,0]
[null,1114,null,"Research Materials - Maps",0,0,0,0,0,0,0,0,0,0,0,0,0,0,0,0,0,0,0,0]
[null,1200,"u","Creative Team",{"$f":"COUNTIF(Col_CCID,$B28)","v":0},{"$f":"SUMIFS(Col_LocalSubtotal,Col_CCID,$B28,Col_Currency,F$4)","v":0},0,0,0,0,0,0,0,0,0,0,0,0,0,0,0,0,0,{"$f":"SUMIFS(Col_Value, Col_CCID,$B28)/DefaultCurrencyRate","v":0},{"$f":"X28/$X$6","v":{"$error":"#DIV/0!"}}]
[null,1210,null,{"$f":"VLOOKUP($B29,MasterCOA,4,0)","v":"2nd Assistant Director"},{"$f":"COUNTIF(Col_SCID,$B29)","v":0},{"$f":"SUMIFS(Col_LocalSubtotal,Col_SCID,$B29,Col_Currency,F$4)","v":0},0,0,0,0,0,0,0,0,0,0,0,0,0,0,0,{"$f":"SUMIFS(Col_LocalSubtotal,Col_SCID,$B29,Col_Currency,V$4)","v":0},0,{"$f":"SUMIFS(Col_Value, Col_SCID,$B29)/VLOOKUP(DefaultCurrency,CurrencyTable,3,0)","v":0}]
[null,1219,null,"2nd Unit Director",0,0,0,0,0,0,0,0,0,0,0,0,0,0,0,0,0,0,0,0]
[null,1233,null,"Archive Researcher",0,0,0,0,0,0,0,0,0,0,0,0,0,0,0,0,0,0,0,0]
[null,1205,null,"Assistant Creative Director",0,0,0,0,0,0,0,0,0,0,0,0,0,0,0,0,0,0,0,0]
[null,1209,null,"Assistant Director",0,0,0,0,0,0,0,0,0,0,0,0,0,0,0,0,0,0,0,0]
[null,1241,null,"Assistant Realizador",0,0,0,0,0,0,0,0,0,0,0,0,0,0,0,0,0,0,0,0]
[null,1239,null,"Assistant Writer",0,0,0,0,0,0,0,0,0,0,0,0,0,0,0,0,0,0,0,0]
[null,1230,null,"Assistant/Associate Producer",0,0,0,0,0,0,0,0,0,0,0,0,0,0,0,0,0,0,0,0]
[null,1234,null,"Car Producer",0,0,0,0,0,0,0,0,0,0,0,0,0,0,0,0,0,0,0,0]
[null,1235,null,"Challenge Producer",0,0,0,0,0,0,0,0,0,0,0,0,0,0,0,0,0,0,0,0]
[null,1208,null,"Chief Assistant Director",0,{"$f":"SUMIFS(Col_LocalSubtotal,Col_SCID,$B39,Col_Currency,F$4)","v":0},0,0,0,0,0,0,0,0,0,0,0,0,0,0,0,0,0,0]
[null,1202,null,"Co-Executive Producer",0,0,0,0,0,0,0,0,0,0,0,0,0,0,0,0,0,0,0,0]
[null,1227,null,"Consulting Producer",0,0,0,0,0,0,0,0,0,0,0,0,0,0,0,0,0,0,0,0]
[null,1237,null,"Continuity Producer",0,0,0,0,0,0,0,0,0,0,0,0,0,0,0,0,0,0,0,0]
[null,1215,null,"Co-Producer",0,0,0,0,0,0,0,0,0,0,0,0,0,0,0,0,0,0,0,0]
[null,1204,null,"Creative Director",0,0,0,0,0,0,0,0,0,0,0,0,0,0,0,0,0,0,0,0]
[null,1236,null,"Culinary Producer - Creative",0,0,0,0,0,0,0,0,0,0,0,0,0,0,0,0,0,0,0,0]
[null,1212,null,"Director",0,0,0,0,0,0,0,0,0,0,0,0,0,0,0,0,0,0,0,0]
[null,1223,null,"Edit Producer",0,0,0,0,0,0,0,0,0,0,0,0,0,0,0,0,0,0,0,0]
[null,1243,null,"Editorial Assistant",0,0,0,0,0,0,0,0,0,0,0,0,0,0,0,0,0,0,0,0]
[null,1201,null,"Executive Producer",0,{"$f":"SUMIFS(Col_LocalSubtotal,Col_SCID,$B49,Col_Currency,F$4)","v":0},0,0,0,0,0,0,0,0,0,0,0,0,0,0,0,{"$f":"SUMIFS(Col_LocalSubtotal,Col_SCID,$B49,Col_Currency,V$4)","v":0},0,0]
[null,1229,null,"Field Producer",0,0,0,0,0,0,0,0,0,0,0,0,0,0,0,0,0,0,0,0]
[null,1299,null,"Fringes - Creative Team",0,0,0,0,0,0,0,0,0,0,0,0,0,0,0,0,0,0,0,0]
[null,1221,null,"Game Producer",0,0,0,0,0,0,0,0,0,0,0,0,0,0,0,0,0,0,0,0]
[null,1244,null,"(not applicable for UK)",0,0,0,0,0,0,0,0,0,0,0,0,0,0,0,0,0,0,0,0]
[null,1224,null,"Post Producer",0,0,0,0,0,0,0,0,0,0,0,0,0,0,0,0,0,0,0,0]
[null,1245,null,"(not applicable for UK)",0,0,0,0,0,0,0,0,0,0,0,0,0,0,0,0,0,0,0,0]
[null,1214,null,"Producer ",0,0,0,0,0,0,0,0,0,0,0,0,0,0,0,0,0,0,0,0]
[null,1216,null,"Producer Assistant ",0,0,0,0,0,0,0,0,0,0,0,0,0,0,0,0,0,0,0,0]
[null,1211,null,"Producer/ Director",0,0,0,0,0,0,0,0,0,0,0,0,0,0,0,0,0,0,0,0]
[null,1220,null,"Question Producer",0,{"$f":"SUMIFS(Col_LocalSubtotal,Col_SCID,$B59,Col_Currency,F$4)","v":0},0,0,0,0,0,0,0,0,0,0,0,0,0,0,0,0,0,0]
[null,1240,null,"Realizador",0,0,0,0,0,0,0,0,0,0,0,0,0,0,0,0,0,0,0,0]
[null,1242,null,"Redactor",0,0,0,0,0,0,0,0,0,0,0,0,0,0,0,0,0,0,0,0]
[null,1232,null,"Researcher",0,0,0,0,0,0,0,0,0,0,0,0,0,0,0,0,0,0,0,0]
[null,1226,null,"Script Consultants",0,0,0,0,0,0,0,0,0,0,0,0,0,0,0,0,0,0,0,0]
[null,1228,null,"Segment Producer",0,0,0,0,0,0,0,0,0,0,0,0,0,0,0,0,0,0,0,0]
[null,1213,null,"Senior/Supervising Producer ",0,0,0,0,0,0,0,0,0,0,0,0,0,0,0,0,0,0,0,0]
[null,1207,null,"Series Director",0,0,0,0,0,0,0,0,0,0,0,0,0,0,0,0,0,0,0,0]
[null,1206,null,"Series Producer",0,0,0,0,0,0,0,0,0,0,0,0,0,0,0,0,0,0,0,0]
[null,1231,null,"Shooting Assistant producer",0,0,0,0,0,0,0,0,0,0,0,0,0,0,0,0,0,0,0,0]
[null,1218,null,"Shooting Producer/ DV Director",0,{"$f":"SUMIFS(Col_LocalSubtotal,Col_SCID,$B69,Col_Currency,F$4)","v":0},0,0,0,0,0,0,0,0,0,0,0,0,0,0,0,{"$f":"SUMIFS(Col_LocalSubtotal,Col_SCID,$B69,Col_Currency,V$4)","v":0},0,0]
[null,1203,null,"Show Runner",0,0,0,0,0,0,0,0,0,0,0,0,0,0,0,0,0,0,0,0]
[null,1225,null,"Story Producer",0,0,0,0,0,0,0,0,0,0,0,0,0,0,0,0,0,0,0,0]
[null,1222,null,"Supervising Post Producer",0,0,0,0,0,0,0,0,0,0,0,0,0,0,0,0,0,0,0,0]
[null,1217,null,"Visual producer",0,0,0,0,0,0,0,0,0,0,0,0,0,0,0,0,0,0,0,0]
[null,1238,null,"Writer (Story, Screenplay, Dialogue)",0,0,0,0,0,0,0,0,0,0,0,0,0,0,0,0,0,0,0,0]
[null,1300,"u","Production Team",{"$f":"COUNTIF(Col_CCID,$B75)","v":0},{"$f":"SUMIFS(Col_LocalSubtotal,Col_CCID,$B75,Col_Currency,F$4)","v":0},0,0,0,0,0,0,0,0,0,0,0,0,0,0,0,0,0,{"$f":"SUMIFS(Col_Value, Col_CCID,$B75)/DefaultCurrencyRate","v":0},{"$f":"X75/$X$6","v":{"$error":"#DIV/0!"}}]
[null,1308,null,{"$f":"VLOOKUP($B76,MasterCOA,4,0)","v":"Assistant Production Manager"},{"$f":"COUNTIF(Col_SCID,$B76)","v":0},{"$f":"SUMIFS(Col_LocalSubtotal,Col_SCID,$B76,Col_Currency,F$4)","v":0},0,0,0,0,0,0,0,0,0,0,0,0,0,0,0,{"$f":"SUMIFS(Col_LocalSubtotal,Col_SCID,$B76,Col_Currency,V$4)","v":0},0,{"$f":"SUMIFS(Col_Value, Col_SCID,$B76)/VLOOKUP(DefaultCurrency,CurrencyTable,3,0)","v":0}]
[null,1321,null,"Assistant Set Manager",0,0,0,0,0,0,0,0,0,0,0,0,0,0,0,0,0,0,0,0]
[null,1322,null,"Audience Coordinator",0,0,0,0,0,0,0,0,0,0,0,0,0,0,0,0,0,0,0,0]
[null,1302,null,"Director of Production",0,0,0,0,0,0,0,0,0,0,0,0,0,0,0,0,0,0,0,0]
[null,1303,null,"Executive in Charge",0,0,0,0,0,0,0,0,0,0,0,0,0,0,0,0,0,0,0,0]
[null,1314,null,"Field PA",0,0,0,0,0,0,0,0,0,0,0,0,0,0,0,0,0,0,0,0]
[null,1399,null,"Fringes - Production Team",0,0,0,0,0,0,0,0,0,0,0,0,0,0,0,0,0,0,0,0]
[null,1301,null,"Head of Production",0,0,0,0,0,0,0,0,0,0,0,0,0,0,0,0,0,0,0,0]
[null,1323,null,"Host/ Participant Coordinator",0,0,0,0,0,0,0,0,0,0,0,0,0,0,0,0,0,0,0,0]
[null,1319,null,"Intern / Trainee",0,0,0,0,0,0,0,0,0,0,0,0,0,0,0,0,0,0,0,0]
[null,1307,null,"Junior Production Manager",0,{"$f":"SUMIFS(Col_LocalSubtotal,Col_SCID,$B86,Col_Currency,F$4)","v":0},0,0,0,0,0,0,0,0,0,0,0,0,0,0,0,0,0,0]
[null,1305,null,"Line Producer",0,0,0,0,0,0,0,0,0,0,0,0,0,0,0,0,0,0,0,0]
[null,1317,null,"Location Coordinator",0,0,0,0,0,0,0,0,0,0,0,0,0,0,0,0,0,0,0,0]
[null,1324,null,"Office PA",0,0,0,0,0,0,0,0,0,0,0,0,0,0,0,0,0,0,0,0]
[null,1316,null,"Production Accountant",0,0,0,0,0,0,0,0,0,0,0,0,0,0,0,0,0,0,0,0]
[null,1312,null,"Production Assistant",0,0,0,0,0,0,0,0,0,0,0,0,0,0,0,0,0,0,0,0]
[null,1310,null,"Production Coordinator",0,0,0,0,0,0,0,0,0,0,0,0,0,0,0,0,0,0,0,0]
[null,1304,null,"Production Executive ",0,0,0,0,0,0,0,0,0,0,0,0,0,0,0,0,0,0,0,0]
[null,1306,null,"Production Manager",0,0,0,0,0,0,0,0,0,0,0,0,0,0,0,0,0,0,0,0]
[null,1311,null,"Production Secretary  ",0,0,0,0,0,0,0,0,0,0,0,0,0,0,0,0,0,0,0,0]
[null,1313,null,"Runner  ",0,0,0,0,0,0,0,0,0,0,0,0,0,0,0,0,0,0,0,0]
[null,1320,null,"Set Manager",0,0,0,0,0,0,0,0,0,0,0,0,0,0,0,0,0,0,0,0]
[null,1318,null,"Spot Boys",0,0,0,0,0,0,0,0,0,0,0,0,0,0,0,0,0,0,0,0]
[null,1315,null,"Trade out Producer",0,0,0,0,0,0,0,0,0,0,0,0,0,0,0,0,0,0,0,0]
[null,1309,null,"Unit Manager",0,0,0,0,0,0,0,0,0,0,0,0,0,0,0,0,0,0,0,0]
[null,1400,"u","Talent",{"$f":"COUNTIF(Col_CCID,$B101)","v":0},{"$f":"SUMIFS(Col_LocalSubtotal,Col_CCID,$B101,Col_Currency,F$4)","v":0},0,0,0,0,0,0,0,0,0,0,0,0,0,0,0,0,0,{"$f":"SUMIFS(Col_Value, Col_CCID,$B101)/DefaultCurrencyRate","v":0},{"$f":"X101/$X$6","v":{"$error":"#DIV/0!"}}]
[null,1405,null,{"$f":"VLOOKUP($B102,MasterCOA,4,0)","v":"Additional Cast"},{"$f":"COUNTIF(Col_SCID,$B102)","v":0},{"$f":"SUMIFS(Col_LocalSubtotal,Col_SCID,$B102,Col_Currency,F$4)","v":0},0,0,0,0,0,0,0,0,0,0,0,0,0,0,0,{"$f":"SUMIFS(Col_LocalSubtotal,Col_SCID,$B102,Col_Currency,V$4)","v":0},0,{"$f":"SUMIFS(Col_Value, Col_SCID,$B102)/VLOOKUP(DefaultCurrency,CurrencyTable,3,0)","v":0}]
[null,1419,null,"Aftercare",0,0,0,0,0,0,0,0,0,0,0,0,0,0,0,0,0,0,0,0]
[null,1421,null,"Agency Commissions (for actors)",0,0,0,0,0,0,0,0,0,0,0,0,0,0,0,0,0,0,0,0]
[null,1416,null,"B & C Characters (Reality)",0,0,0,0,0,0,0,0,0,0,0,0,0,0,0,0,0,0,0,0]
[null,1420,null,"Chaperone",0,0,0,0,0,0,0,0,0,0,0,0,0,0,0,0,0,0,0,0]
[null,1418,null,"Childcare",0,0,0,0,0,0,0,0,0,0,0,0,0,0,0,0,0,0,0,0]
[null,1407,null,"Consultants / Experts",0,0,0,0,0,0,0,0,0,0,0,0,0,0,0,0,0,0,0,0]
[null,1410,null,"Extras",0,0,0,0,0,0,0,0,0,0,0,0,0,0,0,0,0,0,0,0]
[null,1499,null,"Fringes - Talent",0,0,0,0,0,0,0,0,0,0,0,0,0,0,0,0,0,0,0,0]
[null,1417,null,"Honorariums/Lost Wages",0,0,0,0,0,0,0,0,0,0,0,0,0,0,0,0,0,0,0,0]
[null,1401,null,"Host/Presenter",0,{"$f":"SUMIFS(Col_LocalSubtotal,Col_SCID,$B112,Col_Currency,F$4)","v":0},0,0,0,0,0,0,0,0,0,0,0,0,0,0,0,0,0,0]
[null,1406,null,"Interviewees",0,0,0,0,0,0,0,0,0,0,0,0,0,0,0,0,0,0,0,0]
[null,1412,null,"Judges / Competitors",0,0,0,0,0,0,0,0,0,0,0,0,0,0,0,0,0,0,0,0]
[null,1404,null,"Main Contributors",0,0,0,0,0,0,0,0,0,0,0,0,0,0,0,0,0,0,0,0]
[null,1498,null,"Miscellanous - Talent",0,0,0,0,0,0,0,0,0,0,0,0,0,0,0,0,0,0,0,0]
[null,1408,null,"On Screen Expert ",0,0,0,0,0,0,0,0,0,0,0,0,0,0,0,0,0,0,0,0]
[null,1409,null,"Performers / Actors",0,0,0,0,0,0,0,0,0,0,0,0,0,0,0,0,0,0,0,0]
[null,1414,null,"Question Verifier/Adjudicator",0,0,0,0,0,0,0,0,0,0,0,0,0,0,0,0,0,0,0,0]
[null,1413,null,"Studio Teacher",0,0,0,0,0,0,0,0,0,0,0,0,0,0,0,0,0,0,0,0]
[null,1411,null,"Stunt Performer ",0,0,0,0,0,0,0,0,0,0,0,0,0,0,0,0,0,0,0,0]
[null,1403,null,"Talent",0,0,0,0,0,0,0,0,0,0,0,0,0,0,0,0,0,0,0,0]
[null,1402,null,"Voice Over / Narrator",0,0,0,0,0,0,0,0,0,0,0,0,0,0,0,0,0,0,0,0]
[null,1415,null,"Warm-Up Artist",0,0,0,0,0,0,0,0,0,0,0,0,0,0,0,0,0,0,0,0]
[null,1500,"u","Salary & Wage Related Overheads",{"$f":"COUNTIF(Col_CCID,$B125)","v":0},{"$f":"SUMIFS(Col_LocalSubtotal,Col_CCID,$B125,Col_Currency,F$4)","v":0},0,0,0,0,0,0,0,0,0,0,0,0,0,0,0,0,0,{"$f":"SUMIFS(Col_Value, Col_CCID,$B125)/DefaultCurrencyRate","v":0},{"$f":"X125/$X$6","v":{"$error":"#DIV/0!"}}]
[null,1509,null,{"$f":"VLOOKUP($B126,MasterCOA,4,0)","v":"Care Insurance"},{"$f":"COUNTIF(Col_SCID,$B126)","v":0},{"$f":"SUMIFS(Col_LocalSubtotal,Col_SCID,$B126,Col_Currency,F$4)","v":0},0,0,0,0,0,0,0,0,0,0,0,0,0,0,0,{"$f":"SUMIFS(Col_LocalSubtotal,Col_SCID,$B126,Col_Currency,V$4)","v":0},0,{"$f":"SUMIFS(Col_Value, Col_SCID,$B126)/VLOOKUP(DefaultCurrency,CurrencyTable,3,0)","v":0}]
[null,1599,null,"Fringes - Salary & Wage Overhead",0,0,0,0,0,0,0,0,0,0,0,0,0,0,0,0,0,0,0,0]
[null,1506,null,"Health Insurance",0,0,0,0,0,0,0,0,0,0,0,0,0,0,0,0,0,0,0,0]
[null,1502,null,"Holiday Pay",0,0,0,0,0,0,0,0,0,0,0,0,0,0,0,0,0,0,0,0]
[null,1501,null,"National Insurance/Payroll Tax",0,0,0,0,0,0,0,0,0,0,0,0,0,0,0,0,0,0,0,0]
[null,1511,null,"(not applicable for UK)",0,0,0,0,0,0,0,0,0,0,0,0,0,0,0,0,0,0,0,0]
[null,1503,null,"Pension Contribution / Superannuation",0,0,0,0,0,0,0,0,0,0,0,0,0,0,0,0,0,0,0,0]
[null,1507,null,"Pension Insurance",0,0,0,0,0,0,0,0,0,0,0,0,0,0,0,0,0,0,0,0]
[null,1505,null,"Social Insurance",0,0,0,0,0,0,0,0,0,0,0,0,0,0,0,0,0,0,0,0]
[null,1510,null,"Trade Association",0,0,0,0,0,0,0,0,0,0,0,0,0,0,0,0,0,0,0,0]
[null,1508,null,"Unemployment Insurance",0,0,0,0,0,0,0,0,0,0,0,0,0,0,0,0,0,0,0,0]
[null,1504,null,"Workers Comp",0,0,0,0,0,0,0,0,0,0,0,0,0,0,0,0,0,0,0,0]
[null,1600,"u","Art Department",{"$f":"COUNTIF(Col_CCID,$B138)","v":0},{"$f":"SUMIFS(Col_LocalSubtotal,Col_CCID,$B138,Col_Currency,F$4)","v":0},0,0,0,0,0,0,0,0,0,0,0,0,0,0,0,0,0,{"$f":"SUMIFS(Col_Value, Col_CCID,$B138)/DefaultCurrencyRate","v":0},{"$f":"X138/$X$6","v":{"$error":"#DIV/0!"}}]
[null,1601,null,{"$f":"VLOOKUP($B139,MasterCOA,4,0)","v":"Art Director"},{"$f":"COUNTIF(Col_SCID,$B139)","v":0},{"$f":"SUMIFS(Col_LocalSubtotal,Col_SCID,$B139,Col_Currency,F$4)","v":0},0,0,0,0,0,0,0,0,0,0,0,0,0,0,0,{"$f":"SUMIFS(Col_LocalSubtotal,Col_SCID,$B139,Col_Currency,V$4)","v":0},0,{"$f":"SUMIFS(Col_Value, Col_SCID,$B139)/VLOOKUP(DefaultCurrency,CurrencyTable,3,0)","v":0}]
[null,1602,null,"Art PA",0,0,0,0,0,0,0,0,0,0,0,0,0,0,0,0,0,0,0,0]
[null,1603,null,"Assistant Art Director",0,0,0,0,0,0,0,0,0,0,0,0,0,0,0,0,0,0,0,0]
[null,1626,null,"Backdrops / Backgrounds",0,0,0,0,0,0,0,0,0,0,0,0,0,0,0,0,0,0,0,0]
[null,1623,null,"Carpenter",0,0,0,0,0,0,0,0,0,0,0,0,0,0,0,0,0,0,0,0]
[null,1616,null,"Construction Crew",0,0,0,0,0,0,0,0,0,0,0,0,0,0,0,0,0,0,0,0]
[null,1615,null,"Construction Manager",0,0,0,0,0,0,0,0,0,0,0,0,0,0,0,0,0,0,0,0]
[null,1617,null,"Deconstruction Crew",0,0,0,0,0,0,0,0,0,0,0,0,0,0,0,0,0,0,0,0]
[null,1622,null,"Double AD",0,0,0,0,0,0,0,0,0,0,0,0,0,0,0,0,0,0,0,0]
[null,1631,null,"(not applicable for UK)",0,0,0,0,0,0,0,0,0,0,0,0,0,0,0,0,0,0,0,0]
[null,1699,null,"Fringes - Art Department",0,{"$f":"SUMIFS(Col_LocalSubtotal,Col_SCID,$B149,Col_Currency,F$4)","v":0},0,0,0,0,0,0,0,0,0,0,0,0,0,0,0,0,0,0]
[null,1618,null,"Labour",0,0,0,0,0,0,0,0,0,0,0,0,0,0,0,0,0,0,0,0]
[null,1619,null,"Painters / Scenic Artists",0,0,0,0,0,0,0,0,0,0,0,0,0,0,0,0,0,0,0,0]
[null,1604,null,"Production Designer ",0,0,0,0,0,0,0,0,0,0,0,0,0,0,0,0,0,0,0,0]
[null,1625,null,"Property Suppliers",0,0,0,0,0,0,0,0,0,0,0,0,0,0,0,0,0,0,0,0]
[null,1605,null,"Props ",0,0,0,0,0,0,0,0,0,0,0,0,0,0,0,0,0,0,0,0]
[null,1607,null,"Props Help",0,0,0,0,0,0,0,0,0,0,0,0,0,0,0,0,0,0,0,0]
[null,1606,null,"Props Master",0,0,0,0,0,0,0,0,0,0,0,0,0,0,0,0,0,0,0,0]
[null,1608,null,"Set Construction ",0,0,0,0,0,0,0,0,0,0,0,0,0,0,0,0,0,0,0,0]
[null,1627,null,"Set Design",0,0,0,0,0,0,0,0,0,0,0,0,0,0,0,0,0,0,0,0]
[null,1628,null,"Set Design- Designer fee",0,{"$f":"SUMIFS(Col_LocalSubtotal,Col_SCID,$B159,Col_Currency,F$4)","v":0},0,0,0,0,0,0,0,0,0,0,0,0,0,0,0,0,0,0]
[null,1609,null,"Set Dresser ",0,0,0,0,0,0,0,0,0,0,0,0,0,0,0,0,0,0,0,0]
[null,1611,null,"(not applicable for UK)",0,0,0,0,0,0,0,0,0,0,0,0,0,0,0,0,0,0,0,0]
[null,1610,null,"Set Rentals ",0,0,0,0,0,0,0,0,0,0,0,0,0,0,0,0,0,0,0,0]
[null,1621,null,"Set Transport",0,0,0,0,0,0,0,0,0,0,0,0,0,0,0,0,0,0,0,0]
[null,1624,null,"Setting Boys",0,0,0,0,0,0,0,0,0,0,0,0,0,0,0,0,0,0,0,0]
[null,1612,null,"Special Effects ",0,0,0,0,0,0,0,0,0,0,0,0,0,0,0,0,0,0,0,0]
[null,1620,null,"Standby Art",0,0,0,0,0,0,0,0,0,0,0,0,0,0,0,0,0,0,0,0]
[null,1613,null,"Storage",0,0,0,0,0,0,0,0,0,0,0,0,0,0,0,0,0,0,0,0]
[null,1630,null,"Supplies and Materials",0,0,0,0,0,0,0,0,0,0,0,0,0,0,0,0,0,0,0,0]
[null,1629,null,"Test Manager",0,0,0,0,0,0,0,0,0,0,0,0,0,0,0,0,0,0,0,0]
[null,1614,null,"Weapons Master / Armourer",0,0,0,0,0,0,0,0,0,0,0,0,0,0,0,0,0,0,0,0]
[null,1700,"u","Wardrobe/ Make Up/ Hair",{"$f":"COUNTIF(Col_CCID,$B171)","v":0},{"$f":"SUMIFS(Col_LocalSubtotal,Col_CCID,$B171,Col_Currency,F$4)","v":0},0,0,0,0,0,0,0,0,0,0,0,0,0,0,0,0,0,{"$f":"SUMIFS(Col_Value, Col_CCID,$B171)/DefaultCurrencyRate","v":0},{"$f":"X171/$X$6","v":{"$error":"#DIV/0!"}}]
[null,1707,null,{"$f":"VLOOKUP($B172,MasterCOA,4,0)","v":"Cleaning / Alterations"},{"$f":"COUNTIF(Col_SCID,$B172)","v":0},{"$f":"SUMIFS(Col_LocalSubtotal,Col_SCID,$B172,Col_Currency,F$4)","v":0},0,0,0,0,0,0,0,0,0,0,0,0,0,0,0,{"$f":"SUMIFS(Col_LocalSubtotal,Col_SCID,$B172,Col_Currency,V$4)","v":0},0,{"$f":"SUMIFS(Col_Value, Col_SCID,$B172)/VLOOKUP(DefaultCurrency,CurrencyTable,3,0)","v":0}]
[null,1718,null,"Costume Designer",0,0,0,0,0,0,0,0,0,0,0,0,0,0,0,0,0,0,0,0]
[null,1705,null,"Dressman",0,0,0,0,0,0,0,0,0,0,0,0,0,0,0,0,0,0,0,0]
[null,1799,null,"Fringes - Wardrobe/Makeup/Hair",0,0,0,0,0,0,0,0,0,0,0,0,0,0,0,0,0,0,0,0]
[null,1713,null,"Hair Dresser",0,0,0,0,0,0,0,0,0,0,0,0,0,0,0,0,0,0,0,0]
[null,1714,null,"Hair Dresser Assistant",0,0,0,0,0,0,0,0,0,0,0,0,0,0,0,0,0,0,0,0]
[null,1715,null,"Kit rental",0,0,0,0,0,0,0,0,0,0,0,0,0,0,0,0,0,0,0,0]
[null,1717,null,"Main Talent Hair ",0,0,0,0,0,0,0,0,0,0,0,0,0,0,0,0,0,0,0,0]
[null,1712,null,"Main Talent Make-Up ",0,0,0,0,0,0,0,0,0,0,0,0,0,0,0,0,0,0,0,0]
[null,1708,null,"Main Talent Wardrobe ",0,0,0,0,0,0,0,0,0,0,0,0,0,0,0,0,0,0,0,0]
[null,1709,null,"Make-Up Artist",0,{"$f":"SUMIFS(Col_LocalSubtotal,Col_SCID,$B182,Col_Currency,F$4)","v":0},0,0,0,0,0,0,0,0,0,0,0,0,0,0,0,0,0,0]
[null,1710,null,"Make-Up Assistant",0,0,0,0,0,0,0,0,0,0,0,0,0,0,0,0,0,0,0,0]
[null,1711,null,"Make-up Consumables",0,0,0,0,0,0,0,0,0,0,0,0,0,0,0,0,0,0,0,0]
[null,1719,null,"Overtime",0,0,0,0,0,0,0,0,0,0,0,0,0,0,0,0,0,0,0,0]
[null,1704,null,"Seamstress",0,0,0,0,0,0,0,0,0,0,0,0,0,0,0,0,0,0,0,0]
[null,1706,null,"Specialist / Proctective  Clothing",0,0,0,0,0,0,0,0,0,0,0,0,0,0,0,0,0,0,0,0]
[null,1703,null,"Wardrobe assistant",0,0,0,0,0,0,0,0,0,0,0,0,0,0,0,0,0,0,0,0]
[null,1701,null,"Wardrobe Purchases / Rentals / Allowances",0,0,0,0,0,0,0,0,0,0,0,0,0,0,0,0,0,0,0,0]
[null,1702,null,"Wardrobe stylist",0,0,0,0,0,0,0,0,0,0,0,0,0,0,0,0,0,0,0,0]
[null,1716,null,"Wigs ",0,0,0,0,0,0,0,0,0,0,0,0,0,0,0,0,0,0,0,0]
[null,1800,"u","Camera Crew & Equipment",{"$f":"COUNTIF(Col_CCID,$B192)","v":0},{"$f":"SUMIFS(Col_LocalSubtotal,Col_CCID,$B192,Col_Currency,F$4)","v":0},0,0,0,0,0,0,0,0,0,0,0,0,0,0,0,0,0,{"$f":"SUMIFS(Col_Value, Col_CCID,$B192)/DefaultCurrencyRate","v":0},{"$f":"X192/$X$6","v":{"$error":"#DIV/0!"}}]
[null,1812,null,{"$f":"VLOOKUP($B193,MasterCOA,4,0)","v":"Aerials (not Drones)"},{"$f":"COUNTIF(Col_SCID,$B193)","v":0},{"$f":"SUMIFS(Col_LocalSubtotal,Col_SCID,$B193,Col_Currency,F$4)","v":0},0,0,0,0,0,0,0,0,0,0,0,0,0,0,0,{"$f":"SUMIFS(Col_LocalSubtotal,Col_SCID,$B193,Col_Currency,V$4)","v":0},0,{"$f":"SUMIFS(Col_Value, Col_SCID,$B193)/VLOOKUP(DefaultCurrency,CurrencyTable,3,0)","v":0}]
[null,1814,null,"Camera Accessories (Lenses, etc.)",0,0,0,0,0,0,0,0,0,0,0,0,0,0,0,0,0,0,0,0]
[null,1803,null,"Camera Assistant",0,0,0,0,0,0,0,0,0,0,0,0,0,0,0,0,0,0,0,0]
[null,1820,null,"Camera Consumables / Expendables",0,0,0,0,0,0,0,0,0,0,0,0,0,0,0,0,0,0,0,0]
[null,1813,null,"Camera Kit",0,0,0,0,0,0,0,0,0,0,0,0,0,0,0,0,0,0,0,0]
[null,1802,null,"Camera Operator",0,0,0,0,0,0,0,0,0,0,0,0,0,0,0,0,0,0,0,0]
[null,1822,null,"Camera Platforms",0,0,0,0,0,0,0,0,0,0,0,0,0,0,0,0,0,0,0,0]
[null,1826,null,"CCU (camera control unit )",0,0,0,0,0,0,0,0,0,0,0,0,0,0,0,0,0,0,0,0]
[null,1828,null,"Cherry Picker / Crane",0,0,0,0,0,0,0,0,0,0,0,0,0,0,0,0,0,0,0,0]
[null,1801,null,"Director of Photography",0,0,0,0,0,0,0,0,0,0,0,0,0,0,0,0,0,0,0,0]
[null,1805,null,"DIT / Media / Data Wrangler",0,{"$f":"SUMIFS(Col_LocalSubtotal,Col_SCID,$B203,Col_Currency,F$4)","v":0},0,0,0,0,0,0,0,0,0,0,0,0,0,0,0,0,0,0]
[null,1829,null,"Dolly ",0,0,0,0,0,0,0,0,0,0,0,0,0,0,0,0,0,0,0,0]
[null,1811,null,"Drone Equipment",0,0,0,0,0,0,0,0,0,0,0,0,0,0,0,0,0,0,0,0]
[null,1810,null,"Drone Operator",0,0,0,0,0,0,0,0,0,0,0,0,0,0,0,0,0,0,0,0]
[null,1819,null,"Equipment Purchase",0,0,0,0,0,0,0,0,0,0,0,0,0,0,0,0,0,0,0,0]
[null,1899,null,"Fringes - Camera Crew & Equipment",0,0,0,0,0,0,0,0,0,0,0,0,0,0,0,0,0,0,0,0]
[null,1808,null,"Jib Equipment",0,0,0,0,0,0,0,0,0,0,0,0,0,0,0,0,0,0,0,0]
[null,1807,null,"Jib Operator",0,0,0,0,0,0,0,0,0,0,0,0,0,0,0,0,0,0,0,0]
[null,1821,null,"Laptop",0,0,0,0,0,0,0,0,0,0,0,0,0,0,0,0,0,0,0,0]
[null,1833,null,"(not applicable for UK)",0,0,0,0,0,0,0,0,0,0,0,0,0,0,0,0,0,0,0,0]
[null,1898,null,"Miscellanous - Camera Crew & Equipment",0,{"$f":"SUMIFS(Col_LocalSubtotal,Col_SCID,$B213,Col_Currency,F$4)","v":0},0,0,0,0,0,0,0,0,0,0,0,0,0,0,0,{"$f":"SUMIFS(Col_LocalSubtotal,Col_SCID,$B213,Col_Currency,V$4)","v":0},0,0]
[null,1832,null,"(not applicable for UK)",0,0,0,0,0,0,0,0,0,0,0,0,0,0,0,0,0,0,0,0]
[null,1831,null,"PSC Crew",0,0,0,0,0,0,0,0,0,0,0,0,0,0,0,0,0,0,0,0]
[null,1816,null,"Specialty Camera (GoPros, Mini-Cam, Remote etc.)",0,0,0,0,0,0,0,0,0,0,0,0,0,0,0,0,0,0,0,0]
[null,1817,null,"Specialty Camera Operator",0,0,0,0,0,0,0,0,0,0,0,0,0,0,0,0,0,0,0,0]
[null,1809,null,"Steadicam",0,0,0,0,0,0,0,0,0,0,0,0,0,0,0,0,0,0,0,0]
[null,1818,null,"Stills Camera",0,0,0,0,0,0,0,0,0,0,0,0,0,0,0,0,0,0,0,0]
[null,1815,null,"Stock/Drives/Cards/Readers",0,0,0,0,0,0,0,0,0,0,0,0,0,0,0,0,0,0,0,0]
[null,1824,null,"Technician Assistant ",0,0,0,0,0,0,0,0,0,0,0,0,0,0,0,0,0,0,0,0]
[null,1823,null,"Technician Coordinator",0,0,0,0,0,0,0,0,0,0,0,0,0,0,0,0,0,0,0,0]
[null,1830,null,"Tracks etc",0,0,0,0,0,0,0,0,0,0,0,0,0,0,0,0,0,0,0,0]
[null,1804,null,"Underwater Camera Operator",0,0,0,0,0,0,0,0,0,0,0,0,0,0,0,0,0,0,0,0]
[null,1806,null,"Utility",0,0,0,0,0,0,0,0,0,0,0,0,0,0,0,0,0,0,0,0]
[null,1825,null,"Video Journalist",0,0,0,0,0,0,0,0,0,0,0,0,0,0,0,0,0,0,0,0]
[null,1827,null,"Walkie Talkies",0,0,0,0,0,0,0,0,0,0,0,0,0,0,0,0,0,0,0,0]
[null,1900,"u","Sound Crew & Equipment",{"$f":"COUNTIF(Col_CCID,$B228)","v":0},{"$f":"SUMIFS(Col_LocalSubtotal,Col_CCID,$B228,Col_Currency,F$4)","v":0},0,0,0,0,0,0,0,0,0,0,0,0,0,0,0,0,0,{"$f":"SUMIFS(Col_Value, Col_CCID,$B228)/DefaultCurrencyRate","v":0},{"$f":"X228/$X$6","v":{"$error":"#DIV/0!"}}]
[null,1906,null,{"$f":"VLOOKUP($B229,MasterCOA,4,0)","v":"Audio 1"},{"$f":"COUNTIF(Col_SCID,$B229)","v":0},{"$f":"SUMIFS(Col_LocalSubtotal,Col_SCID,$B229,Col_Currency,F$4)","v":0},0,0,0,0,0,0,0,0,0,0,0,0,0,0,0,{"$f":"SUMIFS(Col_LocalSubtotal,Col_SCID,$B229,Col_Currency,V$4)","v":0},0,{"$f":"SUMIFS(Col_Value, Col_SCID,$B229)/VLOOKUP(DefaultCurrency,CurrencyTable,3,0)","v":0}]
[null,1907,null,"Audio 2",0,0,0,0,0,0,0,0,0,0,0,0,0,0,0,0,0,0,0,0]
[null,1908,null,"Boom Operator",0,0,0,0,0,0,0,0,0,0,0,0,0,0,0,0,0,0,0,0]
[null,1999,null,"Fringes - Sound Crew & Equipment",0,0,0,0,0,0,0,0,0,0,0,0,0,0,0,0,0,0,0,0]
[null,1998,null,"Miscellanous - Sound Crew & Equipment",0,0,0,0,0,0,0,0,0,0,0,0,0,0,0,0,0,0,0,0]
[null,1910,null,"Sound Assistant",0,0,0,0,0,0,0,0,0,0,0,0,0,0,0,0,0,0,0,0]
[null,1902,null,"Sound Consumables / Expendables",0,0,0,0,0,0,0,0,0,0,0,0,0,0,0,0,0,0,0,0]
[null,1909,null,"Sound Designer",0,0,0,0,0,0,0,0,0,0,0,0,0,0,0,0,0,0,0,0]
[null,1901,null,"Sound Kit / Package",0,0,0,0,0,0,0,0,0,0,0,0,0,0,0,0,0,0,0,0]
[null,1903,null,"Sound Recordist",0,0,0,0,0,0,0,0,0,0,0,0,0,0,0,0,0,0,0,0]
[null,1904,null,"Sound Reduction",0,0,0,0,0,0,0,0,0,0,0,0,0,0,0,0,0,0,0,0]
[null,1905,null,"Specialist Sound Kit",0,0,0,0,0,0,0,0,0,0,0,0,0,0,0,0,0,0,0,0]
[null,2000,"u","Lighting Crew & Equipment",{"$f":"COUNTIF(Col_CCID,$B241)","v":0},{"$f":"SUMIFS(Col_LocalSubtotal,Col_CCID,$B241,Col_Currency,F$4)","v":0},0,0,0,0,0,0,0,0,0,0,0,0,0,0,0,0,0,{"$f":"SUMIFS(Col_Value, Col_CCID,$B241)/DefaultCurrencyRate","v":0},{"$f":"X241/$X$6","v":{"$error":"#DIV/0!"}}]
[null,2009,null,{"$f":"VLOOKUP($B242,MasterCOA,4,0)","v":"Best Boy"},{"$f":"COUNTIF(Col_SCID,$B242)","v":0},{"$f":"SUMIFS(Col_LocalSubtotal,Col_SCID,$B242,Col_Currency,F$4)","v":0},0,0,0,0,0,0,0,0,0,0,0,0,0,0,0,{"$f":"SUMIFS(Col_LocalSubtotal,Col_SCID,$B242,Col_Currency,V$4)","v":0},0,{"$f":"SUMIFS(Col_Value, Col_SCID,$B242)/VLOOKUP(DefaultCurrency,CurrencyTable,3,0)","v":0}]
[null,2014,null,"Board Op",0,0,0,0,0,0,0,0,0,0,0,0,0,0,0,0,0,0,0,0]
[null,2005,null,"Electrician",0,0,0,0,0,0,0,0,0,0,0,0,0,0,0,0,0,0,0,0]
[null,2099,null,"Fringes - Lighting Crew & Equipment",0,0,0,0,0,0,0,0,0,0,0,0,0,0,0,0,0,0,0,0]
[null,2004,null,"Gaffer",0,0,0,0,0,0,0,0,0,0,0,0,0,0,0,0,0,0,0,0]
[null,2008,null,"Grip Package / Rig",0,0,0,0,0,0,0,0,0,0,0,0,0,0,0,0,0,0,0,0]
[null,2007,null,"Grip(s)",0,0,0,0,0,0,0,0,0,0,0,0,0,0,0,0,0,0,0,0]
[null,2006,null,"Key Grip",0,0,0,0,0,0,0,0,0,0,0,0,0,0,0,0,0,0,0,0]
[null,2016,null,"Light design",0,0,0,0,0,0,0,0,0,0,0,0,0,0,0,0,0,0,0,0]
[null,2003,null,"Lighting Assistant",0,0,0,0,0,0,0,0,0,0,0,0,0,0,0,0,0,0,0,0]
[null,2011,null,"Lighting Consumables / Expendables",0,{"$f":"SUMIFS(Col_LocalSubtotal,Col_SCID,$B252,Col_Currency,F$4)","v":0},0,0,0,0,0,0,0,0,0,0,0,0,0,0,0,0,0,0]
[null,2002,null,"Lighting Director",0,0,0,0,0,0,0,0,0,0,0,0,0,0,0,0,0,0,0,0]
[null,2001,null,"Lighting Kit / Package",0,0,0,0,0,0,0,0,0,0,0,0,0,0,0,0,0,0,0,0]
[null,2012,null,"Lightmen",0,0,0,0,0,0,0,0,0,0,0,0,0,0,0,0,0,0,0,0]
[null,2018,null,"(not applicable for UK)",0,0,0,0,0,0,0,0,0,0,0,0,0,0,0,0,0,0,0,0]
[null,2098,null,"Miscellaneous - Lighting Crew & Equipment",0,0,0,0,0,0,0,0,0,0,0,0,0,0,0,0,0,0,0,0]
[null,2015,null,"Mobile Power for Lighting (with fuel)",0,0,0,0,0,0,0,0,0,0,0,0,0,0,0,0,0,0,0,0]
[null,2017,null,"Rig lamps",0,0,0,0,0,0,0,0,0,0,0,0,0,0,0,0,0,0,0,0]
[null,2010,null,"Specialist Lighting (underwater etc.)",0,0,0,0,0,0,0,0,0,0,0,0,0,0,0,0,0,0,0,0]
[null,2013,null,"Tarafa Boys (Catwalk)",0,0,0,0,0,0,0,0,0,0,0,0,0,0,0,0,0,0,0,0]
[null,2100,"u","Location Expenses - Studio",{"$f":"COUNTIF(Col_CCID,$B262)","v":0},{"$f":"SUMIFS(Col_LocalSubtotal,Col_CCID,$B262,Col_Currency,F$4)","v":0},0,0,0,0,0,0,0,0,0,0,0,0,0,0,0,0,0,{"$f":"SUMIFS(Col_Value, Col_CCID,$B262)/DefaultCurrencyRate","v":0},{"$f":"X262/$X$6","v":{"$error":"#DIV/0!"}}]
[null,2177,null,{"$f":"VLOOKUP($B263,MasterCOA,4,0)","v":"AC operator"},{"$f":"COUNTIF(Col_SCID,$B263)","v":0},{"$f":"SUMIFS(Col_LocalSubtotal,Col_SCID,$B263,Col_Currency,F$4)","v":0},0,0,0,0,0,0,0,0,0,0,0,0,0,0,0,{"$f":"SUMIFS(Col_LocalSubtotal,Col_SCID,$B263,Col_Currency,V$4)","v":0},0,{"$f":"SUMIFS(Col_Value, Col_SCID,$B263)/VLOOKUP(DefaultCurrency,CurrencyTable,3,0)","v":0}]
[null,2137,null,"Assistant Floor Manager",0,0,0,0,0,0,0,0,0,0,0,0,0,0,0,0,0,0,0,0]
[null,2143,null,"Aston Operator",0,0,0,0,0,0,0,0,0,0,0,0,0,0,0,0,0,0,0,0]
[null,2141,null,"Audience Manager",0,0,0,0,0,0,0,0,0,0,0,0,0,0,0,0,0,0,0,0]
[null,2138,null,"Audience Monitors",0,0,0,0,0,0,0,0,0,0,0,0,0,0,0,0,0,0,0,0]
[null,2139,null,"Audience PA",0,0,0,0,0,0,0,0,0,0,0,0,0,0,0,0,0,0,0,0]
[null,2142,null,"Audience Seating",0,0,0,0,0,0,0,0,0,0,0,0,0,0,0,0,0,0,0,0]
[null,2140,null,"Audience Wranglers",0,0,0,0,0,0,0,0,0,0,0,0,0,0,0,0,0,0,0,0]
[null,2168,null,"Audio Assistant",0,0,0,0,0,0,0,0,0,0,0,0,0,0,0,0,0,0,0,0]
[null,2106,null,"Broadcast Gear Rentals - Studio ",0,0,0,0,0,0,0,0,0,0,0,0,0,0,0,0,0,0,0,0]
[null,2145,null,"Camera Peds",0,{"$f":"SUMIFS(Col_LocalSubtotal,Col_SCID,$B273,Col_Currency,F$4)","v":0},0,0,0,0,0,0,0,0,0,0,0,0,0,0,0,0,0,0]
[null,2146,null,"Camera Supervisor",0,0,0,0,0,0,0,0,0,0,0,0,0,0,0,0,0,0,0,0]
[null,2183,null,"Cleaning",0,0,0,0,0,0,0,0,0,0,0,0,0,0,0,0,0,0,0,0]
[null,2147,null,"Console Operator",0,0,0,0,0,0,0,0,0,0,0,0,0,0,0,0,0,0,0,0]
[null,2148,null,"De-rig Crew",0,0,0,0,0,0,0,0,0,0,0,0,0,0,0,0,0,0,0,0]
[null,2149,null,"Dressing Rooms",0,0,0,0,0,0,0,0,0,0,0,0,0,0,0,0,0,0,0,0]
[null,2175,null,"Floor Incharge",0,0,0,0,0,0,0,0,0,0,0,0,0,0,0,0,0,0,0,0]
[null,2136,null,"Floor Manager",0,0,0,0,0,0,0,0,0,0,0,0,0,0,0,0,0,0,0,0]
[null,2199,null,"Fringes - Studio",0,0,0,0,0,0,0,0,0,0,0,0,0,0,0,0,0,0,0,0]
[null,2150,null,"Grams Operator",0,0,0,0,0,0,0,0,0,0,0,0,0,0,0,0,0,0,0,0]
[null,2151,null,"Green Room",0,{"$f":"SUMIFS(Col_LocalSubtotal,Col_SCID,$B283,Col_Currency,F$4)","v":0},0,0,0,0,0,0,0,0,0,0,0,0,0,0,0,{"$f":"SUMIFS(Col_LocalSubtotal,Col_SCID,$B283,Col_Currency,V$4)","v":0},0,0]
[null,2174,null,"Housekeeping",0,0,0,0,0,0,0,0,0,0,0,0,0,0,0,0,0,0,0,0]
[null,2153,null,"Jib / Crane Assistant",0,0,0,0,0,0,0,0,0,0,0,0,0,0,0,0,0,0,0,0]
[null,2152,null,"Jib / Crane Operator",0,0,0,0,0,0,0,0,0,0,0,0,0,0,0,0,0,0,0,0]
[null,2155,null,"Main & ISO Record",0,0,0,0,0,0,0,0,0,0,0,0,0,0,0,0,0,0,0,0]
[null,2182,null,"Makeup Rooms",0,0,0,0,0,0,0,0,0,0,0,0,0,0,0,0,0,0,0,0]
[null,2198,null,"Miscellaneous - Studio",0,0,0,0,0,0,0,0,0,0,0,0,0,0,0,0,0,0,0,0]
[null,2119,null,"Motorhomes / Trailers- Studio  ",0,0,0,0,0,0,0,0,0,0,0,0,0,0,0,0,0,0,0,0]
[null,2178,null,"PCR Room",0,0,0,0,0,0,0,0,0,0,0,0,0,0,0,0,0,0,0,0]
[null,2179,null,"Production / Property Room",0,0,0,0,0,0,0,0,0,0,0,0,0,0,0,0,0,0,0,0]
[null,2156,null,"Production Office",0,{"$f":"SUMIFS(Col_LocalSubtotal,Col_SCID,$B293,Col_Currency,F$4)","v":0},0,0,0,0,0,0,0,0,0,0,0,0,0,0,0,0,0,0]
[null,2180,null,"Recce Cost",0,0,0,0,0,0,0,0,0,0,0,0,0,0,0,0,0,0,0,0]
[null,2157,null,{"$f":"VLOOKUP($B295,MasterCOA,4,0)","v":"Recording Facilities"},{"$f":"COUNTIF(Col_SCID,$B295)","v":0},0,0,0,0,0,0,0,0,0,0,0,0,0,0,0,0,0,0,{"$f":"SUMIFS(Col_Value, Col_SCID,$B295)/VLOOKUP(DefaultCurrency,CurrencyTable,3,0)","v":0}]
[null,2159,null,"Scenehand / Stagehand",0,0,0,0,0,0,0,0,0,0,0,0,0,0,0,0,0,0,0,0]
[null,2169,null,"Screens",0,0,0,0,0,0,0,0,0,0,0,0,0,0,0,0,0,0,0,0]
[null,2158,null,"Script Supervisor",0,0,0,0,0,0,0,0,0,0,0,0,0,0,0,0,0,0,0,0]
[null,2171,null,"Set Maintence",0,0,0,0,0,0,0,0,0,0,0,0,0,0,0,0,0,0,0,0]
[null,2120,null,"Set Security",0,0,0,0,0,0,0,0,0,0,0,0,0,0,0,0,0,0,0,0]
[null,2172,null,"Setting Material",0,0,0,0,0,0,0,0,0,0,0,0,0,0,0,0,0,0,0,0]
[null,2160,null,"Sound Engineer",0,0,0,0,0,0,0,0,0,0,0,0,0,0,0,0,0,0,0,0]
[null,2161,null,"Sound Supervisor",0,{"$f":"SUMIFS(Col_LocalSubtotal,Col_SCID,$B303,Col_Currency,F$4)","v":0},0,0,0,0,0,0,0,0,0,0,0,0,0,0,0,{"$f":"SUMIFS(Col_LocalSubtotal,Col_SCID,$B303,Col_Currency,V$4)","v":0},0,0]
[null,2121,null,"Special Effects- Studio ",0,0,0,0,0,0,0,0,0,0,0,0,0,0,0,0,0,0,0,0]
[null,2122,null,"Stage / Studio Manager ",0,0,0,0,0,0,0,0,0,0,0,0,0,0,0,0,0,0,0,0]
[null,2164,null,"Steadicam - Studio",0,0,0,0,0,0,0,0,0,0,0,0,0,0,0,0,0,0,0,0]
[null,2101,null,"Studio / Location Fees",0,0,0,0,0,0,0,0,0,0,0,0,0,0,0,0,0,0,0,0]
[null,2103,null,"Studio A1",0,0,0,0,0,0,0,0,0,0,0,0,0,0,0,0,0,0,0,0]
[null,2104,null,"Studio A2s",0,0,0,0,0,0,0,0,0,0,0,0,0,0,0,0,0,0,0,0]
[null,2105,null,"Studio AD",0,0,0,0,0,0,0,0,0,0,0,0,0,0,0,0,0,0,0,0]
[null,2108,null,"Studio Assistant Camera Ops ",0,0,0,0,0,0,0,0,0,0,0,0,0,0,0,0,0,0,0,0]
[null,2176,null,"Studio Attendant",0,0,0,0,0,0,0,0,0,0,0,0,0,0,0,0,0,0,0,0]
[null,2144,null,"Studio Boom Operator",0,{"$f":"SUMIFS(Col_LocalSubtotal,Col_SCID,$B313,Col_Currency,F$4)","v":0},0,0,0,0,0,0,0,0,0,0,0,0,0,0,0,0,0,0]
[null,2107,null,"Studio Camera Ops ",0,0,0,0,0,0,0,0,0,0,0,0,0,0,0,0,0,0,0,0]
[null,2185,null,"Studio Catering",0,0,0,0,0,0,0,0,0,0,0,0,0,0,0,0,0,0,0,0]
[null,2109,null,"Studio Control Room / TV Production Truck(s)",0,0,0,0,0,0,0,0,0,0,0,0,0,0,0,0,0,0,0,0]
[null,2184,null,"Studio Crafty",0,0,0,0,0,0,0,0,0,0,0,0,0,0,0,0,0,0,0,0]
[null,2111,null,"Studio Electricians",0,0,0,0,0,0,0,0,0,0,0,0,0,0,0,0,0,0,0,0]
[null,2112,null,"Studio EVS Op",0,0,0,0,0,0,0,0,0,0,0,0,0,0,0,0,0,0,0,0]
[null,2113,null,"Studio Gaffer",0,0,0,0,0,0,0,0,0,0,0,0,0,0,0,0,0,0,0,0]
[null,2114,null,"Studio Generators ",0,0,0,0,0,0,0,0,0,0,0,0,0,0,0,0,0,0,0,0]
[null,2115,null,"Studio Lighting Director",0,0,0,0,0,0,0,0,0,0,0,0,0,0,0,0,0,0,0,0]
[null,2154,null,"Studio Lighting Rig",0,{"$f":"SUMIFS(Col_LocalSubtotal,Col_SCID,$B323,Col_Currency,F$4)","v":0},0,0,0,0,0,0,0,0,0,0,0,0,0,0,0,{"$f":"SUMIFS(Col_LocalSubtotal,Col_SCID,$B323,Col_Currency,V$4)","v":0},0,0]
[null,2116,null,"Studio Lighting Technician",0,0,0,0,0,0,0,0,0,0,0,0,0,0,0,0,0,0,0,0]
[null,2117,null,"Studio Location Manager ",0,0,0,0,0,0,0,0,0,0,0,0,0,0,0,0,0,0,0,0]
[null,2102,null,"Studio Location Permit(s)",0,0,0,0,0,0,0,0,0,0,0,0,0,0,0,0,0,0,0,0]
[null,2118,null,{"$f":"VLOOKUP($B327,MasterCOA,4,0)","v":"Studio Location Staff"},{"$f":"COUNTIF(Col_SCID,$B327)","v":0},0,0,0,0,0,0,0,0,0,0,0,0,0,0,0,0,0,0,{"$f":"SUMIFS(Col_Value, Col_SCID,$B327)/VLOOKUP(DefaultCurrency,CurrencyTable,3,0)","v":0}]
[null,2163,null,"Studio Package",0,0,0,0,0,0,0,0,0,0,0,0,0,0,0,0,0,0,0,0]
[null,2162,null,"Studio Sound kit / PA",0,0,0,0,0,0,0,0,0,0,0,0,0,0,0,0,0,0,0,0]
[null,2124,null,"Studio Tape Op / Media Manager ",0,0,0,0,0,0,0,0,0,0,0,0,0,0,0,0,0,0,0,0]
[null,2125,null,"Studio TD",0,0,0,0,0,0,0,0,0,0,0,0,0,0,0,0,0,0,0,0]
[null,2126,null,"Studio Technical Manager",0,0,0,0,0,0,0,0,0,0,0,0,0,0,0,0,0,0,0,0]
[null,2127,null,"Studio Technical Supervisor",0,{"$f":"SUMIFS(Col_LocalSubtotal,Col_SCID,$B333,Col_Currency,F$4)","v":0},0,0,0,0,0,0,0,0,0,0,0,0,0,0,0,0,0,0]
[null,2128,null,"Studio Teleprompter / Autocue",0,0,0,0,0,0,0,0,0,0,0,0,0,0,0,0,0,0,0,0]
[null,2129,null,"Studio Teleprompter / Autocue Operator",0,0,0,0,0,0,0,0,0,0,0,0,0,0,0,0,0,0,0,0]
[null,2133,null,"Studio Uplink Trucks & Satellite Time",0,0,0,0,0,0,0,0,0,0,0,0,0,0,0,0,0,0,0,0]
[null,2123,null,"Stunt Vehicles- Studio ",0,0,0,0,0,0,0,0,0,0,0,0,0,0,0,0,0,0,0,0]
[null,2173,null,"Tarapa hire (Catwalk)",0,0,0,0,0,0,0,0,0,0,0,0,0,0,0,0,0,0,0,0]
[null,2130,null,"TIFF's / POTS - Studio ",0,0,0,0,0,0,0,0,0,0,0,0,0,0,0,0,0,0,0,0]
[null,2131,null,"Transmissions -Studio ",0,0,0,0,0,0,0,0,0,0,0,0,0,0,0,0,0,0,0,0]
[null,2132,null,"Truck Rentals- Studio ",0,0,0,0,0,0,0,0,0,0,0,0,0,0,0,0,0,0,0,0]
[null,2170,null,"Utilities (Water, Electricity etc)",0,0,0,0,0,0,0,0,0,0,0,0,0,0,0,0,0,0,0,0]
[null,2181,null,"Vanity Vans",0,{"$f":"SUMIFS(Col_LocalSubtotal,Col_SCID,$B343,Col_Currency,F$4)","v":0},0,0,0,0,0,0,0,0,0,0,0,0,0,0,0,{"$f":"SUMIFS(Col_LocalSubtotal,Col_SCID,$B343,Col_Currency,V$4)","v":0},0,0]
[null,2134,null,"Video Control - Studio ",0,0,0,0,0,0,0,0,0,0,0,0,0,0,0,0,0,0,0,0]
[null,2167,null,"Video Control / VT Operator",0,0,0,0,0,0,0,0,0,0,0,0,0,0,0,0,0,0,0,0]
[null,2165,null,"Vision Mixer / Switcher",0,0,0,0,0,0,0,0,0,0,0,0,0,0,0,0,0,0,0,0]
[null,2166,null,"Vision Supervisor",0,0,0,0,0,0,0,0,0,0,0,0,0,0,0,0,0,0,0,0]
[null,2135,null,"Xpression- Studio ",0,0,0,0,0,0,0,0,0,0,0,0,0,0,0,0,0,0,0,0]
[null,2200,"u","Location Expenses - Field",{"$f":"COUNTIF(Col_CCID,$B349)","v":0},{"$f":"SUMIFS(Col_LocalSubtotal,Col_CCID,$B349,Col_Currency,F$4)","v":0},0,0,0,0,0,0,0,0,0,0,0,0,0,0,0,0,0,{"$f":"SUMIFS(Col_Value, Col_CCID,$B349)/DefaultCurrencyRate","v":0},{"$f":"X349/$X$6","v":{"$error":"#DIV/0!"}}]
[null,2233,null,{"$f":"VLOOKUP($B350,MasterCOA,4,0)","v":"4x4/Specialist Car Hire"},{"$f":"COUNTIF(Col_SCID,$B350)","v":0},{"$f":"SUMIFS(Col_LocalSubtotal,Col_SCID,$B350,Col_Currency,F$4)","v":0},0,0,0,0,0,0,0,0,0,0,0,0,0,0,0,{"$f":"SUMIFS(Col_LocalSubtotal,Col_SCID,$B350,Col_Currency,V$4)","v":0},0,{"$f":"SUMIFS(Col_Value, Col_SCID,$B350)/VLOOKUP(DefaultCurrency,CurrencyTable,3,0)","v":0}]
[null,2251,null,"Big Screens",0,0,0,0,0,0,0,0,0,0,0,0,0,0,0,0,0,0,0,0]
[null,2234,null,"Boat Co-ordinator / Skipper",0,0,0,0,0,0,0,0,0,0,0,0,0,0,0,0,0,0,0,0]
[null,2235,null,"Boat Hire",0,0,0,0,0,0,0,0,0,0,0,0,0,0,0,0,0,0,0,0]
[null,2205,null,"Broadcast Gear Rentals - Field ",0,0,0,0,0,0,0,0,0,0,0,0,0,0,0,0,0,0,0,0]
[null,2236,null,"Camping Equipment",0,0,0,0,0,0,0,0,0,0,0,0,0,0,0,0,0,0,0,0]
[null,2256,null,"(not applicable for UK)",0,0,0,0,0,0,0,0,0,0,0,0,0,0,0,0,0,0,0,0]
[null,2255,null,"DIT Kit Rental",0,0,0,0,0,0,0,0,0,0,0,0,0,0,0,0,0,0,0,0]
[null,2237,null,"Diving Equipment",0,0,0,0,0,0,0,0,0,0,0,0,0,0,0,0,0,0,0,0]
[null,2238,null,"Diving Vessels",0,0,0,0,0,0,0,0,0,0,0,0,0,0,0,0,0,0,0,0]
[null,2221,null,"EVS ",0,{"$f":"SUMIFS(Col_LocalSubtotal,Col_SCID,$B360,Col_Currency,F$4)","v":0},0,0,0,0,0,0,0,0,0,0,0,0,0,0,0,0,0,0]
[null,2213,null,"Field A1",0,0,0,0,0,0,0,0,0,0,0,0,0,0,0,0,0,0,0,0]
[null,2214,null,"Field A2's",0,0,0,0,0,0,0,0,0,0,0,0,0,0,0,0,0,0,0,0]
[null,2212,null,"Field AD",0,0,0,0,0,0,0,0,0,0,0,0,0,0,0,0,0,0,0,0]
[null,2216,null,"Field Camera Ops ",0,0,0,0,0,0,0,0,0,0,0,0,0,0,0,0,0,0,0,0]
[null,2254,null,"Field Catering",0,0,0,0,0,0,0,0,0,0,0,0,0,0,0,0,0,0,0,0]
[null,2204,null,"Field Control Room / TV Production Truck(s)",0,0,0,0,0,0,0,0,0,0,0,0,0,0,0,0,0,0,0,0]
[null,2253,null,"Field Crafty",0,0,0,0,0,0,0,0,0,0,0,0,0,0,0,0,0,0,0,0]
[null,2219,null,"Field Electrics",0,0,0,0,0,0,0,0,0,0,0,0,0,0,0,0,0,0,0,0]
[null,2218,null,"Field Gaffer",0,0,0,0,0,0,0,0,0,0,0,0,0,0,0,0,0,0,0,0]
[null,2227,null,"Field Generators ",0,{"$f":"SUMIFS(Col_LocalSubtotal,Col_SCID,$B370,Col_Currency,F$4)","v":0},0,0,0,0,0,0,0,0,0,0,0,0,0,0,0,{"$f":"SUMIFS(Col_LocalSubtotal,Col_SCID,$B370,Col_Currency,V$4)","v":0},0,0]
[null,2217,null,"Field Lighting Director",0,0,0,0,0,0,0,0,0,0,0,0,0,0,0,0,0,0,0,0]
[null,2208,null,"Field Location Manager ",0,0,0,0,0,0,0,0,0,0,0,0,0,0,0,0,0,0,0,0]
[null,2202,null,"Field Location Permit(s)",0,0,0,0,0,0,0,0,0,0,0,0,0,0,0,0,0,0,0,0]
[null,2210,null,"Field Stage Manager ",0,0,0,0,0,0,0,0,0,0,0,0,0,0,0,0,0,0,0,0]
[null,2222,null,"Field Tape Op / Media Manager ",0,0,0,0,0,0,0,0,0,0,0,0,0,0,0,0,0,0,0,0]
[null,2211,null,"Field TD",0,0,0,0,0,0,0,0,0,0,0,0,0,0,0,0,0,0,0,0]
[null,2209,null,"Field Technical Manager",0,0,0,0,0,0,0,0,0,0,0,0,0,0,0,0,0,0,0,0]
[null,2223,null,"Field Teleprompter / Autocue",0,0,0,0,0,0,0,0,0,0,0,0,0,0,0,0,0,0,0,0]
[null,2224,null,"Field Teleprompter / Autocue Operator",0,0,0,0,0,0,0,0,0,0,0,0,0,0,0,0,0,0,0,0]
[null,2229,null,"Field Uplink Trucks & Satellite Time",0,{"$f":"SUMIFS(Col_LocalSubtotal,Col_SCID,$B380,Col_Currency,F$4)","v":0},0,0,0,0,0,0,0,0,0,0,0,0,0,0,0,0,0,0]
[null,2203,null,"Filming Permit- Government Building ",0,0,0,0,0,0,0,0,0,0,0,0,0,0,0,0,0,0,0,0]
[null,2299,null,{"$f":"VLOOKUP($B382,MasterCOA,4,0)","v":"Fringes - Field"},{"$f":"COUNTIF(Col_SCID,$B382)","v":0},0,0,0,0,0,0,0,0,0,0,0,0,0,0,0,0,0,0,{"$f":"SUMIFS(Col_Value, Col_SCID,$B382)/VLOOKUP(DefaultCurrency,CurrencyTable,3,0)","v":0}]
[null,2239,null,"General Equipment",0,0,0,0,0,0,0,0,0,0,0,0,0,0,0,0,0,0,0,0]
[null,2240,null,"Generator & Fuel",0,0,0,0,0,0,0,0,0,0,0,0,0,0,0,0,0,0,0,0]
[null,2241,null,"Guides/Rangers",0,0,0,0,0,0,0,0,0,0,0,0,0,0,0,0,0,0,0,0]
[null,2242,null,"Helicopters/Fixed Wing",0,0,0,0,0,0,0,0,0,0,0,0,0,0,0,0,0,0,0,0]
[null,2243,null,"Interpreter/Translators",0,0,0,0,0,0,0,0,0,0,0,0,0,0,0,0,0,0,0,0]
[null,2244,null,"Landing/Docking Fees",0,0,0,0,0,0,0,0,0,0,0,0,0,0,0,0,0,0,0,0]
[null,2245,null,"Local Fixer",0,0,0,0,0,0,0,0,0,0,0,0,0,0,0,0,0,0,0,0]
[null,2250,null,"Location Ancillary Costs",0,{"$f":"SUMIFS(Col_LocalSubtotal,Col_SCID,$B390,Col_Currency,F$4)","v":0},0,0,0,0,0,0,0,0,0,0,0,0,0,0,0,{"$f":"SUMIFS(Col_LocalSubtotal,Col_SCID,$B390,Col_Currency,V$4)","v":0},0,0]
[null,2206,null,"Location Security ",0,0,0,0,0,0,0,0,0,0,0,0,0,0,0,0,0,0,0,0]
[null,2298,null,"Miscellaneous - Field",0,0,0,0,0,0,0,0,0,0,0,0,0,0,0,0,0,0,0,0]
[null,2246,null,"Mobile/Cell/SAT Phones",0,0,0,0,0,0,0,0,0,0,0,0,0,0,0,0,0,0,0,0]
[null,2232,null,"Motorhomes / Trailers - Field ",0,0,0,0,0,0,0,0,0,0,0,0,0,0,0,0,0,0,0,0]
[null,2252,null,"PA",0,0,0,0,0,0,0,0,0,0,0,0,0,0,0,0,0,0,0,0]
[null,2247,null,"Porters",0,0,0,0,0,0,0,0,0,0,0,0,0,0,0,0,0,0,0,0]
[null,2248,null,"Ropes",0,0,0,0,0,0,0,0,0,0,0,0,0,0,0,0,0,0,0,0]
[null,2207,null,"(not applicable for UK)",0,0,0,0,0,0,0,0,0,0,0,0,0,0,0,0,0,0,0,0]
[null,2201,null,"Site / Location Fees",0,0,0,0,0,0,0,0,0,0,0,0,0,0,0,0,0,0,0,0]
[null,2225,null,"Special Effects- Field ",0,{"$f":"SUMIFS(Col_LocalSubtotal,Col_SCID,$B400,Col_Currency,F$4)","v":0},0,0,0,0,0,0,0,0,0,0,0,0,0,0,0,0,0,0]
[null,2230,null,"Stunt Vehicles ",0,0,0,0,0,0,0,0,0,0,0,0,0,0,0,0,0,0,0,0]
[null,2226,null,"TIFF's / POTS - Field ",0,0,0,0,0,0,0,0,0,0,0,0,0,0,0,0,0,0,0,0]
[null,2249,null,"Toilets/Portaloo",0,0,0,0,0,0,0,0,0,0,0,0,0,0,0,0,0,0,0,0]
[null,2228,null,"Transmissions - Field ",0,0,0,0,0,0,0,0,0,0,0,0,0,0,0,0,0,0,0,0]
[null,2231,null,"Truck Rentals - Field ",0,0,0,0,0,0,0,0,0,0,0,0,0,0,0,0,0,0,0,0]
[null,2215,null,"Video Control -Field",0,0,0,0,0,0,0,0,0,0,0,0,0,0,0,0,0,0,0,0]
[null,2220,null,"Xpression- Field ",0,0,0,0,0,0,0,0,0,0,0,0,0,0,0,0,0,0,0,0]
[null,2300,"u","Health & Safety / Risk Management",{"$f":"COUNTIF(Col_CCID,$B408)","v":0},{"$f":"SUMIFS(Col_LocalSubtotal,Col_CCID,$B408,Col_Currency,F$4)","v":0},0,0,0,0,0,0,0,0,0,0,0,0,0,0,0,0,0,{"$f":"SUMIFS(Col_Value, Col_CCID,$B408)/DefaultCurrencyRate","v":0},{"$f":"X408/$X$6","v":{"$error":"#DIV/0!"}}]
[null,2317,null,{"$f":"VLOOKUP($B409,MasterCOA,4,0)","v":"Aerial Supervisors"},{"$f":"COUNTIF(Col_SCID,$B409)","v":0},{"$f":"SUMIFS(Col_LocalSubtotal,Col_SCID,$B409,Col_Currency,F$4)","v":0},0,0,0,0,0,0,0,0,0,0,0,0,0,0,0,{"$f":"SUMIFS(Col_LocalSubtotal,Col_SCID,$B409,Col_Currency,V$4)","v":0},0,{"$f":"SUMIFS(Col_Value, Col_SCID,$B409)/VLOOKUP(DefaultCurrency,CurrencyTable,3,0)","v":0}]
[null,2310,null,"Assistant Medics",0,0,0,0,0,0,0,0,0,0,0,0,0,0,0,0,0,0,0,0]
[null,2328,null,"Crew/Talent Medicals",0,0,0,0,0,0,0,0,0,0,0,0,0,0,0,0,0,0,0,0]
[null,2316,null,"Deep Sea Supervisors",0,0,0,0,0,0,0,0,0,0,0,0,0,0,0,0,0,0,0,0]
[null,2330,null,"Dietician/Nutritionist",0,0,0,0,0,0,0,0,0,0,0,0,0,0,0,0,0,0,0,0]
[null,2311,null,"Emergency First Responder",0,0,0,0,0,0,0,0,0,0,0,0,0,0,0,0,0,0,0,0]
[null,2338,null,"Fight Master",0,0,0,0,0,0,0,0,0,0,0,0,0,0,0,0,0,0,0,0]
[null,2335,null,"Fire Marshall",0,0,0,0,0,0,0,0,0,0,0,0,0,0,0,0,0,0,0,0]
[null,2334,null,"First Aid Kit",0,0,0,0,0,0,0,0,0,0,0,0,0,0,0,0,0,0,0,0]
[null,2399,null,"Fringes - H&S/RM",0,0,0,0,0,0,0,0,0,0,0,0,0,0,0,0,0,0,0,0]
[null,2313,null,"GPS Tracking & Comms Support",0,{"$f":"SUMIFS(Col_LocalSubtotal,Col_SCID,$B419,Col_Currency,F$4)","v":0},0,0,0,0,0,0,0,0,0,0,0,0,0,0,0,0,0,0]
[null,2314,null,"GPS Tracking Devices",0,0,0,0,0,0,0,0,0,0,0,0,0,0,0,0,0,0,0,0]
[null,2304,null,"H&S Advisor - Location",0,0,0,0,0,0,0,0,0,0,0,0,0,0,0,0,0,0,0,0]
[null,2303,null,"H&S Advisor - Series",0,0,0,0,0,0,0,0,0,0,0,0,0,0,0,0,0,0,0,0]
[null,2312,null,"H&S Training",0,0,0,0,0,0,0,0,0,0,0,0,0,0,0,0,0,0,0,0]
[null,2327,null,"Medical Supplies",0,0,0,0,0,0,0,0,0,0,0,0,0,0,0,0,0,0,0,0]
[null,2398,null,"Miscellaneous - H&S/RM",0,0,0,0,0,0,0,0,0,0,0,0,0,0,0,0,0,0,0,0]
[null,2302,null,"Nurse",0,0,0,0,0,0,0,0,0,0,0,0,0,0,0,0,0,0,0,0]
[null,2321,null,"Off-Road Drivers",0,0,0,0,0,0,0,0,0,0,0,0,0,0,0,0,0,0,0,0]
[null,2307,null,"Paramedic",0,0,0,0,0,0,0,0,0,0,0,0,0,0,0,0,0,0,0,0]
[null,2331,null,"Physiotherapist",0,{"$f":"SUMIFS(Col_LocalSubtotal,Col_SCID,$B429,Col_Currency,F$4)","v":0},0,0,0,0,0,0,0,0,0,0,0,0,0,0,0,{"$f":"SUMIFS(Col_LocalSubtotal,Col_SCID,$B429,Col_Currency,V$4)","v":0},0,0]
[null,2326,null,"PPE Equipment",0,0,0,0,0,0,0,0,0,0,0,0,0,0,0,0,0,0,0,0]
[null,2333,null,"Psychiatrist / Psychologist",0,0,0,0,0,0,0,0,0,0,0,0,0,0,0,0,0,0,0,0]
[null,2336,null,"Pyrotechnic",0,0,0,0,0,0,0,0,0,0,0,0,0,0,0,0,0,0,0,0]
[null,2309,null,"Risk Assessment / Safety Report",0,0,0,0,0,0,0,0,0,0,0,0,0,0,0,0,0,0,0,0]
[null,2325,null,"Rope Specialist",0,0,0,0,0,0,0,0,0,0,0,0,0,0,0,0,0,0,0,0]
[null,2315,null,"Ropes Unit",0,0,0,0,0,0,0,0,0,0,0,0,0,0,0,0,0,0,0,0]
[null,2337,null,"Safety divers",0,0,0,0,0,0,0,0,0,0,0,0,0,0,0,0,0,0,0,0]
[null,2308,null,"Security",0,0,0,0,0,0,0,0,0,0,0,0,0,0,0,0,0,0,0,0]
[null,2339,null,"Special Effect Master",0,0,0,0,0,0,0,0,0,0,0,0,0,0,0,0,0,0,0,0]
[null,2332,null,"Sports Doctor",0,{"$f":"SUMIFS(Col_LocalSubtotal,Col_SCID,$B439,Col_Currency,F$4)","v":0},0,0,0,0,0,0,0,0,0,0,0,0,0,0,0,0,0,0]
[null,2301,null,"Studio/Set Medic ",0,0,0,0,0,0,0,0,0,0,0,0,0,0,0,0,0,0,0,0]
[null,2323,null,"Stunt Co-ordinator",0,0,0,0,0,0,0,0,0,0,0,0,0,0,0,0,0,0,0,0]
[null,2324,null,"Stunt Double",0,0,0,0,0,0,0,0,0,0,0,0,0,0,0,0,0,0,0,0]
[null,2320,null,"Stunt Drivers",0,0,0,0,0,0,0,0,0,0,0,0,0,0,0,0,0,0,0,0]
[null,2340,null,"(not applicable for UK)",0,0,0,0,0,0,0,0,0,0,0,0,0,0,0,0,0,0,0,0]
[null,2305,null,"Survival Expert/Consultant",0,0,0,0,0,0,0,0,0,0,0,0,0,0,0,0,0,0,0,0]
[null,2329,null,"Traffic & Pedestrian Control",0,0,0,0,0,0,0,0,0,0,0,0,0,0,0,0,0,0,0,0]
[null,2319,null,"Underwater Cave Supervisor",0,0,0,0,0,0,0,0,0,0,0,0,0,0,0,0,0,0,0,0]
[null,2318,null,"Underwater Dive Supervisor",0,0,0,0,0,0,0,0,0,0,0,0,0,0,0,0,0,0,0,0]
[null,2322,null,"Underwater Escape Training",0,0,0,0,0,0,0,0,0,0,0,0,0,0,0,0,0,0,0,0]
[null,2306,null,"Unit Medic",0,0,0,0,0,0,0,0,0,0,0,0,0,0,0,0,0,0,0,0]
[null,2400,"u","Post Production Team",{"$f":"COUNTIF(Col_CCID,$B451)","v":0},{"$f":"SUMIFS(Col_LocalSubtotal,Col_CCID,$B451,Col_Currency,F$4)","v":0},0,0,0,0,0,0,0,0,0,0,0,0,0,0,0,0,0,{"$f":"SUMIFS(Col_Value, Col_CCID,$B451)/DefaultCurrencyRate","v":0},{"$f":"X451/$X$6","v":{"$error":"#DIV/0!"}}]
[null,2407,null,{"$f":"VLOOKUP($B452,MasterCOA,4,0)","v":"Assistant Editors"},{"$f":"COUNTIF(Col_SCID,$B452)","v":0},{"$f":"SUMIFS(Col_LocalSubtotal,Col_SCID,$B452,Col_Currency,F$4)","v":0},0,0,0,0,0,0,0,0,0,0,0,0,0,0,0,{"$f":"SUMIFS(Col_LocalSubtotal,Col_SCID,$B452,Col_Currency,V$4)","v":0},0,{"$f":"SUMIFS(Col_Value, Col_SCID,$B452)/VLOOKUP(DefaultCurrency,CurrencyTable,3,0)","v":0}]
[null,2413,null,"Deliverables Coordinator ",0,0,0,0,0,0,0,0,0,0,0,0,0,0,0,0,0,0,0,0]
[null,2415,null,"Dubber",0,0,0,0,0,0,0,0,0,0,0,0,0,0,0,0,0,0,0,0]
[null,2406,null,"Editor",0,0,0,0,0,0,0,0,0,0,0,0,0,0,0,0,0,0,0,0]
[null,2499,null,"Fringes - Post Production Team",0,0,0,0,0,0,0,0,0,0,0,0,0,0,0,0,0,0,0,0]
[null,2405,null,"Lead Editor",0,0,0,0,0,0,0,0,0,0,0,0,0,0,0,0,0,0,0,0]
[null,2414,null,"Loader ",0,0,0,0,0,0,0,0,0,0,0,0,0,0,0,0,0,0,0,0]
[null,2408,null,"Loggers / Transcribers / Logging Assistants",0,0,0,0,0,0,0,0,0,0,0,0,0,0,0,0,0,0,0,0]
[null,2404,null,"Post Production Assistant",0,0,0,0,0,0,0,0,0,0,0,0,0,0,0,0,0,0,0,0]
[null,2403,null,"Post Production Coordinator",0,0,0,0,0,0,0,0,0,0,0,0,0,0,0,0,0,0,0,0]
[null,2401,null,"Post Production Manager",0,{"$f":"SUMIFS(Col_LocalSubtotal,Col_SCID,$B462,Col_Currency,F$4)","v":0},0,0,0,0,0,0,0,0,0,0,0,0,0,0,0,0,0,0]
[null,2402,null,"Post Production Supervisor ",0,0,0,0,0,0,0,0,0,0,0,0,0,0,0,0,0,0,0,0]
[null,2410,null,"Post Technical Supervisor",0,0,0,0,0,0,0,0,0,0,0,0,0,0,0,0,0,0,0,0]
[null,2411,null,"Technical Support",0,0,0,0,0,0,0,0,0,0,0,0,0,0,0,0,0,0,0,0]
[null,2412,null,"Transcriptions",0,0,0,0,0,0,0,0,0,0,0,0,0,0,0,0,0,0,0,0]
[null,2409,null,"Translations",0,0,0,0,0,0,0,0,0,0,0,0,0,0,0,0,0,0,0,0]
[null,2500,"u","Post Production Facilities & Equipment",{"$f":"COUNTIF(Col_CCID,$B468)","v":0},{"$f":"SUMIFS(Col_LocalSubtotal,Col_CCID,$B468,Col_Currency,F$4)","v":0},0,0,0,0,0,0,0,0,0,0,0,0,0,0,0,0,0,{"$f":"SUMIFS(Col_Value, Col_CCID,$B468)/DefaultCurrencyRate","v":0},{"$f":"X468/$X$6","v":{"$error":"#DIV/0!"}}]
[null,2529,null,{"$f":"VLOOKUP($B469,MasterCOA,4,0)","v":"Audio Re-stripe"},{"$f":"COUNTIF(Col_SCID,$B469)","v":0},{"$f":"SUMIFS(Col_LocalSubtotal,Col_SCID,$B469,Col_Currency,F$4)","v":0},0,0,0,0,0,0,0,0,0,0,0,0,0,0,0,{"$f":"SUMIFS(Col_LocalSubtotal,Col_SCID,$B469,Col_Currency,V$4)","v":0},0,{"$f":"SUMIFS(Col_Value, Col_SCID,$B469)/VLOOKUP(DefaultCurrency,CurrencyTable,3,0)","v":0}]
[null,2504,null,"Avid Rental ",0,0,0,0,0,0,0,0,0,0,0,0,0,0,0,0,0,0,0,0]
[null,2510,null,"Colour Correction / Grade",0,0,0,0,0,0,0,0,0,0,0,0,0,0,0,0,0,0,0,0]
[null,2534,null,"Colorist",0,0,0,0,0,0,0,0,0,0,0,0,0,0,0,0,0,0,0,0]
[null,2520,null,"Conform",0,0,0,0,0,0,0,0,0,0,0,0,0,0,0,0,0,0,0,0]
[null,2516,null,"(not applicable for UK)",0,0,0,0,0,0,0,0,0,0,0,0,0,0,0,0,0,0,0,0]
[null,2519,null,"Deliverables ",0,0,0,0,0,0,0,0,0,0,0,0,0,0,0,0,0,0,0,0]
[null,2532,null,"Dubbing Racks",0,0,0,0,0,0,0,0,0,0,0,0,0,0,0,0,0,0,0,0]
[null,2525,null,"Edit Laptops",0,0,0,0,0,0,0,0,0,0,0,0,0,0,0,0,0,0,0,0]
[null,2503,null,"Edit Rooms",0,0,0,0,0,0,0,0,0,0,0,0,0,0,0,0,0,0,0,0]
[null,2531,null,"File Upload",0,{"$f":"SUMIFS(Col_LocalSubtotal,Col_SCID,$B479,Col_Currency,F$4)","v":0},0,0,0,0,0,0,0,0,0,0,0,0,0,0,0,0,0,0]
[null,2523,null,"Forscene Licence",0,0,0,0,0,0,0,0,0,0,0,0,0,0,0,0,0,0,0,0]
[null,2599,null,"Fringes - Post Production F&E",0,0,0,0,0,0,0,0,0,0,0,0,0,0,0,0,0,0,0,0]
[null,2506,null,"Hard Disc Storage",0,0,0,0,0,0,0,0,0,0,0,0,0,0,0,0,0,0,0,0]
[null,2526,null,"In-Field Editing Systems",0,0,0,0,0,0,0,0,0,0,0,0,0,0,0,0,0,0,0,0]
[null,2501,null,"Ingest",0,0,0,0,0,0,0,0,0,0,0,0,0,0,0,0,0,0,0,0]
[null,2522,null,"LTO Back-up",0,0,0,0,0,0,0,0,0,0,0,0,0,0,0,0,0,0,0,0]
[null,2521,null,"LTO Stock",0,0,0,0,0,0,0,0,0,0,0,0,0,0,0,0,0,0,0,0]
[null,2527,null,"Mastering",0,0,0,0,0,0,0,0,0,0,0,0,0,0,0,0,0,0,0,0]
[null,2598,null,"Miscellaneous - Post Production F&E",0,0,0,0,0,0,0,0,0,0,0,0,0,0,0,0,0,0,0,0]
[null,2528,null,"Miscellanous Transfers",0,{"$f":"SUMIFS(Col_LocalSubtotal,Col_SCID,$B489,Col_Currency,F$4)","v":0},0,0,0,0,0,0,0,0,0,0,0,0,0,0,0,{"$f":"SUMIFS(Col_LocalSubtotal,Col_SCID,$B489,Col_Currency,V$4)","v":0},0,0]
[null,2517,null,"(not applicable for UK)",0,0,0,0,0,0,0,0,0,0,0,0,0,0,0,0,0,0,0,0]
[null,2515,null,"Mix/Dub (30/60/90/120)",0,0,0,0,0,0,0,0,0,0,0,0,0,0,0,0,0,0,0,0]
[null,2502,null,"Offline Edit Suite & Rental",0,0,0,0,0,0,0,0,0,0,0,0,0,0,0,0,0,0,0,0]
[null,2511,null,"Online (30/60/90/120)",0,0,0,0,0,0,0,0,0,0,0,0,0,0,0,0,0,0,0,0]
[null,2524,null,"Post Production Scripts",0,0,0,0,0,0,0,0,0,0,0,0,0,0,0,0,0,0,0,0]
[null,2509,null,"QA and PSE test / QC / Tech Eval",0,0,0,0,0,0,0,0,0,0,0,0,0,0,0,0,0,0,0,0]
[null,2518,null,"Screening Station",0,0,0,0,0,0,0,0,0,0,0,0,0,0,0,0,0,0,0,0]
[null,2533,null,"Sound Mixer",0,0,0,0,0,0,0,0,0,0,0,0,0,0,0,0,0,0,0,0]
[null,2508,null,"Standards Conversion",0,0,0,0,0,0,0,0,0,0,0,0,0,0,0,0,0,0,0,0]
[null,2505,null,"Storage/Unity /ISIS",0,{"$f":"SUMIFS(Col_LocalSubtotal,Col_SCID,$B499,Col_Currency,F$4)","v":0},0,0,0,0,0,0,0,0,0,0,0,0,0,0,0,0,0,0]
[null,2530,null,"Subtitles",0,0,0,0,0,0,0,0,0,0,0,0,0,0,0,0,0,0,0,0]
[null,2507,null,"Tape Stock or Media",0,0,0,0,0,0,0,0,0,0,0,0,0,0,0,0,0,0,0,0]
[null,2514,null,"Track-lay",0,0,0,0,0,0,0,0,0,0,0,0,0,0,0,0,0,0,0,0]
[null,2513,null,"Voice Over Booth",0,0,0,0,0,0,0,0,0,0,0,0,0,0,0,0,0,0,0,0]
[null,2512,null,"Voice Over/Narration record",0,0,0,0,0,0,0,0,0,0,0,0,0,0,0,0,0,0,0,0]
[null,2600,"u","Graphics",{"$f":"COUNTIF(Col_CCID,$B505)","v":0},{"$f":"SUMIFS(Col_LocalSubtotal,Col_CCID,$B505,Col_Currency,F$4)","v":0},0,0,0,0,0,0,0,0,0,0,0,0,0,0,0,0,0,{"$f":"SUMIFS(Col_Value, Col_CCID,$B505)/DefaultCurrencyRate","v":0},{"$f":"X505/$X$6","v":{"$error":"#DIV/0!"}}]
[null,2604,null,{"$f":"VLOOKUP($B506,MasterCOA,4,0)","v":"Animation"},{"$f":"COUNTIF(Col_SCID,$B506)","v":0},{"$f":"SUMIFS(Col_LocalSubtotal,Col_SCID,$B506,Col_Currency,F$4)","v":0},0,0,0,0,0,0,0,0,0,0,0,0,0,0,0,{"$f":"SUMIFS(Col_LocalSubtotal,Col_SCID,$B506,Col_Currency,V$4)","v":0},0,{"$f":"SUMIFS(Col_Value, Col_SCID,$B506)/VLOOKUP(DefaultCurrency,CurrencyTable,3,0)","v":0}]
[null,2603,null,{"$f":"VLOOKUP($B507,MasterCOA,4,0)","v":"CGI"},{"$f":"COUNTIF(Col_SCID,$B507)","v":0},0,0,0,0,0,0,0,0,0,0,0,0,0,0,0,0,0,0,{"$f":"SUMIFS(Col_Value, Col_SCID,$B507)/VLOOKUP(DefaultCurrency,CurrencyTable,3,0)","v":0}]
[null,2699,null,{"$f":"VLOOKUP($B508,MasterCOA,4,0)","v":"Fringes - Graphics"},{"$f":"COUNTIF(Col_SCID,$B508)","v":0},0,0,0,0,0,0,0,0,0,0,0,0,0,0,0,0,0,0,{"$f":"SUMIFS(Col_Value, Col_SCID,$B508)/VLOOKUP(DefaultCurrency,CurrencyTable,3,0)","v":0}]
[null,2602,null,{"$f":"VLOOKUP($B509,MasterCOA,4,0)","v":"Program Graphics"},{"$f":"COUNTIF(Col_SCID,$B509)","v":0},0,0,0,0,0,0,0,0,0,0,0,0,0,0,0,0,0,0,{"$f":"SUMIFS(Col_Value, Col_SCID,$B509)/VLOOKUP(DefaultCurrency,CurrencyTable,3,0)","v":0}]
[null,2601,null,{"$f":"VLOOKUP($B510,MasterCOA,4,0)","v":"Title Graphics"},{"$f":"COUNTIF(Col_SCID,$B510)","v":0},0,0,0,0,0,0,0,0,0,0,0,0,0,0,0,0,0,0,{"$f":"SUMIFS(Col_Value, Col_SCID,$B510)/VLOOKUP(DefaultCurrency,CurrencyTable,3,0)","v":0}]
[null,2700,"u","Music",{"$f":"COUNTIF(Col_CCID,$B511)","v":0},{"$f":"SUMIFS(Col_LocalSubtotal,Col_CCID,$B511,Col_Currency,F$4)","v":0},0,0,0,0,0,0,0,0,0,0,0,0,0,0,0,0,0,{"$f":"SUMIFS(Col_Value, Col_CCID,$B511)/DefaultCurrencyRate","v":0},{"$f":"X511/$X$6","v":{"$error":"#DIV/0!"}}]
[null,2705,null,{"$f":"VLOOKUP($B512,MasterCOA,4,0)","v":"Background Music Director"},{"$f":"COUNTIF(Col_SCID,$B512)","v":0},{"$f":"SUMIFS(Col_LocalSubtotal,Col_SCID,$B512,Col_Currency,F$4)","v":0},0,0,0,0,0,0,0,0,0,0,0,0,0,0,0,{"$f":"SUMIFS(Col_LocalSubtotal,Col_SCID,$B512,Col_Currency,V$4)","v":0},0,{"$f":"SUMIFS(Col_Value, Col_SCID,$B512)/VLOOKUP(DefaultCurrency,CurrencyTable,3,0)","v":0}]
[null,2708,null,"Blanket Agreement",0,0,0,0,0,0,0,0,0,0,0,0,0,0,0,0,0,0,0,0]
[null,2702,null,"Commercial Music Licences",0,0,0,0,0,0,0,0,0,0,0,0,0,0,0,0,0,0,0,0]
[null,2703,null,"Composed Music",0,0,0,0,0,0,0,0,0,0,0,0,0,0,0,0,0,0,0,0]
[null,2799,null,"Fringes - Music",0,0,0,0,0,0,0,0,0,0,0,0,0,0,0,0,0,0,0,0]
[null,2701,null,"Library Music Licences",0,0,0,0,0,0,0,0,0,0,0,0,0,0,0,0,0,0,0,0]
[null,2707,null,"Music Co-ordinator",0,0,0,0,0,0,0,0,0,0,0,0,0,0,0,0,0,0,0,0]
[null,2704,null,"Music Director",0,0,0,0,0,0,0,0,0,0,0,0,0,0,0,0,0,0,0,0]
[null,2706,null,"Music Supervisor",0,0,0,0,0,0,0,0,0,0,0,0,0,0,0,0,0,0,0,0]
[null,2800,"u","Archive",{"$f":"COUNTIF(Col_CCID,$B521)","v":0},{"$f":"SUMIFS(Col_LocalSubtotal,Col_CCID,$B521,Col_Currency,F$4)","v":0},0,0,0,0,0,0,0,0,0,0,0,0,0,0,0,0,0,{"$f":"SUMIFS(Col_Value, Col_CCID,$B521)/DefaultCurrencyRate","v":0},{"$f":"X521/$X$6","v":{"$error":"#DIV/0!"}}]
[null,2804,null,{"$f":"VLOOKUP($B522,MasterCOA,4,0)","v":"Clearance / Deliverables Coordinator"},{"$f":"COUNTIF(Col_SCID,$B522)","v":0},{"$f":"SUMIFS(Col_LocalSubtotal,Col_SCID,$B522,Col_Currency,F$4)","v":0},0,0,0,0,0,0,0,0,0,0,0,0,0,0,0,{"$f":"SUMIFS(Col_LocalSubtotal,Col_SCID,$B522,Col_Currency,V$4)","v":0},0,{"$f":"SUMIFS(Col_Value, Col_SCID,$B522)/VLOOKUP(DefaultCurrency,CurrencyTable,3,0)","v":0}]
[null,2806,null,"(not applicable for UK)",0,0,0,0,0,0,0,0,0,0,0,0,0,0,0,0,0,0,0,0]
[null,2801,null,"Footage Licence Fee",0,0,0,0,0,0,0,0,0,0,0,0,0,0,0,0,0,0,0,0]
[null,2899,null,"Fringes - Archive",0,0,0,0,0,0,0,0,0,0,0,0,0,0,0,0,0,0,0,0]
[null,2807,null,"Misellaneous Rights & Clearances",0,0,0,0,0,0,0,0,0,0,0,0,0,0,0,0,0,0,0,0]
[null,2803,null,"Processing Costs ",0,0,0,0,0,0,0,0,0,0,0,0,0,0,0,0,0,0,0,0]
[null,2805,null,"Search Fees",0,0,0,0,0,0,0,0,0,0,0,0,0,0,0,0,0,0,0,0]
[null,2802,null,"Still Licence Fee",0,0,0,0,0,0,0,0,0,0,0,0,0,0,0,0,0,0,0,0]
[null,2900,"u","Travel & Living",{"$f":"COUNTIF(Col_CCID,$B530)","v":0},{"$f":"SUMIFS(Col_LocalSubtotal,Col_CCID,$B530,Col_Currency,F$4)","v":0},0,0,0,0,0,0,0,0,0,0,0,0,0,0,0,0,0,{"$f":"SUMIFS(Col_Value, Col_CCID,$B530)/DefaultCurrencyRate","v":0},{"$f":"X530/$X$6","v":{"$error":"#DIV/0!"}}]
[null,2914,null,{"$f":"VLOOKUP($B531,MasterCOA,4,0)","v":"Accommodations - Crew"},{"$f":"COUNTIF(Col_SCID,$B531)","v":0},{"$f":"SUMIFS(Col_LocalSubtotal,Col_SCID,$B531,Col_Currency,F$4)","v":0},0,0,0,0,0,0,0,0,0,0,0,0,0,0,0,{"$f":"SUMIFS(Col_LocalSubtotal,Col_SCID,$B531,Col_Currency,V$4)","v":0},0,{"$f":"SUMIFS(Col_Value, Col_SCID,$B531)/VLOOKUP(DefaultCurrency,CurrencyTable,3,0)","v":0}]
[null,2915,null,"Accommodations - Talent",0,0,0,0,0,0,0,0,0,0,0,0,0,0,0,0,0,0,0,0]
[null,2925,null,"Airport Transfers",0,0,0,0,0,0,0,0,0,0,0,0,0,0,0,0,0,0,0,0]
[null,2926,null,"Bikes & Taxis",0,0,0,0,0,0,0,0,0,0,0,0,0,0,0,0,0,0,0,0]
[null,2936,null,"(not applicable for UK)",0,0,0,0,0,0,0,0,0,0,0,0,0,0,0,0,0,0,0,0]
[null,2907,null,"Car Hire ",0,0,0,0,0,0,0,0,0,0,0,0,0,0,0,0,0,0,0,0]
[null,2912,null,"Carnet ",0,0,0,0,0,0,0,0,0,0,0,0,0,0,0,0,0,0,0,0]
[null,2919,null,"Cast & Crew Meals",0,0,0,0,0,0,0,0,0,0,0,0,0,0,0,0,0,0,0,0]
[null,2927,null,"Courier Service",0,0,0,0,0,0,0,0,0,0,0,0,0,0,0,0,0,0,0,0]
[null,2933,null,"Driver",0,0,0,0,0,0,0,0,0,0,0,0,0,0,0,0,0,0,0,0]
[null,2906,null,"Excess Baggage",0,{"$f":"SUMIFS(Col_LocalSubtotal,Col_SCID,$B541,Col_Currency,F$4)","v":0},0,0,0,0,0,0,0,0,0,0,0,0,0,0,0,0,0,0]
[null,2935,null,"(not applicable for UK)",0,0,0,0,0,0,0,0,0,0,0,0,0,0,0,0,0,0,0,0]
[null,2901,null,"Flights - Domestic - Crew",0,0,0,0,0,0,0,0,0,0,0,0,0,0,0,0,0,0,0,0]
[null,2903,null,"Flights - Domestic - Talent",0,0,0,0,0,0,0,0,0,0,0,0,0,0,0,0,0,0,0,0]
[null,2902,null,"Flights - International - Crew",0,0,0,0,0,0,0,0,0,0,0,0,0,0,0,0,0,0,0,0]
[null,2904,null,"Flights - International - Talent",0,0,0,0,0,0,0,0,0,0,0,0,0,0,0,0,0,0,0,0]
[null,2999,null,"Fringes - Travel & Living",0,0,0,0,0,0,0,0,0,0,0,0,0,0,0,0,0,0,0,0]
[null,2909,null,"Fuel ",0,0,0,0,0,0,0,0,0,0,0,0,0,0,0,0,0,0,0,0]
[null,2931,null,"General/Miscellanoues i.e Laundry",0,0,0,0,0,0,0,0,0,0,0,0,0,0,0,0,0,0,0,0]
[null,2932,null,"Gratuities",0,0,0,0,0,0,0,0,0,0,0,0,0,0,0,0,0,0,0,0]
[null,2923,null,"Hospitality / Entertaining",0,{"$f":"SUMIFS(Col_LocalSubtotal,Col_SCID,$B551,Col_Currency,F$4)","v":0},0,0,0,0,0,0,0,0,0,0,0,0,0,0,0,{"$f":"SUMIFS(Col_LocalSubtotal,Col_SCID,$B551,Col_Currency,V$4)","v":0},0,0]
[null,2924,null,"International Mobile/SAT Phones ",0,0,0,0,0,0,0,0,0,0,0,0,0,0,0,0,0,0,0,0]
[null,2922,null,"Meal - Post Production",0,0,0,0,0,0,0,0,0,0,0,0,0,0,0,0,0,0,0,0]
[null,2920,null,"Meal - Pre production",0,0,0,0,0,0,0,0,0,0,0,0,0,0,0,0,0,0,0,0]
[null,2921,null,"Meal - Production",0,0,0,0,0,0,0,0,0,0,0,0,0,0,0,0,0,0,0,0]
[null,2910,null,"Mileage ",0,0,0,0,0,0,0,0,0,0,0,0,0,0,0,0,0,0,0,0]
[null,2934,null,"Office Supplies",0,0,0,0,0,0,0,0,0,0,0,0,0,0,0,0,0,0,0,0]
[null,2911,null,"Parking & Tolls",0,0,0,0,0,0,0,0,0,0,0,0,0,0,0,0,0,0,0,0]
[null,2916,null,"Per Diems - Crew",0,0,0,0,0,0,0,0,0,0,0,0,0,0,0,0,0,0,0,0]
[null,2917,null,"Per Diems - Talent",0,0,0,0,0,0,0,0,0,0,0,0,0,0,0,0,0,0,0,0]
[null,2908,null,"Production Vehicles ",0,{"$f":"SUMIFS(Col_LocalSubtotal,Col_SCID,$B561,Col_Currency,F$4)","v":0},0,0,0,0,0,0,0,0,0,0,0,0,0,0,0,0,0,0]
[null,2905,null,"(not applicable for UK)",0,0,0,0,0,0,0,0,0,0,0,0,0,0,0,0,0,0,0,0]
[null,2913,null,"Shipping",0,0,0,0,0,0,0,0,0,0,0,0,0,0,0,0,0,0,0,0]
[null,2928,null,"Vaccinations/Inncoulations",0,0,0,0,0,0,0,0,0,0,0,0,0,0,0,0,0,0,0,0]
[null,2930,null,"Vehicle Expenses i.e. Tyres & repairs not covered by insurance",0,0,0,0,0,0,0,0,0,0,0,0,0,0,0,0,0,0,0,0]
[null,2929,null,"Visa/Work Permits",0,0,0,0,0,0,0,0,0,0,0,0,0,0,0,0,0,0,0,0]
[null,3000,"u","Marketing & Promotional Materials",{"$f":"COUNTIF(Col_CCID,$B567)","v":0},{"$f":"SUMIFS(Col_LocalSubtotal,Col_CCID,$B567,Col_Currency,F$4)","v":0},0,0,0,0,0,0,0,0,0,0,0,0,0,0,0,0,0,{"$f":"SUMIFS(Col_Value, Col_CCID,$B567)/DefaultCurrencyRate","v":0},{"$f":"X567/$X$6","v":{"$error":"#DIV/0!"}}]
[null,3003,null,{"$f":"VLOOKUP($B568,MasterCOA,4,0)","v":"Digital Deliverables"},{"$f":"COUNTIF(Col_SCID,$B568)","v":0},{"$f":"SUMIFS(Col_LocalSubtotal,Col_SCID,$B568,Col_Currency,F$4)","v":0},0,0,0,0,0,0,0,0,0,0,0,0,0,0,0,{"$f":"SUMIFS(Col_LocalSubtotal,Col_SCID,$B568,Col_Currency,V$4)","v":0},0,{"$f":"SUMIFS(Col_Value, Col_SCID,$B568)/VLOOKUP(DefaultCurrency,CurrencyTable,3,0)","v":0}]
[null,3099,null,"Fringes - Marketing & Promotional",0,0,0,0,0,0,0,0,0,0,0,0,0,0,0,0,0,0,0,0]
[null,3002,null,"Marketing Materials",0,0,0,0,0,0,0,0,0,0,0,0,0,0,0,0,0,0,0,0]
[null,3005,null,"(not applicable for UK)",0,0,0,0,0,0,0,0,0,0,0,0,0,0,0,0,0,0,0,0]
[null,3004,null,"(not applicable for UK)",0,0,0,0,0,0,0,0,0,0,0,0,0,0,0,0,0,0,0,0]
[null,3001,null,"Stills Photographer",0,0,0,0,0,0,0,0,0,0,0,0,0,0,0,0,0,0,0,0]
[null,3100,"u","Insurance",{"$f":"COUNTIF(Col_CCID,$B574)","v":0},{"$f":"SUMIFS(Col_LocalSubtotal,Col_CCID,$B574,Col_Currency,F$4)","v":0},0,0,0,0,0,0,0,0,0,0,0,0,0,0,0,0,0,{"$f":"SUMIFS(Col_Value, Col_CCID,$B574)/DefaultCurrencyRate","v":0},{"$f":"X574/$X$6","v":{"$error":"#DIV/0!"}}]
[null,3102,null,{"$f":"VLOOKUP($B575,MasterCOA,4,0)","v":"AD&D"},{"$f":"COUNTIF(Col_SCID,$B575)","v":0},{"$f":"SUMIFS(Col_LocalSubtotal,Col_SCID,$B575,Col_Currency,F$4)","v":0},0,0,0,0,0,0,0,0,0,0,0,0,0,0,0,{"$f":"SUMIFS(Col_LocalSubtotal,Col_SCID,$B575,Col_Currency,V$4)","v":0},0,{"$f":"SUMIFS(Col_Value, Col_SCID,$B575)/VLOOKUP(DefaultCurrency,CurrencyTable,3,0)","v":0}]
[null,3109,null,"Additional/Other Insurances",0,0,0,0,0,0,0,0,0,0,0,0,0,0,0,0,0,0,0,0]
[null,3105,null,"Aircraft",0,0,0,0,0,0,0,0,0,0,0,0,0,0,0,0,0,0,0,0]
[null,3104,null,"Cast Coverage",0,0,0,0,0,0,0,0,0,0,0,0,0,0,0,0,0,0,0,0]
[null,3108,null,"E&O",0,0,0,0,0,0,0,0,0,0,0,0,0,0,0,0,0,0,0,0]
[null,3199,null,"Fringes - Insurance",0,0,0,0,0,0,0,0,0,0,0,0,0,0,0,0,0,0,0,0]
[null,3110,null,"FUTi / Travel Insurance",0,0,0,0,0,0,0,0,0,0,0,0,0,0,0,0,0,0,0,0]
[null,3101,null,"Production Package/Insurance",0,0,0,0,0,0,0,0,0,0,0,0,0,0,0,0,0,0,0,0]
[null,3107,null,"Stunt Coverage",0,0,0,0,0,0,0,0,0,0,0,0,0,0,0,0,0,0,0,0]
[null,3103,null,"UAV/Drone",0,0,0,0,0,0,0,0,0,0,0,0,0,0,0,0,0,0,0,0]
[null,3106,null,"Watercraft",0,0,0,0,0,0,0,0,0,0,0,0,0,0,0,0,0,0,0,0]
[null,3200,"u","Financial",{"$f":"COUNTIF(Col_CCID,$B586)","v":0},{"$f":"SUMIFS(Col_LocalSubtotal,Col_CCID,$B586,Col_Currency,F$4)","v":0},0,0,0,0,0,0,0,0,0,0,0,0,0,0,0,0,0,{"$f":"SUMIFS(Col_Value, Col_CCID,$B586)/DefaultCurrencyRate","v":0},{"$f":"X586/$X$6","v":{"$error":"#DIV/0!"}}]
[null,3203,null,{"$f":"VLOOKUP($B587,MasterCOA,4,0)","v":"Additional fees (co-pros)"},{"$f":"COUNTIF(Col_SCID,$B587)","v":0},{"$f":"SUMIFS(Col_LocalSubtotal,Col_SCID,$B587,Col_Currency,F$4)","v":0},0,0,0,0,0,0,0,0,0,0,0,0,0,0,0,{"$f":"SUMIFS(Col_LocalSubtotal,Col_SCID,$B587,Col_Currency,V$4)","v":0},0,{"$f":"SUMIFS(Col_Value, Col_SCID,$B587)/VLOOKUP(DefaultCurrency,CurrencyTable,3,0)","v":0}]
[null,3201,null,"Bank Fees/Charges",0,0,0,0,0,0,0,0,0,0,0,0,0,0,0,0,0,0,0,0]
[null,3299,null,"Fringes - Finacial",0,0,0,0,0,0,0,0,0,0,0,0,0,0,0,0,0,0,0,0]
[null,3206,null,"Interim Financing",0,0,0,0,0,0,0,0,0,0,0,0,0,0,0,0,0,0,0,0]
[null,3204,null,"Prize Money",0,0,0,0,0,0,0,0,0,0,0,0,0,0,0,0,0,0,0,0]
[null,3202,null,"Tax Incentive Audit Fees",0,0,0,0,0,0,0,0,0,0,0,0,0,0,0,0,0,0,0,0]
[null,3205,null,"(not applicable for UK)",0,0,0,0,0,0,0,0,0,0,0,0,0,0,0,0,0,0,0,0]
[null,3300,"u","Legal",{"$f":"COUNTIF(Col_CCID,$B594)","v":0},{"$f":"SUMIFS(Col_LocalSubtotal,Col_CCID,$B594,Col_Currency,F$4)","v":0},0,0,0,0,0,0,0,0,0,0,0,0,0,0,0,0,0,{"$f":"SUMIFS(Col_Value, Col_CCID,$B594)/DefaultCurrencyRate","v":0},{"$f":"X594/$X$6","v":{"$error":"#DIV/0!"}}]
[null,3301,null,{"$f":"VLOOKUP($B595,MasterCOA,4,0)","v":"Background/Police Checks"},{"$f":"COUNTIF(Col_SCID,$B595)","v":0},{"$f":"SUMIFS(Col_LocalSubtotal,Col_SCID,$B595,Col_Currency,F$4)","v":0},0,0,0,0,0,0,0,0,0,0,0,0,0,0,0,{"$f":"SUMIFS(Col_LocalSubtotal,Col_SCID,$B595,Col_Currency,V$4)","v":0},0,{"$f":"SUMIFS(Col_Value, Col_SCID,$B595)/VLOOKUP(DefaultCurrency,CurrencyTable,3,0)","v":0}]
[null,3303,null,"Competition Compliance",0,0,0,0,0,0,0,0,0,0,0,0,0,0,0,0,0,0,0,0]
[null,3302,null,"Compliance",0,0,0,0,0,0,0,0,0,0,0,0,0,0,0,0,0,0,0,0]
[null,3399,null,"Fringes - Legal",0,0,0,0,0,0,0,0,0,0,0,0,0,0,0,0,0,0,0,0]
[null,3304,null,"Legal Fees",0,0,0,0,0,0,0,0,0,0,0,0,0,0,0,0,0,0,0,0]
[null,3305,null,"Psych Tests",0,0,0,0,0,0,0,0,0,0,0,0,0,0,0,0,0,0,0,0]
[null,3306,null,"Title Search & Legal Opinion",0,0,0,0,0,0,0,0,0,0,0,0,0,0,0,0,0,0,0,0]
[null,3307,null,"Working Permits for Minors",0,0,0,0,0,0,0,0,0,0,0,0,0,0,0,0,0,0,0,0]
[null,3400,"u","Overhead",{"$f":"COUNTIF(Col_CCID,$B603)","v":0},{"$f":"SUMIFS(Col_LocalSubtotal,Col_CCID,$B603,Col_Currency,F$4)","v":0},0,0,0,0,0,0,0,0,0,0,0,0,0,0,0,0,0,{"$f":"SUMIFS(Col_Value, Col_CCID,$B603)/DefaultCurrencyRate","v":0},{"$f":"X603/$X$6","v":{"$error":"#DIV/0!"}}]
[null,3407,null,{"$f":"VLOOKUP($B604,MasterCOA,4,0)","v":"(not applicable for UK)"},{"$f":"COUNTIF(Col_SCID,$B604)","v":0},{"$f":"SUMIFS(Col_LocalSubtotal,Col_SCID,$B604,Col_Currency,F$4)","v":0},0,0,0,0,0,0,0,0,0,0,0,0,0,0,0,{"$f":"SUMIFS(Col_LocalSubtotal,Col_SCID,$B604,Col_Currency,V$4)","v":0},0,{"$f":"SUMIFS(Col_Value, Col_SCID,$B604)/VLOOKUP(DefaultCurrency,CurrencyTable,3,0)","v":0}]
[null,3410,null,"(not applicable for UK)",0,0,0,0,0,0,0,0,0,0,0,0,0,0,0,0,0,0,0,0]
[null,3402,null,"(not applicable for UK)",0,0,0,0,0,0,0,0,0,0,0,0,0,0,0,0,0,0,0,0]
[null,3405,null,"(not applicable for UK)",0,0,0,0,0,0,0,0,0,0,0,0,0,0,0,0,0,0,0,0]
[null,3401,null,"Overhead",0,0,0,0,0,0,0,0,0,0,0,0,0,0,0,0,0,0,0,0]
[null,3408,null,"(not applicable for UK)",0,0,0,0,0,0,0,0,0,0,0,0,0,0,0,0,0,0,0,0]
[null,3406,null,"(not applicable for UK)",0,0,0,0,0,0,0,0,0,0,0,0,0,0,0,0,0,0,0,0]
[null,3403,null,"(not applicable for UK)",0,0,0,0,0,0,0,0,0,0,0,0,0,0,0,0,0,0,0,0]
[null,3404,null,"(not applicable for UK)",0,0,0,0,0,0,0,0,0,0,0,0,0,0,0,0,0,0,0,0]
[null,3409,null,"(not applicable for UK)",0,0,0,0,0,0,0,0,0,0,0,0,0,0,0,0,0,0,0,0]
[null,3500,"u","Production Fee",{"$f":"COUNTIF(Col_CCID,$B614)","v":0},{"$f":"SUMIFS(Col_LocalSubtotal,Col_CCID,$B614,Col_Currency,F$4)","v":0},0,0,0,0,0,0,0,0,0,0,0,0,0,0,0,0,0,{"$f":"SUMIFS(Col_Value, Col_CCID,$B614)/DefaultCurrencyRate","v":0},{"$f":"X614/$X$6","v":{"$error":"#DIV/0!"}}]
[null,3501,null,{"$f":"VLOOKUP($B615,MasterCOA,4,0)","v":"Production Fee "},{"$f":"COUNTIF(Col_SCID,$B615)","v":0},{"$f":"SUMIFS(Col_LocalSubtotal,Col_SCID,$B615,Col_Currency,F$4)","v":0},0,0,0,0,0,0,0,0,0,0,0,0,0,0,0,{"$f":"SUMIFS(Col_LocalSubtotal,Col_SCID,$B615,Col_Currency,V$4)","v":0},{"$f":"SUMIFS(Col_LocalSubtotal,Col_SCID,$B615,Col_Currency,W$4)","v":0},{"$f":"SUMIFS(Col_Value, Col_SCID,$B615)/VLOOKUP(DefaultCurrency,CurrencyTable,3,0)","v":0}]
[null,3600,"u","Format Fee",{"$f":"COUNTIF(Col_CCID,$B616)","v":0},{"$f":"SUMIFS(Col_LocalSubtotal,Col_CCID,$B616,Col_Currency,F$4)","v":0},0,0,0,0,0,0,0,0,0,0,0,0,0,0,0,0,0,{"$f":"SUMIFS(Col_Value, Col_CCID,$B616)/DefaultCurrencyRate","v":0},{"$f":"X616/$X$6","v":{"$error":"#DIV/0!"}}]
[null,3601,null,{"$f":"VLOOKUP($B617,MasterCOA,4,0)","v":"Format Fee"},{"$f":"COUNTIF(Col_SCID,$B617)","v":0},{"$f":"SUMIFS(Col_LocalSubtotal,Col_SCID,$B617,Col_Currency,F$4)","v":0},0,0,0,0,0,0,0,0,0,0,0,0,0,0,0,{"$f":"SUMIFS(Col_LocalSubtotal,Col_SCID,$B617,Col_Currency,V$4)","v":0},{"$f":"SUMIFS(Col_LocalSubtotal,Col_SCID,$B617,Col_Currency,W$4)","v":0},{"$f":"SUMIFS(Col_Value, Col_SCID,$B617)/VLOOKUP(DefaultCurrency,CurrencyTable,3,0)","v":0}]
[null,3700,"u","Agency / Package Fee",{"$f":"COUNTIF(Col_CCID,$B618)","v":0},{"$f":"SUMIFS(Col_LocalSubtotal,Col_CCID,$B618,Col_Currency,F$4)","v":0},0,0,0,0,0,0,0,0,0,0,0,0,0,0,0,0,0,{"$f":"SUMIFS(Col_Value, Col_CCID,$B618)/DefaultCurrencyRate","v":0},{"$f":"X618/$X$6","v":{"$error":"#DIV/0!"}}]
[null,3701,null,{"$f":"VLOOKUP($B619,MasterCOA,4,0)","v":"Agency/ Package Fee"},{"$f":"COUNTIF(Col_SCID,$B619)","v":0},{"$f":"SUMIFS(Col_LocalSubtotal,Col_SCID,$B619,Col_Currency,F$4)","v":0},0,0,0,0,0,0,0,0,0,0,0,0,0,0,0,{"$f":"SUMIFS(Col_LocalSubtotal,Col_SCID,$B619,Col_Currency,V$4)","v":0},{"$f":"SUMIFS(Col_LocalSubtotal,Col_SCID,$B619,Col_Currency,W$4)","v":0},{"$f":"SUMIFS(Col_Value, Col_SCID,$B619)/VLOOKUP(DefaultCurrency,CurrencyTable,3,0)","v":0}]
[null,3800,"u","Non-Linear",{"$f":"COUNTIF(Col_CCID,$B620)","v":0},{"$f":"SUMIFS(Col_LocalSubtotal,Col_CCID,$B620,Col_Currency,F$4)","v":0},0,0,0,0,0,0,0,0,0,0,0,0,0,0,0,0,0,{"$f":"SUMIFS(Col_Value, Col_CCID,$B620)/DefaultCurrencyRate","v":0},{"$f":"X620/$X$6","v":{"$error":"#DIV/0!"}}]
[null,3801,null,{"$f":"VLOOKUP($B621,MasterCOA,4,0)","v":"Non-Linear Asset Costs"},{"$f":"COUNTIF(Col_SCID,$B621)","v":0},{"$f":"SUMIFS(Col_LocalSubtotal,Col_SCID,$B621,Col_Currency,F$4)","v":0},0,0,0,0,0,0,0,0,0,0,0,0,0,0,0,{"$f":"SUMIFS(Col_LocalSubtotal,Col_SCID,$B621,Col_Currency,V$4)","v":0},{"$f":"SUMIFS(Col_LocalSubtotal,Col_SCID,$B621,Col_Currency,W$4)","v":0},{"$f":"SUMIFS(Col_Value, Col_SCID,$B621)/VLOOKUP(DefaultCurrency,CurrencyTable,3,0)","v":0}]
[null,4000,"u","Culinary",{"$f":"COUNTIF(Col_CCID,$B622)","v":0},{"$f":"SUMIFS(Col_LocalSubtotal,Col_CCID,$B622,Col_Currency,F$4)","v":0},0,0,0,0,0,0,0,0,0,0,0,0,0,0,0,0,0,{"$f":"SUMIFS(Col_Value, Col_CCID,$B622)/DefaultCurrencyRate","v":0},{"$f":"X622/$X$6","v":{"$error":"#DIV/0!"}}]
[null,4010,null,{"$f":"VLOOKUP($B623,MasterCOA,4,0)","v":"Assistant Culinary Producer"},{"$f":"COUNTIF(Col_SCID,$B623)","v":0},{"$f":"SUMIFS(Col_LocalSubtotal,Col_SCID,$B623,Col_Currency,F$4)","v":0},0,0,0,0,0,0,0,0,0,0,0,0,0,0,0,{"$f":"SUMIFS(Col_LocalSubtotal,Col_SCID,$B623,Col_Currency,V$4)","v":0},0,{"$f":"SUMIFS(Col_Value, Col_SCID,$B623)/VLOOKUP(DefaultCurrency,CurrencyTable,3,0)","v":0}]
[null,4014,null,"Back Kitchen Rentals",0,0,0,0,0,0,0,0,0,0,0,0,0,0,0,0,0,0,0,0]
[null,4013,null,"Culinary Competition Compliance",0,0,0,0,0,0,0,0,0,0,0,0,0,0,0,0,0,0,0,0]
[null,4009,null,"Culinary Producer",0,0,0,0,0,0,0,0,0,0,0,0,0,0,0,0,0,0,0,0]
[null,4008,null,"Culinary Purchases",0,0,0,0,0,0,0,0,0,0,0,0,0,0,0,0,0,0,0,0]
[null,4007,null,"Culinary Rentals",0,0,0,0,0,0,0,0,0,0,0,0,0,0,0,0,0,0,0,0]
[null,4004,null,"Dishwashers",0,0,0,0,0,0,0,0,0,0,0,0,0,0,0,0,0,0,0,0]
[null,4001,null,"Food Master",0,0,0,0,0,0,0,0,0,0,0,0,0,0,0,0,0,0,0,0]
[null,4005,null,"Food purchases",0,0,0,0,0,0,0,0,0,0,0,0,0,0,0,0,0,0,0,0]
[null,4002,null,"Food Stylists",0,0,0,0,0,0,0,0,0,0,0,0,0,0,0,0,0,0,0,0]
[null,4099,null,"Fringes - Culinary",0,0,0,0,0,0,0,0,0,0,0,0,0,0,0,0,0,0,0,0]
[null,4006,null,"Pantry",0,0,0,0,0,0,0,0,0,0,0,0,0,0,0,0,0,0,0,0]
[null,4012,null,"Recipe Development",0,0,0,0,0,0,0,0,0,0,0,0,0,0,0,0,0,0,0,0]
[null,4003,null,"Shoppers",0,0,0,0,0,0,0,0,0,0,0,0,0,0,0,0,0,0,0,0]
[null,4011,null,"Stewards (clean-up crew)",0,0,0,0,0,0,0,0,0,0,0,0,0,0,0,0,0,0,0,0]
[null,4100,"u","Turbo Restoration",{"$f":"COUNTIF(Col_CCID,$B638)","v":0},{"$f":"SUMIFS(Col_LocalSubtotal,Col_CCID,$B638,Col_Currency,F$4)","v":0},0,0,0,0,0,0,0,0,0,0,0,0,0,0,0,0,0,{"$f":"SUMIFS(Col_Value, Col_CCID,$B638)/DefaultCurrencyRate","v":0},{"$f":"X638/$X$6","v":{"$error":"#DIV/0!"}}]
[null,4103,null,{"$f":"VLOOKUP($B639,MasterCOA,4,0)","v":"Build Costs"},{"$f":"COUNTIF(Col_SCID,$B639)","v":0},{"$f":"SUMIFS(Col_LocalSubtotal,Col_SCID,$B639,Col_Currency,F$4)","v":0},0,0,0,0,0,0,0,0,0,0,0,0,0,0,0,{"$f":"SUMIFS(Col_LocalSubtotal,Col_SCID,$B639,Col_Currency,V$4)","v":0},0,{"$f":"SUMIFS(Col_Value, Col_SCID,$B639)/VLOOKUP(DefaultCurrency,CurrencyTable,3,0)","v":0}]
[null,4102,null,"Build Producer/Project Manager",0,0,0,0,0,0,0,0,0,0,0,0,0,0,0,0,0,0,0,0]
[null,4104,null,"Build/Construction Labor",0,0,0,0,0,0,0,0,0,0,0,0,0,0,0,0,0,0,0,0]
[null,4117,null,"Car Parts",0,0,0,0,0,0,0,0,0,0,0,0,0,0,0,0,0,0,0,0]
[null,4116,null,"Car Purchase",0,0,0,0,0,0,0,0,0,0,0,0,0,0,0,0,0,0,0,0]
[null,4119,null,"Car Storage",0,0,0,0,0,0,0,0,0,0,0,0,0,0,0,0,0,0,0,0]
[null,4120,null,"Compensation for workshop residents",0,0,0,0,0,0,0,0,0,0,0,0,0,0,0,0,0,0,0,0]
[null,4199,null,"Fringes - Turbo Restoration",0,0,0,0,0,0,0,0,0,0,0,0,0,0,0,0,0,0,0,0]
[null,4108,null,"Mechanic off Screen",0,0,0,0,0,0,0,0,0,0,0,0,0,0,0,0,0,0,0,0]
[null,4107,null,"Mechanic on screen",0,0,0,0,0,0,0,0,0,0,0,0,0,0,0,0,0,0,0,0]
[null,4114,null,"MOT (certificate of roadworthiness)",0,{"$f":"SUMIFS(Col_LocalSubtotal,Col_SCID,$B649,Col_Currency,F$4)","v":0},0,0,0,0,0,0,0,0,0,0,0,0,0,0,0,0,0,0]
[null,4112,null,"Specialist Car Assistant Producer",0,0,0,0,0,0,0,0,0,0,0,0,0,0,0,0,0,0,0,0]
[null,4111,null,"Specialist Car Researcher",0,0,0,0,0,0,0,0,0,0,0,0,0,0,0,0,0,0,0,0]
[null,4106,null,"Stunt Coordinator",0,0,0,0,0,0,0,0,0,0,0,0,0,0,0,0,0,0,0,0]
[null,4113,null,"Trade Out ",0,0,0,0,0,0,0,0,0,0,0,0,0,0,0,0,0,0,0,0]
[null,4105,null,"Trade Out Coordinator",0,0,0,0,0,0,0,0,0,0,0,0,0,0,0,0,0,0,0,0]
[null,4118,null,"Vehicle Transport",0,0,0,0,0,0,0,0,0,0,0,0,0,0,0,0,0,0,0,0]
[null,4101,null,"Workshop Costs",0,0,0,0,0,0,0,0,0,0,0,0,0,0,0,0,0,0,0,0]
[null,4109,null,"Workshop Kit",0,0,0,0,0,0,0,0,0,0,0,0,0,0,0,0,0,0,0,0]
[null,4110,null,"Workshop Manager",0,0,0,0,0,0,0,0,0,0,0,0,0,0,0,0,0,0,0,0]
[null,4115,null,"Workshop set up",0,0,0,0,0,0,0,0,0,0,0,0,0,0,0,0,0,0,0,0]
[null,4200,"u","Makeover & Construction",{"$f":"COUNTIF(Col_CCID,$B660)","v":0},{"$f":"SUMIFS(Col_LocalSubtotal,Col_CCID,$B660,Col_Currency,F$4)","v":0},0,0,0,0,0,0,0,0,0,0,0,0,0,0,0,0,0,{"$f":"SUMIFS(Col_Value, Col_CCID,$B660)/DefaultCurrencyRate","v":0},{"$f":"X660/$X$6","v":{"$error":"#DIV/0!"}}]
[null,4210,null,{"$f":"VLOOKUP($B661,MasterCOA,4,0)","v":"Construction Equipment"},{"$f":"COUNTIF(Col_SCID,$B661)","v":0},{"$f":"SUMIFS(Col_LocalSubtotal,Col_SCID,$B661,Col_Currency,F$4)","v":0},0,0,0,0,0,0,0,0,0,0,0,0,0,0,0,{"$f":"SUMIFS(Col_LocalSubtotal,Col_SCID,$B661,Col_Currency,V$4)","v":0},0,{"$f":"SUMIFS(Col_Value, Col_SCID,$B661)/VLOOKUP(DefaultCurrency,CurrencyTable,3,0)","v":0}]
[null,4204,null,"Construction Labor",0,0,0,0,0,0,0,0,0,0,0,0,0,0,0,0,0,0,0,0]
[null,4211,null,"Construction Materials",0,0,0,0,0,0,0,0,0,0,0,0,0,0,0,0,0,0,0,0]
[null,4201,null,"Contruction Manager",0,0,0,0,0,0,0,0,0,0,0,0,0,0,0,0,0,0,0,0]
[null,4203,null,"Design Coordinator",0,0,0,0,0,0,0,0,0,0,0,0,0,0,0,0,0,0,0,0]
[null,4202,null,"Design Supervisor",0,0,0,0,0,0,0,0,0,0,0,0,0,0,0,0,0,0,0,0]
[null,4209,null,"Electrical certification (after make-over)",0,0,0,0,0,0,0,0,0,0,0,0,0,0,0,0,0,0,0,0]
[null,4299,null,"Fringes - Makeover & Construction",0,0,0,0,0,0,0,0,0,0,0,0,0,0,0,0,0,0,0,0]
[null,4208,null,"Make over costs",0,0,0,0,0,0,0,0,0,0,0,0,0,0,0,0,0,0,0,0]
[null,4207,null,"Make over team",0,0,0,0,0,0,0,0,0,0,0,0,0,0,0,0,0,0,0,0]
[null,4206,null,"Set Construction",0,0,0,0,0,0,0,0,0,0,0,0,0,0,0,0,0,0,0,0]
[null,4205,null,"Staging Allowance",0,0,0,0,0,0,0,0,0,0,0,0,0,0,0,0,0,0,0,0]
[null,4300,"u","Recon / Recre",{"$f":"COUNTIF(Col_CCID,$B673)","v":0},{"$f":"SUMIFS(Col_LocalSubtotal,Col_CCID,$B673,Col_Currency,F$4)","v":0},0,0,0,0,0,0,0,0,0,0,0,0,0,0,0,0,0,{"$f":"SUMIFS(Col_Value, Col_CCID,$B673)/DefaultCurrencyRate","v":0},{"$f":"X673/$X$6","v":{"$error":"#DIV/0!"}}]
[null,4399,null,{"$f":"VLOOKUP($B674,MasterCOA,4,0)","v":"Fringes - Recon / Recre"},{"$f":"COUNTIF(Col_SCID,$B674)","v":0},{"$f":"SUMIFS(Col_LocalSubtotal,Col_SCID,$B674,Col_Currency,F$4)","v":0},0,0,0,0,0,0,0,0,0,0,0,0,0,0,0,{"$f":"SUMIFS(Col_LocalSubtotal,Col_SCID,$B674,Col_Currency,V$4)","v":0},0,{"$f":"SUMIFS(Col_Value, Col_SCID,$B674)/VLOOKUP(DefaultCurrency,CurrencyTable,3,0)","v":0}]
[null,4302,null,{"$f":"VLOOKUP($B675,MasterCOA,4,0)","v":"Recreation Company Service Fee"},{"$f":"COUNTIF(Col_SCID,$B675)","v":0},0,0,0,0,0,0,0,0,0,0,0,0,0,0,0,0,0,0,{"$f":"SUMIFS(Col_Value, Col_SCID,$B675)/VLOOKUP(DefaultCurrency,CurrencyTable,3,0)","v":0}]
[null,4303,null,{"$f":"VLOOKUP($B676,MasterCOA,4,0)","v":"Recreation Detail"},{"$f":"COUNTIF(Col_SCID,$B676)","v":0},0,0,0,0,0,0,0,0,0,0,0,0,0,0,0,0,0,0,{"$f":"SUMIFS(Col_Value, Col_SCID,$B676)/VLOOKUP(DefaultCurrency,CurrencyTable,3,0)","v":0}]
[null,4301,null,{"$f":"VLOOKUP($B677,MasterCOA,4,0)","v":"Recreation Director"},{"$f":"COUNTIF(Col_SCID,$B677)","v":0},0,0,0,0,0,0,0,0,0,0,0,0,0,0,0,0,0,0,{"$f":"SUMIFS(Col_Value, Col_SCID,$B677)/VLOOKUP(DefaultCurrency,CurrencyTable,3,0)","v":0}]
[null,4400,"u","Animation",{"$f":"COUNTIF(Col_CCID,$B678)","v":0},{"$f":"SUMIFS(Col_LocalSubtotal,Col_CCID,$B678,Col_Currency,F$4)","v":0},0,0,0,0,0,0,0,0,0,0,0,0,0,0,0,0,0,{"$f":"SUMIFS(Col_Value, Col_CCID,$B678)/DefaultCurrencyRate","v":0},{"$f":"X678/$X$6","v":{"$error":"#DIV/0!"}}]
[null,4402,null,{"$f":"VLOOKUP($B679,MasterCOA,4,0)","v":"Animatics"},{"$f":"COUNTIF(Col_SCID,$B679)","v":0},{"$f":"SUMIFS(Col_LocalSubtotal,Col_SCID,$B679,Col_Currency,F$4)","v":0},0,0,0,0,0,0,0,0,0,0,0,0,0,0,0,{"$f":"SUMIFS(Col_LocalSubtotal,Col_SCID,$B679,Col_Currency,V$4)","v":0},0,{"$f":"SUMIFS(Col_Value, Col_SCID,$B679)/VLOOKUP(DefaultCurrency,CurrencyTable,3,0)","v":0}]
[null,4409,null,"Animators",0,0,0,0,0,0,0,0,0,0,0,0,0,0,0,0,0,0,0,0]
[null,4403,null,"Backgrounds",0,0,0,0,0,0,0,0,0,0,0,0,0,0,0,0,0,0,0,0]
[null,4407,null,"Character build",0,0,0,0,0,0,0,0,0,0,0,0,0,0,0,0,0,0,0,0]
[null,4410,null,"Composite/VFX",0,0,0,0,0,0,0,0,0,0,0,0,0,0,0,0,0,0,0,0]
[null,4404,null,"Design",0,0,0,0,0,0,0,0,0,0,0,0,0,0,0,0,0,0,0,0]
[null,4499,null,"Fringes - Animation",0,0,0,0,0,0,0,0,0,0,0,0,0,0,0,0,0,0,0,0]
[null,4406,null,"Props - Animation",0,0,0,0,0,0,0,0,0,0,0,0,0,0,0,0,0,0,0,0]
[null,4408,null,"Rigging",0,0,0,0,0,0,0,0,0,0,0,0,0,0,0,0,0,0,0,0]
[null,4405,null,"Set up/Scene Layout",0,0,0,0,0,0,0,0,0,0,0,0,0,0,0,0,0,0,0,0]
[null,4401,null,"Storyboard",0,0,0,0,0,0,0,0,0,0,0,0,0,0,0,0,0,0,0,0]
[null,4500,"u","Animals",{"$f":"COUNTIF(Col_CCID,$B690)","v":0},{"$f":"SUMIFS(Col_LocalSubtotal,Col_CCID,$B690,Col_Currency,F$4)","v":0},0,0,0,0,0,0,0,0,0,0,0,0,0,0,0,0,0,{"$f":"SUMIFS(Col_Value, Col_CCID,$B690)/DefaultCurrencyRate","v":0},{"$f":"X690/$X$6","v":{"$error":"#DIV/0!"}}]
[null,4506,null,{"$f":"VLOOKUP($B691,MasterCOA,4,0)","v":"Animal Expert"},{"$f":"COUNTIF(Col_SCID,$B691)","v":0},{"$f":"SUMIFS(Col_LocalSubtotal,Col_SCID,$B691,Col_Currency,F$4)","v":0},0,0,0,0,0,0,0,0,0,0,0,0,0,0,0,{"$f":"SUMIFS(Col_LocalSubtotal,Col_SCID,$B691,Col_Currency,V$4)","v":0},0,{"$f":"SUMIFS(Col_Value, Col_SCID,$B691)/VLOOKUP(DefaultCurrency,CurrencyTable,3,0)","v":0}]
[null,4502,null,"Animal fee",0,0,0,0,0,0,0,0,0,0,0,0,0,0,0,0,0,0,0,0]
[null,4501,null,"Animal handling / AHA",0,0,0,0,0,0,0,0,0,0,0,0,0,0,0,0,0,0,0,0]
[null,4599,null,"Fringes - Animals",0,0,0,0,0,0,0,0,0,0,0,0,0,0,0,0,0,0,0,0]
[null,4507,null,"Scientific Researcher",0,0,0,0,0,0,0,0,0,0,0,0,0,0,0,0,0,0,0,0]
[null,4505,null,"Shelter donations",0,0,0,0,0,0,0,0,0,0,0,0,0,0,0,0,0,0,0,0]
[null,4504,null,"Vet tech",0,0,0,0,0,0,0,0,0,0,0,0,0,0,0,0,0,0,0,0]
[null,4503,null,"Veterinarian",0,0,0,0,0,0,0,0,0,0,0,0,0,0,0,0,0,0,0,0]
[null,4600,"u","Live",{"$f":"COUNTIF(Col_CCID,$B699)","v":0},{"$f":"SUMIFS(Col_LocalSubtotal,Col_CCID,$B699,Col_Currency,F$4)","v":0},0,0,0,0,0,0,0,0,0,0,0,0,0,0,0,0,0,{"$f":"SUMIFS(Col_Value, Col_CCID,$B699)/DefaultCurrencyRate","v":0},{"$f":"X699/$X$6","v":{"$error":"#DIV/0!"}}]
[null,4614,null,{"$f":"VLOOKUP($B700,MasterCOA,4,0)","v":"Bonded Cell Equipment/Live Remotes"},{"$f":"COUNTIF(Col_SCID,$B700)","v":0},{"$f":"SUMIFS(Col_LocalSubtotal,Col_SCID,$B700,Col_Currency,F$4)","v":0},0,0,0,0,0,0,0,0,0,0,0,0,0,0,0,{"$f":"SUMIFS(Col_LocalSubtotal,Col_SCID,$B700,Col_Currency,V$4)","v":0},0,{"$f":"SUMIFS(Col_Value, Col_SCID,$B700)/VLOOKUP(DefaultCurrency,CurrencyTable,3,0)","v":0}]
[null,4606,null,"Broadcast Producer",0,0,0,0,0,0,0,0,0,0,0,0,0,0,0,0,0,0,0,0]
[null,4611,null,"Chyron – Graphics Op",0,0,0,0,0,0,0,0,0,0,0,0,0,0,0,0,0,0,0,0]
[null,4610,null,"EVS/Tape Operator",0,0,0,0,0,0,0,0,0,0,0,0,0,0,0,0,0,0,0,0]
[null,4699,null,"Fringes - Live",0,0,0,0,0,0,0,0,0,0,0,0,0,0,0,0,0,0,0,0]
[null,4608,null,"Generator Operators",0,0,0,0,0,0,0,0,0,0,0,0,0,0,0,0,0,0,0,0]
[null,4607,null,"Generators",0,0,0,0,0,0,0,0,0,0,0,0,0,0,0,0,0,0,0,0]
[null,4605,null,"IT Coordinator",0,0,0,0,0,0,0,0,0,0,0,0,0,0,0,0,0,0,0,0]
[null,4615,null,"PL /Communications",0,0,0,0,0,0,0,0,0,0,0,0,0,0,0,0,0,0,0,0]
[null,4616,null,"PSSI – Uplink Mobile Teleport (Satellite Uplink Truck)",0,0,0,0,0,0,0,0,0,0,0,0,0,0,0,0,0,0,0,0]
[null,4604,null,"Satellite Coordinator",0,{"$f":"SUMIFS(Col_LocalSubtotal,Col_SCID,$B710,Col_Currency,F$4)","v":0},0,0,0,0,0,0,0,0,0,0,0,0,0,0,0,0,0,0]
[null,4602,null,"Tech Director ",0,0,0,0,0,0,0,0,0,0,0,0,0,0,0,0,0,0,0,0]
[null,4601,null,"Tech Manager",0,0,0,0,0,0,0,0,0,0,0,0,0,0,0,0,0,0,0,0]
[null,4612,null,"Teleprompter",0,0,0,0,0,0,0,0,0,0,0,0,0,0,0,0,0,0,0,0]
[null,4609,null,"Video Control",0,0,0,0,0,0,0,0,0,0,0,0,0,0,0,0,0,0,0,0]
[null,4603,null,"Video Engineer",0,0,0,0,0,0,0,0,0,0,0,0,0,0,0,0,0,0,0,0]
[null,4613,null,"Video Truck ",0,0,0,0,0,0,0,0,0,0,0,0,0,0,0,0,0,0,0,0]
[null,4700,"u","Covid-19",{"$f":"COUNTIF(Col_CCID,$B717)","v":0},{"$f":"SUMIFS(Col_LocalSubtotal,Col_CCID,$B717,Col_Currency,F$4)","v":0},0,0,0,0,0,0,0,0,0,0,0,0,0,0,0,0,0,{"$f":"SUMIFS(Col_Value, Col_CCID,$B717)/DefaultCurrencyRate","v":0},{"$f":"X717/$X$6","v":{"$error":"#DIV/0!"}}]
[null,4701,null,"Covid Cost",0,{"$f":"SUMIFS(Col_LocalSubtotal,Col_SCID,$B718,Col_Currency,F$4)","v":0},0,0,0,0,0,0,0,0,0,0,0,0,0,0,0,0,0,0]
[null,4799,null,"(not applicable for UK)",0,0,0,0,0,0,0,0,0,0,0,0,0,0,0,0,0,{"$f":"SUMIFS(Col_LocalSubtotal,Col_SCID,$B719,Col_Currency,V$4)","v":0},0,0]

{"sheet":"Master COA","index":4,"n_rows":680,"n_cols":14,"rows_kept":680,"cut":false,"hidden":false,"merged":[]}
["#","CATEGORY","MASTER","SUBCATEGORY","US","UK","Germany","Italy","Spain","Nordics","LATAM","Brazil","India","Australia / New Zealand / Singapore"]
[3701,"Agency / Package Fee","Agency/ Package Fee",{"$f":"IF(INDIRECT(ADDRESS(ROW(),MATCH(DefaultRegion,$1:$1,0)))=\"\",\"(not applicable for \" & DefaultRegion & \")\",INDIRECT(ADDRESS(ROW(),MATCH(DefaultRegion,$1:$1,0))))","v":"Agency/ Package Fee"},"Agency/ Package Fee","Agency/ Package Fee","Agency/ Package Fee","Agency/ Package Fee","Agency/ Package Fee","Agency/ Package Fee","Agency/ Package Fee","Agency/ Package Fee","Agency/ Package Fee","Agency/ Package Fee"]
[4506,"Animals","Animal Expert","Animal Expert","Animal Expert","Animal Expert",null,null,null,null,"Especialesta animales","Especialista em animais","Animal Expert","Animal Expert"]
[4502,"Animals","Animal fee","Animal fee","Animal fee","Animal fee",null,null,"Animal fee",null,"Fee de animales","Cachês de animais","Animal fee","Animal fee"]
[4501,"Animals","Animal handling / AHA","Animal handling / AHA","Animal handling / AHA","Animal handling / AHA",null,null,"Animal handling / AHA",null,"Manejo de animales","Despesas com animais","Animal handling / AHA","Animal handling / AHA"]
[4599,"Animals","Fringes - Animals","Fringes - Animals","Fringes - Animals","Fringes - Animals",null,null,null,null,"Cargas sociales - animales"]
[4507,"Animals","Scientific Researcher","Scientific Researcher","Scientific Researcher","Scientific Researcher",null,null,null,null,"Investigador científico"]
[4505,"Animals","Shelter donations","Shelter donations","Shelter donations","Shelter donations",null,null,null,null,"Donaciones",null,"Shelter donations","Shelter donations"]
[4504,"Animals","Vet tech","Vet tech","Vet tech","Vet tech",null,null,null,null,"Técnico veterinario",null,"Vet tech","Vet tech"]
[4503,"Animals","Veterinarian","Veterinarian","Veterinarian","Veterinarian",null,null,"Veterinarian",null,"Veterinario",null,"Veterinarian","Veterinarian"]
[4402,"Animation","Animatics","Animatics","Animatics","Animatics",null,null,null,null,"Animatics","Animatics","Animatics","Animatics"]
[4409,"Animation","Animators","Animators","Animators","Animators",null,null,null,null,"Animators","Animators","Animators","Animators"]
[4403,"Animation","Backgrounds","Backgrounds","Backgrounds","Backgrounds",null,null,null,null,"Backgrounds","Backgrounds","Backgrounds","Backgrounds"]
[4407,"Animation","Character build","Character build","Character build","Character build",null,null,null,null,"Character build","Character build","Character build","Character build"]
[4410,"Animation","Composite/VFX","Composite/VFX","Composite/VFX","Composite/VFX",null,null,null,null,"Composite/VFX","Composite/VFX","Composite/VFX","Composite/VFX"]
[4404,"Animation","Design","Design","Design","Design",null,null,null,null,"Design","Design","Design","Design"]
[4499,"Animation","Fringes - Animation","Fringes - Animation","Fringes - Animation","Fringes - Animation",null,null,null,null,"Cargas sociales - animación",null,null,"Fringes - Animation"]
[4406,"Animation","Props - Animation","Props - Animation","Props - Animation","Props - Animation",null,null,null,null,"Props - Animation","Props - Animation","Props - Animation","Props - Animation"]
[4408,"Animation","Rigging","Rigging","Rigging","Rigging",null,null,null,null,"Rigging","Rigging","Rigging","Rigging"]
[4405,"Animation","Set up/Scene Layout","Set up/Scene Layout","Set up/Scene Layout","Set up/Scene Layout",null,null,null,null,"Set up/Scene Layout","Set up/Scene Layout","Set up/Scene Layout","Set up/Scene Layout"]
[4401,"Animation","Storyboard","Storyboard","Storyboard","Storyboard",null,null,null,null,"Storyboard","Storyboard","Storyboard","Storyboard"]
[2804,"Archive","Clearance / Deliverables Coordinator","Clearance / Deliverables Coordinator","Clearance / Deliverables Coordinator","Clearance / Deliverables Coordinator",null,"Clearance / Deliverables Coordinator",null,null,"Cordinador de entregables y autorizaciones"]
[2806,"Archive","Derechos de autor","(not applicable for UK)",null,null,null,null,"Derechos de Autor",null,"Derechos de autor"]
[2801,"Archive","Footage Licence Fee","Footage Licence Fee","Footage License Fee","Footage Licence Fee","Sonstige Nutzungsrechte Film ","Footage Licence Fee","Lecencias","Archive material","Licencias pietaje fílmico","Licença de uso de material de arquivo","Footage Licence Fee","Footage Licence Fee"]
[2899,"Archive","Fringes - Archive","Fringes - Archive","Fringes - Archive","Fringes - Archive",null,null,null,null,"Cargas sociales - archivo"]
[2807,"Archive","Misellaneous Rights & Clearances","Misellaneous Rights & Clearances","Misellaneous Rights & Clearances","Misellaneous Rights & Clearances",null,null,null,null,"Derechos y autorizaciones varios","Autorizações - diversos"]
[2803,"Archive","Processing Costs","Processing Costs ","Processing Costs ","Processing Costs ","Bearbeitungsgebühren","Processing Costs ",null,null,"Costos de procesamiento",null,"Processing Costs ","Processing Costs "]
[2805,"Archive","Search Fees","Search Fees","Search Fees","Search Fees","Suchgebühren","Search Fees",null,null,"Búsqueda de material de archivo","Material de Arquivo","Search Fees","Search Fees"]
[2802,"Archive","Still Licence Fee","Still Licence Fee","Still License Fee","Still Licence Fee","Nutzungsrechte Fotos","Still Licence Fee","Compra Imágenes",null,"Licencias imágenes",null,"Still Licence Fee","Still Licence Fee"]
[1601,"Art Department","Art Director","Art Director","Art Director","Art Director","Art Director","Art Director","Director de Arte",null,"Director de Arte","Diretor de Arte","Art Director","Art Director"]
[1602,"Art Department","Art PA","Art PA","Art PA","Art PA",null,null,null,null,"Asistente de Arte","Assistente de produção de arte","Art PA","Art PA"]
[1603,"Art Department","Assistant Art Director","Assistant Art Director","Assistant Art Director","Assistant Art Director",null,"Assistant Art Director","Ayudante del Director de Arte",null,"Asistente del Director de Arte","Assitente de arte","Assistant Art Director","Assistant Art Director"]
[1626,"Art Department","Backdrops / Backgrounds","Backdrops / Backgrounds","Backdrops / Backgrounds","Backdrops / Backgrounds","Hintergründe"]
[1623,"Art Department","Carpenter","Carpenter","Carpenter","Carpenter","Zimmermann",null,null,"Carpenter","Carpintero","Carpinteiro","Carpenter","Carpenter"]
[1616,"Art Department","Construction Crew","Construction Crew","Construction Crew","Construction Crew",null,"Construction Crew",null,"Construction Assistant","Crew armado",null,"Construction Crew","Construction Crew"]
[1615,"Art Department","Construction Manager","Construction Manager","Construction Manager","Construction Manager",null,"Construction Manager",null,"Construction Manager","Manager construcción","Cenotécnico","Construction Manager","Construction Manager"]
[1617,"Art Department","Deconstruction Crew","Deconstruction Crew","Deconstruction Crew","Deconstruction Crew",null,"Deconstruction Crew",null,"Deconstruction","Crew desarmado",null,"Deconstruction Crew","Deconstruction Crew"]
[1622,"Art Department","Double AD","Double AD","Double AD","Double AD",null,null,null,null,null,null,"Double AD"]
[1631,"Art Department","Event/Activity Expenses","(not applicable for UK)",null,null,null,null,null,"Event/Activity Expenses"]
[1699,"Art Department","Fringes - Art Department","Fringes - Art Department","Fringes - Art Department","Fringes - Art Department",null,null,null,null,"Cargas sociales - departamento de arte"]
[1618,"Art Department","Labour","Labour","Labour","Labour",null,null,null,null,"Mano de obra",null,"Labour","Labour"]
[1619,"Art Department","Painters / Scenic Artists","Painters / Scenic Artists","Painters / Scenic Artists","Painters / Scenic Artists","Innenrequisiteur","Painters / Scenic Artists",null,null,"Pintores / artistas escénicos",null,"Painters / Scenic Artists","Painters / Scenic Artists"]
[1604,"Art Department","Production Designer","Production Designer ","Production Designer ","Production Designer ","Szenenbildner","Production Designer ",null,"Production Designer","Diseñador","Production Designer ","Production Designer ","Production Designer "]
[1625,"Art Department","Property Suppliers","Property Suppliers","Property Suppliers","Property Suppliers",null,null,null,null,"Proveedores",null,"Property Suppliers"]
[1605,"Art Department","Props","Props ","Props ","Props ","Requisiten","Props ","Props ","Props","Utileria","Objetos","Props ","Props "]
[1607,"Art Department","Props Help","Props Help","Props Help","Props Help","Requisiten-Hilfe",null,null,"Prop assistant","Ayudante de utilería"]
[1606,"Art Department","Props Master","Props Master","Props Master","Props Master","Aussenrequisiteur",null,"Mozos","Prop manager","Utilero","Produtor de objetos","Props Master","Props Master"]
[1608,"Art Department","Set Construction","Set Construction ","Set Construction ","Set Construction ","Baubuhnenarbeiter","Set Construction ","Contrucción de set / armado","Set Construction","Contrucción de escenario / armado","Contrução de set","Set Construction ","Set Construction "]
[1627,"Art Department","Set Design","Set Design","Set Design","Set Design","Set Design","Set Design",null,"Set Design","Diseño de set",null,null,"Set Design"]
[1628,"Art Department","Set Design- Designer fee","Set Design- Designer fee","Set Design- Designer fee","Set Design- Designer fee",null,null,null,"Set Design- Designer fee","Fee diseñador de set",null,null,"Set Design- Designer fee"]
[1609,"Art Department","Set Dresser","Set Dresser ","Set Dresser ","Set Dresser ",null,"Set Dresser ",null,"Set Dresser ","Decorado","Aderecista","Set Dresser ","Set Dresser "]
[1611,"Art Department","Set Purchases","(not applicable for UK)","Set Purchases",null,"Set Purchases",null,null,null,"Compras"]
[1610,"Art Department","Set Rentals","Set Rentals ","Set Rentals ","Set Rentals ","Set Rentals ","Set Rentals ","Alquileres",null,"Alquileres","Aluguel de material Arte","Set Rentals ","Set Rentals "]
[1621,"Art Department","Set Transport","Set Transport","Set Transport","Set Transport","Set Transport","Set Transport",null,"Transportation set","Transporte escenario","Transporte de Cenário","Set Transport","Set Transport"]
[1624,"Art Department","Setting Boys","Setting Boys","Setting Boys","Setting Boys",null,null,null,null,null,null,"Setting Boys"]
[1612,"Art Department","Special Effects","Special Effects ","Special Effects ","Special Effects ","Spezialeffekte","Special Effects ","Efectos especiales","Special effects","Efectos especiales","Efeitos especiais Arte","Special Effects ","Special Effects "]
[1620,"Art Department","Standby Art","Standby Art","Standby Art","Standby Art","Grafiker",null,null,null,null,null,null,"Standby Art"]
[1613,"Art Department","Storage","Storage","Storage","Storage","Lager","Storage","Almacenamiento","Storage ","Almacenamiento","Storage Arte",null,"Storage"]
[1630,"Art Department","Supplies and Materials","Supplies and Materials","Supplies and Materials","Supplies and Materials",null,"Supplies and Materials",null,"Supplies and Materials","Materiales y suministros",null,null,"Supplies and Materials"]
[1629,"Art Department","Test Manager","Test Manager","Test Manager","Test Manager",null,null,null,"Test Manager"]
[1614,"Art Department","Weapons Master / Armourer","Weapons Master / Armourer","Weapons Master / Armourer","Weapons Master / Armourer","Waffenmeister","Weapons Master / Armourer",null,null,"Productor de armas","Especialista em armas","Weapons Master / Armourer","Weapons Master / Armourer"]
[1812,"Camera Crew & Equipment","Aerials (not Drones)","Aerials (not Drones)","Aerials (not Drones)","Aerials (not Drones)","Aerials (nicht Drohne)","Aerials (not Drones)",null,null,"Aéreos (no drone)",null,null,"Aerials (not Drones)"]
[1814,"Camera Crew & Equipment","Camera Accessories (Lenses, etc.)","Camera Accessories (Lenses, etc.)","Camera Accessories (Lenses, etc.)","Camera Accessories (Lenses, etc.)","Kamerazubehör","Camera Accessories (Lenses, etc.)","Alquiler de equipos (Lentes, etc)","Camera accessories","Alquiler de equipos (Lentes, etc)","Aluguel de equipamento","Camera Accessories (Lenses, etc.)","Camera Accessories (Lenses, etc.)"]
[1803,"Camera Crew & Equipment","Camera Assistant","Camera Assistant","Camera Assistant","Camera Assistant","Kamera Assistant","Camera Assistant","Auxiliares Camera","Camera assistant","Asistente de cámara","Assistente de câmera","Camera Assistant","Camera Assistant"]
[1820,"Camera Crew & Equipment","Camera Consumables / Expendables","Camera Consumables / Expendables","Camera Consumables / Expendables","Camera Consumables / Expendables","Kleinmaterial Verbrauch-Camera","Camera Consumables / Expendables","Consumos - Camera","Batteries ","Consumibles de cámara",null,"Camera Consumables / Expendables","Camera Consumables / Expendables"]
[1813,"Camera Crew & Equipment","Camera Kit",{"$f":"IF(INDIRECT(ADDRESS(ROW(),MATCH(DefaultRegion,$1:$1,0)))=\"\",\"(not applicable for \" & DefaultRegion & \")\",INDIRECT(ADDRESS(ROW(),MATCH(DefaultRegion,$1:$1,0))))","v":"Camera Kit"},"Camera Kit","Camera Kit","Filmkamera","Camera Kit","Cameras","Camera kit","Cámaras","Câmeras","Camera Kit","Camera Kit"]
[1802,"Camera Crew & Equipment","Camera Operator","Camera Operator","Camera Operator","Camera Operator","Kameramann","Camera Operator","Operador de Camara","Camera operator","Operador de cámara","Operador de câmera","Camera Operator","Camera Operator"]
[1822,"Camera Crew & Equipment","Camera Platforms","Camera Platforms","Camera Platforms","Camera Platforms",null,"Camera Platforms",null,null,null,null,"Camera Platforms","Camera Platforms"]
[1826,"Camera Crew & Equipment","CCU (camera control unit )","CCU (camera control unit )","CCU (camera control unit )","CCU (camera control unit )","Kamera-Steuereinheit","CCU (camera control unit )",null,"CCU (camera control unit )",null,null,null,"CCU (camera control unit)"]
[1828,"Camera Crew & Equipment","Cherry Picker / Crane","Cherry Picker / Crane","Cherry Picker / Crane","Cherry Picker / Crane","Hubsteiger / Kran",null,null,"Crane","Grúa",null,null,"Cherry Picker/Crane"]
[1801,"Camera Crew & Equipment","Director of Photography","Director of Photography","Director of Photography","Director of Photography","Director of Photography","Director of Photography","Director de Fotografia ",null,"Director de Fotografia (DF)","Diretor de fotografia","Director of Photography","Director of Photography"]
[1805,"Camera Crew & Equipment","DIT / Media / Data Wrangler","DIT / Media / Data Wrangler","DIT / Media / Data Wrangler","DIT / Media / Data Wrangler","DIT / Media / Data Wrangler","DIT / Media / Data Wrangler",null,"Cameraman B","Media manager","Logger","DIT / Media / Data Wrangler","DIT / Media / Data Wrangler"]
[1829,"Camera Crew & Equipment","Dolly","Dolly ","Dolly ","Dolly ",null,null,null,"Dolly ","Dolly",null,"Dolly","Dolly"]
[1811,"Camera Crew & Equipment","Drone Equipment","Drone Equipment","Drone Equipment","Drone Equipment","Drone Equipment","Drone Equipment","Drone Equipment",null,"Drone","Drone","Drone Equipment","Drone Equipment"]
[1810,"Camera Crew & Equipment","Drone Operator","Drone Operator","Drone Operator","Drone Operator","Drohne","Drones","Drone","Drones","Operador de drone","Operador de Drone","Drone Operator","Drone Operator "]
[1819,"Camera Crew & Equipment","Equipment Purchase","Equipment Purchase","Equipment Purchase","Equipment Purchase",null,"Equipment Purchase","Compra de equipos",null,"Compra de equipos","Compra de material","Equipment Purchase","Equipment Purchase"]
[1899,"Camera Crew & Equipment","Fringes - Camera Crew & Equipment","Fringes - Camera Crew & Equipment","Fringes - Camera Crew & Equipment","Fringes - Camera Crew & Equipment",null,null,null,null,"Cargas sociales - crew cámaras y equipos"]
[1808,"Camera Crew & Equipment","Jib Equipment","Jib Equipment","Jib Equipment","Jib Equipment","Jib Equipment","Jib Equipment",null,"Jib Equipment","Equipo de grúa pequeña","Grua","Jib Equipment","Jib Equipment "]
[1807,"Camera Crew & Equipment","Jib Operator","Jib Operator","Jib Operator","Jib Operator","Jib Operator","Jib Operator",null,"Jib Operator","Operador de grúa pequeña","Operador de grua","Jib Operator","Jib Operator"]
[1821,"Camera Crew & Equipment","Laptop","Laptop","Laptop","Laptop","Laptop","Laptop","Alquiler Laptops",null,"Laptop","Laptop","Laptop","Laptop"]
[1833,"Camera Crew & Equipment","Loss & Damage - Camera Crew & Equipment","(not applicable for UK)","Loss & Damage - Camera Crew & Equipment",null,null,null,null,null,"Pérdida y daño - cámaras y equipos","Perdas e danos - câmera"]
[1898,"Camera Crew & Equipment","Miscellanous - Camera Crew & Equipment","Miscellanous - Camera Crew & Equipment","Miscellanous - Camera Crew & Equipment","Miscellanous - Camera Crew & Equipment",null,null,null,null,"Misceláneos - cámaras y equipos",null,"Miscellaneous - Camera Crew & Equipment ","Miscellaneous - Camera Crew & Equipment "]
[1832,"Camera Crew & Equipment","Monitors and Video Villages","(not applicable for UK)","Monitors and Video Villages",null,null,null,null,null,"Monitores y estaciones de monitoreo","Cobertura para monitores"]
[1831,"Camera Crew & Equipment","PSC Crew","PSC Crew","PSC Crew","PSC Crew","EB-Teams "]
[1816,"Camera Crew & Equipment","Specialty Camera (GoPros, Mini-Cam, Remote etc.)","Specialty Camera (GoPros, Mini-Cam, Remote etc.)","Specialty Camera (GoPros, Mini-Cam, Remote etc.)","Specialty Camera (GoPros, Mini-Cam, Remote etc.)","Spezial Kameras (GoPros, Mini-Cam, Remote etc.)","Specialty Camera (GoPros, Mini-Cam, Remote etc.)","Camaras especiales","Speciality camera","Cámaras especiales (GoPro, minicam, remotas)","Câmeras Especiais","Specialty Camera (GoPros, Mini-Cam, Remote etc.)","Specialty Camera (GoPros, Mini-Cam, Remote etc.)"]
[1817,"Camera Crew & Equipment","Specialty Camera Operator","Specialty Camera Operator","Specialty Camera Operator","Specialty Camera Operator","Spezial Kameramann","Specialty Camera Operator",null,null,"Operador cámaras especiales","Operador de Câmeras Especiais","Specialty Camera Operator","Specialty Camera Operator"]
[1809,"Camera Crew & Equipment","Steadicam","Steadicam","Steadicam","Steadicam","Steadicam","Steadicam",null,"Steadicam","Steadicam","Operador de steadycam","Steadicam","Steadicam"]
[1818,"Camera Crew & Equipment","Stills Camera","Stills Camera","Stills Camera","Stills Camera","Stills Camera",null,null,null,"Cámara foto fija","Fotos Still","Stills Camera","Still Camera"]
[1815,"Camera Crew & Equipment","Stock/Drives/Cards/Readers","Stock/Drives/Cards/Readers","Stock/Drives/Cards/Readers","Stock/Drives/Cards/Readers","Speichermedien","Stock/Drives/Cards/Readers","Almacenamieto / Discos/Tarjetas de memorioa/ Lectores","Discs","Almacenamieto / discos/tarjetas de memorioa/ lectores","HDs para back up","Stock/Drives/Cards/Readers","Stock/Drives/Cards/Readers"]
[1824,"Camera Crew & Equipment","Technician Assistant","Technician Assistant ","Technician Assistant ","Technician Assistant ",null,null,null,"Technician Assistant ","Asistente técnico"]
[1823,"Camera Crew & Equipment","Technician Coordinator","Technician Coordinator","Technician Coordinator","Technician Coordinator",null,null,null,"Technician Coordinator","Coordinador técnico"]
[1830,"Camera Crew & Equipment","Tracks etc","Tracks etc","Tracks etc","Tracks etc","Slider, Gimbal",null,null,null,"Rieles y otros",null,"Tracks etc","Tracks etc"]
[1804,"Camera Crew & Equipment","Underwater Camera Operator","Underwater Camera Operator","Underwater Camera Operator","Underwater Camera Operator","Unterwasser Kameramann","Underwater Camera Operator",null,"Cameraman A","Operador de cámara acuática","Operador de câmera sub-aquática","Underwater Camera Operator","Underwater Camera Operator"]
[1806,"Camera Crew & Equipment","Utility","Utility","Utility","Utility",null,null,null,null,null,null,"Utility"]
[1825,"Camera Crew & Equipment","Video Journalist","Video Journalist","Video Journalist","Video Journalist","VJ",null,"Video Journalist","Video Journalist","Periodista"]
[1827,"Camera Crew & Equipment","Walkie Talkies","Walkie Talkies","Walkie Talkies","Walkie Talkies","Walkie Talkies",null,"Comunicaciones en rodaje (walki talki).","Walkie talkies","Walkie Talkies","Walkie Talkies","Walkie Talkies","Walkie Talkies "]
[1116,"Casting / Research","Casting Agency","Casting Agency","Casting Agency","Casting Agency","Castingagentur",null,null,null,"Agencia de casting",null,null,"Casting Agency"]
[1106,"Casting / Research","Casting Assistant","Casting Assistant","Casting Assistant","Casting Assistant","Casting Assistant","Casting Assistant",null,"Casting Assistant","Asistente de casting",null,null,"Casting Assistant "]
[1103,"Casting / Research","Casting Assistant Director","Casting Assistant Director","Casting Assistant Director","Casting Assistant Director","Casting Assistant Director",null,"Asistente de dirección de casting",null,"Asistente del director de casting","Assistente de diretor de casting","Casting Assistant Director","Casting Assistant Director"]
[1109,"Casting / Research","Casting Assistant Producer","Casting Assistant Producer","Casting Assistant Producer","Casting Assistant Producer","Casting Assistant Producer",null,null,null,"Asistente del productor de casting","Assistente de Produtor de casting","Casting Assitant Producer","Casting Assistant Producer"]
[1105,"Casting / Research","Casting Coordinator","Casting Coordinator","Casting Coordinator","Casting Coordinator",null,"Casting Coordinator","Coordinador de casting","Casting Coordinator","Coordinador de casting","Coordenador de Casting",null,"Casting Co-ordinator"]
[1102,"Casting / Research","Casting Director","Casting Director","Casting Director","Casting Director","Casting Director","Casting Director","Director de casting",null,"Director de casting","Diretor de casting","Casting Director","Casting Director"]
[1111,"Casting / Research","Casting Editor","Casting Editor","Casting Editor","Casting Editor","Castingredakteur",null,"Redactores Casting ",null,"Editor de casting","Editor de casting",null,"Casting Editor"]
[1104,"Casting / Research","Casting Manager","Casting Manager","Casting Manager","Casting Manager",null,null,null,"Casting Manager","Manager de casting","Gerente de casting",null,"Casting Manager"]
[1112,"Casting / Research","Casting Materials / Audition Costs","Casting Materials / Audition Costs","Casting Materials / Audition Costs","Casting Materials / Audition Costs",null,"Casting Materials / Audition Costs","Materiales Casting","Casting materials/audition costs","Materiales de casting","Despesas de casting","Casting Materials / Audition Costs","Casting Materials / Audition Costs"]
[1101,"Casting / Research","Casting Producer","Casting Producer","Casting Producer","Casting Producer","Casting Producer","Casting Producer","Productor de casting",null,"Productor de casting","Produtor de casting",null,"Casting Producer"]
[1110,"Casting / Research","Casting Researcher","Casting Researcher","Casting Researcher","Casting Researcher","Casting Researcher",null,null,null,"Investigación de casting","Pesquisa de casting","Casting Researcher","Casting Researcher"]
[1107,"Casting / Research","Celebrity Booker / Finder","Celebrity Booker / Finder","Celebrity Booker / Finder","Celebrity Booker / Finder",null,null,null,null,null,null,"Celebrity Booker / Finder","Celebrity Booker / Finder"]
[1108,"Casting / Research","Celebrity Co-ordinator","Celebrity Co-ordinator","Celebrity Co-ordinator","Celebrity Co-ordinator",null,null,null,null,"Coordinador celebridades",null,null,"Celebrity Co-ordinator"]
[1199,"Casting / Research","Fringes - Casting/Research","Fringes - Casting/Research","Fringes - Casting/Research","Fringes - Casting/Research",null,null,null,null,"Cargas sociales - casting"]
[1113,"Casting / Research","Research Materials","Research Materials","Research Materials","Research Materials","Recherchematerial","Research Materials",null,"Research Materials","Materiales de investigación","Depesas de Pesquisa",null,"Research Materials"]
[1115,"Casting / Research","Research Materials - Books","Research Materials - Books","Research Materials - Books","Research Materials - Books","Bucher",null,null,null,"Libros"]
[1114,"Casting / Research","Research Materials - Maps","Research Materials - Maps","Research Materials - Maps","Research Materials - Maps","Landkarten",null,null,null,"Mapas"]
[1210,"Creative Team","2nd Assistant Director","2nd Assistant Director","2nd Assistant Director","2nd Assistant Director","2nd Regieassistent","2nd Assistant Director",null,null,"2ndo asistente de dirección","2º Assistente de direção","Assistant Director 2","2nd Assistant Director"]
[1219,"Creative Team","2nd Unit Director","2nd Unit Director","2nd Unit Director","2nd Unit Director","2nd Unit Director",null,null,null,"Director segunda unidad",null,null,"2nd Unit Director"]
[1233,"Creative Team","Archive Researcher","Archive Researcher","Archive Researcher","Archive Researcher","Archive Researcher",null,null,null,"Investigador de archivo","Pesquisadores de material de arquivo",null,"Archive Researcher"]
[1205,"Creative Team","Assistant Creative Director","Assistant Creative Director","Assistant Creative Director","Assistant Creative Director",null,null,null,null,"Asistente del director creativo",null,"Associate Creative Director"]
[1209,"Creative Team","Assistant Director","Assistant Director","Assistant Director","Assistant Director","Regieassistent","Assistant Director","Asistente del Director/ Sub Director",null,"Asistente de dirección","Assitente de direção","Assistant Director 1","Assistant Director"]
[1241,"Creative Team","Assistant Realizador","Assistant Realizador","Assistant Realizador","Assistant Realizador",null,null,"Ayudante de Realización",null,"Asistente de realización"]
[1239,"Creative Team","Assistant Writer","Assistant Writer","Assistant Writer","Assistant Writer",null,"Assitant Writer",null,"Assistant Writer","Asistente de guión"]
[1230,"Creative Team","Assistant/Associate Producer","Assistant/Associate Producer","Assistant/Associate Producer","Assistant/Associate Producer","Assistant/Associate Producer",null,null,null,"Productor asociado","Assistente de produção de base","Assistant/Associate Producer","Assistant/Associate Producer"]
[1234,"Creative Team","Car Producer","Car Producer","Car Producer","Car Producer",null,null,null,null,"Productor automóviles"]
[1235,"Creative Team","Challenge Producer","Challenge Producer","Challenge Producer","Challenge Producer",null,null,null,null,"Productor desafíos","Produtor de provas",null,"Challenge Producer"]
[1208,"Creative Team","Chief Assistant Director","Chief Assistant Director","Chief Assistant Director","Chief Assistant Director",null,null,null,null,"1er asistente de dirección",null,"Chief Assistant Director"]
[1202,"Creative Team","Co-Executive Producer","Co-Executive Producer","Co-Executive Producer","Co-Executive Producer",null,null,null,"Co-Executive Producer",null,"Co-produtor Executivo","Assistant Executive Producer","Co-Executive Producer"]
[1227,"Creative Team","Consulting Producer","Consulting Producer","Consulting Producer","Consulting Producer",null,null,null,null,"Consultor de producción","Consultores (Criativo)",null,"Consulting Producer"]
[1237,"Creative Team","Continuity Producer","Continuity Producer","Continuity Producer","Continuity Producer",null,null,null,null,"Continuista","Continuísta","Continuity Producer","Continuity Producer"]
[1215,"Creative Team","Co-Producer","Co-Producer","Co-Producer","Co-Producer",null,null,null,null,"Coproductor","Co-produtor",null,"Co-Producer  "]
[1204,"Creative Team","Creative Director","Creative Director","Creative Director","Creative Director",null,"Creative Director",null,null,"Director creativo",null,"Creative Director","Creative Director"]
[1236,"Creative Team","Culinary Producer - Creative",{"$f":"IF(INDIRECT(ADDRESS(ROW(),MATCH(DefaultRegion,$1:$1,0)))=\"\",\"(not applicable for \" & DefaultRegion & \")\",INDIRECT(ADDRESS(ROW(),MATCH(DefaultRegion,$1:$1,0))))","v":"Culinary Producer - Creative"},"Culinary Producer - Creative","Culinary Producer - Creative",null,"Culinary Producer - Creative",null,null,"Productor cocina","Culinarista"]
[1212,"Creative Team","Director","Director","Director","Director","Regisseur",null,"Director ","Director","Director",null,"Assistant Director 3","Director  "]
[1223,"Creative Team","Edit Producer/Director","Edit Producer","Edit Producer/Director","Edit Producer",null,null,"Productor edicion",null,"Productor edición","Supervisão de edição",null,"Edit Producer/Director"]
[1243,"Creative Team","Editorial Assistant","Editorial Assistant","Editorial Assistant","Editorial Assistant","Redaktionsassistent",null,null,"Editorial Assistant","Asistente editorial"]
[1201,"Creative Team","Executive Producer","Executive Producer","Executive Producer","Executive Producer","Redakteur","Executive Producer","Productor Ejecutivo","Executive producer","Productor ejecutivo","Produtor Executivo","Executive Producer","Executive Producer"]
[1229,"Creative Team","Field Producer","Field Producer","Field Producer","Field Producer",null,"Field Producer",null,"Field producer","Productor de campo","Produtor de campo",null,"Field Producer"]
[1299,"Creative Team","Fringes - Creative Team","Fringes - Creative Team","Fringes - Creative Team","Fringes - Creative Team",null,null,null,null,"Cargas sociales - personal creativo"]
[1221,"Creative Team","Game Producer","Game Producer","Game Producer","Game Producer",null,null,null,"Game producer","Productor juego"]
[1244,"Creative Team","Game Producers Assistant","(not applicable for UK)",null,null,null,null,null,"Game Producers Assistant"]
[1224,"Creative Team","Post Producer","Post Producer","Post Producer","Post Producer","Post Production Producer",null,"Productor post  producción","Post producer","Finalizador","Finalizador","Post Producer","Post Producer"]
[1245,"Creative Team","Post Story Writer","(not applicable for UK)",null,null,null,null,null,"Post Story Writer"]
[1214,"Creative Team","Producer","Producer ","Producer ","Producer ","Producer",null,"Productor ","Producer","Productor",null,"Senior/Supervising Producer ","Producer "]
[1216,"Creative Team","Producer Assistant","Producer Assistant ","Producer Assistant ","Producer Assistant ",null,null,null,"Producer Assistant","Asistente del productor",null,null,"Producer Assistant"]
[1211,"Creative Team","Producer/ Director","Producer/ Director","Producer/ Director","Producer/ Director",null,"Producer/Director",null,null,"Productor / director",null,null,"Producer/Director"]
[1220,"Creative Team","Question Producer","Question Producer","Question Producer","Question Producer",null,null,null,"Question producer","Productor preguntas",null,null,"Question Producer"]
[1240,"Creative Team","Realizador","Realizador","Realizador","Realizador",null,null,"Realizador",null,"Realizador"]
[1242,"Creative Team","Redactor","Redactor","Redactor","Redactor",null,null,"Redactores",null,"Redactores","Redator"]
[1232,"Creative Team","Researcher","Researcher","Researcher","Researcher","Researcher","Researcher","Investigador/researcher","Researcher","Investigador/researcher","Pesquisadores","Researcher","Researcher"]
[1226,"Creative Team","Script Consultants","Script Consultants","Script Consultants","Script Consultants","Script Consultants","Script Consultants",null,"Script Consultants","Consultor de guión","Consultores de roteiro","Script Consultants","Script Consultants"]
[1228,"Creative Team","Segment Producer","Segment Producer","Segment Producer","Segment Producer",null,null,null,null,"Productor de segmentos/historias",null,null,"Segment Producer"]
[1213,"Creative Team","Senior/Supervising Producer","Senior/Supervising Producer ","Senior/ Supervising Producer","Senior/Supervising Producer ",null,null,null,null,"Supervisor de producción","Coordenador de produção (Criativo)","Assistant Director 4","Senior/Supervising Producer "]
[1207,"Creative Team","Series Director","Series Director","Series Director","Series Director","Series Director","Series Director",null,null,"Director de serie","Diretor","Series Director / Director","Series Director"]
[1206,"Creative Team","Series Producer","Series Producer","Series Producer","Series Producer","Redaktionsleiter",null,null,"Series producer","Productor de serie",null,"Assistant Creative Director","Series Producer"]
[1231,"Creative Team","Shooting Assistant producer","Shooting Assistant producer","Shooting Assistant producer","Shooting Assistant producer","Shooting Assistant producer",null,null,null,null,"Assistente de produção de campo",null,"Shooting Assistant producer"]
[1218,"Creative Team","Shooting Producer/ DV Director","Shooting Producer/ DV Director","Shooting Producer/ DV Director","Shooting Producer/ DV Director",null,null,null,null,"Productor camarógrafo",null,null,"Shooting Producer/ DV Director"]
[1203,"Creative Team","Show Runner","Show Runner","Show Runner","Show Runner",null,"Show Runner",null,"Show Runner","Show runner","Show Runner","Show Runner","Show Runner"]
[1225,"Creative Team","Story Producer","Story Producer","Story Producer","Story Producer",null,"Story Producer",null,"Story Producer","Productor de contenido","Story Producer (Criativo)",null,"Story Producer"]
[1222,"Creative Team","Supervising Post Producer","Supervising Post Producer","Supervising Post Producer","Supervising Post Producer",null,"Supervising Post Producer","Supervisor de Post producción",null,"Supervisor creativo de post produccion","Supervisor de pós-produção (Criativo)","Supervising Post Producer","Supervising Post Producer"]
[1217,"Creative Team","Visual producer","Visual producer","Visual producer","Visual producer",null,null,null,"Visual producer","Productor visual"]
[1238,"Creative Team","Writer (Story, Screenplay, Dialogue)","Writer (Story, Screenplay, Dialogue)","Writer (Story, Screenplay, Dialogue)","Writer (Story, Screenplay, Dialogue)","Autor","Writer (Story, Screenplay, Dialogue)","Guionista ","Story writer","Guionista","Roteirista","Writer (Story, Screenplay, Dialogue)","Writer (Story, Screenplay, Dialogue)"]
[4010,"Culinary","Assistant Culinary Producer","Assistant Culinary Producer","Assistant Culinary Producer","Assistant Culinary Producer",null,"Assistant Culinary Producer",null,null,"Asistente culinario",null,"Assistant Culinary Producer","Assistant Culinary Producer"]
[4014,"Culinary","Back Kitchen Rentals","Back Kitchen Rentals","Back Kitchen Rentals","Back Kitchen Rentals",null,null,null,null,"Alquileres back kitchen"]
[4013,"Culinary","Culinary Competition Compliance","Culinary Competition Compliance","Culinary Competition Compliance","Culinary Competition Compliance",null,null,null,null,"Cumplimiento reglas de competencia",null,"Competition Compliance"]
[4009,"Culinary","Culinary Producer","Culinary Producer","Culinary Producer","Culinary Producer",null,"Culinary Producer",null,null,"Productor culinario",null,"Culinary Producer","Culinary Producer"]
[4008,"Culinary","Culinary Purchases","Culinary Purchases","Culinary Purchases","Culinary Purchases",null,"Culinary Purchases",null,null,"Compra de equipos culinarios",null,"Culinary Purchases","Culinary Purchases"]
[4007,"Culinary","Culinary Rentals","Culinary Rentals","Culinary Rentals","Culinary Rentals",null,"Culinary Rentals",null,null,"Alquileres equipos /elementos de cocina",null,"Culinary Rentals","Culinary Rentals"]
[4004,"Culinary","Dishwashers","Dishwashers","Dishwashers","Dishwashers",null,"Dishwashers",null,null,"Lava vajillas","Lavadores de louça","Dishwashers","Dishwashers"]
[4001,"Culinary","Food Master","Food Master","Food Master","Food Master",null,"Food Master",null,null,"Chefs/Cocineros","Culinaristas","Food Master"]
[4005,"Culinary","Food purchases","Food purchases","Food purchases","Food purchases",null,"Food purchases",null,null,"Compra alimentos","Despesas com alimentos","Food purchases","Food purchases"]
[4002,"Culinary","Food Stylists","Food Stylists","Food Stylists","Food Stylists",null,"Food Stylists",null,null,"Estilistas de alimentos","Compradores","Food Stylists","Food Stylists"]
[4099,"Culinary","Fringes - Culinary","Fringes - Culinary","Fringes - Culinary","Fringes - Culinary",null,null,null,null,"Cargas sociales - culinaria"]
[4006,"Culinary","Pantry","Pantry","Pantry","Pantry",null,"Pantry",null,null,"Alacena",null,"Pantry","Pantry"]
[4012,"Culinary","Recipe Development","Recipe Development","Recipe Development","Recipe Development",null,"Recipe Development",null,null,"Desarrollo de recetas",null,"Recipe Development","Recipe Development"]
[4003,"Culinary","Shoppers","Shoppers","Shoppers","Shoppers",null,"Shoppers",null,null,"Compradores",null,"Shoppers","Shoppers"]
[4011,"Culinary","Stewards (clean-up crew)","Stewards (clean-up crew)","Stewards (clean-up crew)","Stewards (clean-up crew)",null,"Stewards (clean-up crew)",null,null,"Limpieza cocina",null,"Stewards (clean-up crew)","Stewards (clean-up crew)"]
[1001,"Development","Contracted/Paid Development cost","Contracted/Paid Development cost","Contracted/Paid Development cost","Contracted/Paid Development cost","Entwicklungskosten ","Contracted/Paid Development cost","Contracted/Paid Development cost","Development ","Desarrollo","Desenvolvimento","Contracted/Paid Development cost","Contracted/Paid Development cost"]
[1099,"Development","Fringes - Development","Fringes - Development","Fringes - Development","Fringes - Development",null,null,null,null,"Cargas sociales - desarrollo"]
[3203,"Financial","Additional fees (co-pros)","Additional fees (co-pros)","Additional fees (co-pros)","Additional fees (co-pros)",null,null,null,null,"Gastos de financiamiento",null,"Additional fees (co-pros)","Additional fees (co-pros)"]
[3201,"Financial","Bank Fees/Charges","Bank Fees/Charges","Bank Fees/Charges","Bank Fees/Charges","Finanzierungskosten","Bank Fees/Charges","Fees bancarios",null,"Cargos bancarios","Taxas bancárias","Bank Fees/Charges","Bank Fees/Charges"]
[3299,"Financial","Fringes - Finacial","Fringes - Finacial","Fringes - Finacial","Fringes - Finacial",null,null,null,null,"Cargas sociales - financieros"]
[3206,"Financial","Interim Financing","Interim Financing","Interim Financing","Interim Financing","Interim Financing"]
[3204,"Financial","Prize Money","Prize Money","Prize Money","Prize Money","Prize Money","Prize Money",null,"Prize Money","Premio en efectivo"]
[3202,"Financial","Tax Incentive Audit Fees","Tax Incentive Audit Fees","Tax Incentive Audit Fees","Tax Incentive Audit Fees",null,null,null,null,"Auditorías incentivos fiscales",null,null,"Tax Incentive Audit Fees"]
[3205,"Financial","Taxes","(not applicable for UK)",null,null,null,null,null,null,"Impuestos","Impostos"]
[3601,"Format Fee","Format Fee","Format Fee","Format Fee","Format Fee","Format Fee","Format Fee","Format Fee","Format Fee","Format Fee","Format Fee","Format Fee","Format Fee"]
[2604,"Graphics","Animation","Animation","Animation","Animation","Animation","Animation",null,null,"Animación","Animação","Animation","Animation"]
[2603,"Graphics","CGI","CGI","CGI","CGI","CGI","CGI",null,null,"CGI","CGI","CGI","CGI"]
[2699,"Graphics","Fringes - Graphics","Fringes - Graphics","Fringes - Graphics","Fringes - Graphics",null,null,null,null,"Cargas sociales - gráficas"]
[2602,"Graphics","Program Graphics","Program Graphics","Program Graphics","Program Graphics","VFX Erstellung","Program Graphics","Grafismos Show","Graphics ","Paquete gráfico",null,"In-show Graphics","In-show Graphics"]
[2601,"Graphics","Title Graphics","Title Graphics","Title Graphics","Title Graphics","Grafikpaket","Title Graphics","Grafismos Titulos","Intro ","Gráfica títulos / secuencia de título","Gráficos","Title Graphics","Title Graphics"]
[2317,"Health & Safety / Risk Management","Aerial Supervisors","Aerial Supervisors","Aerial Supervisors","Aerial Supervisors","Luftaufsichtsbehörden","Aerial Supervisors",null,null,"Supervisores aéreos",null,"Aerial Supervisors","Aerial Supervisors"]
[2310,"Health & Safety / Risk Management","Assistant Medics","Assistant Medics","Assistant Medics","Assistant Medics","Assistant Medics",null,null,null,"Asistentes médicos",null,"Assistant Medics","Assistant Medics"]
[2328,"Health & Safety / Risk Management","Crew/Talent Medicals","Crew/Talent Medicals","Medical Evaluation","Crew/Talent Medicals","Crew / Talentmedizin","Crew/Talent Medicals",null,null,"Evaciación médica",null,"Crew/Talent Medicals","Crew/Talent Medicals"]
[2316,"Health & Safety / Risk Management","Deep Sea Supervisors","Deep Sea Supervisors","Deep Sea Supervisors","Deep Sea Supervisors","Hochseeaufseher","Deep Sea Supervisors",null,null,"Supervisores de altamar","Técnico de Segurança","Deep Sea Supervisors","Deep Sea Supervisors"]
[2330,"Health & Safety / Risk Management","Dietician/Nutritionist",{"$f":"IF(INDIRECT(ADDRESS(ROW(),MATCH(DefaultRegion,$1:$1,0)))=\"\",\"(not applicable for \" & DefaultRegion & \")\",INDIRECT(ADDRESS(ROW(),MATCH(DefaultRegion,$1:$1,0))))","v":"Dietician/Nutritionist"},"Dietician/Nutritionist","Dietician/Nutritionist",null,"Dietician/Nutritionist",null,null,"Dietista / nutricionista","Nutricionista","Dietician/Nutritionist","Dietician/Nutritionist"]
[2311,"Health & Safety / Risk Management","Emergency First Responder","Emergency First Responder","Emergency First Responder","Emergency First Responder","Emergency First Responder","Emergency First Responder",null,null,"Médico de emergencia","Medico de emergência","Emergency First Responder","Emergency First Responder"]
[2338,"Health & Safety / Risk Management","Fight Master","Fight Master","Fight Master","Fight Master",null,"Fight Master",null,null,null,"Especialista em Lutas","Fight Master","Fight Master"]
[2335,"Health & Safety / Risk Management","Fire Marshall","Fire Marshall","Fire Marshall","Fire Marshall","Brandschutzbeauftragter","Fire Marshall",null,null,"Bombero","Bombeiro",null,"Fire Marshall"]
[2334,"Health & Safety / Risk Management","First Aid Kit","First Aid Kit","First Aid Kit","First Aid Kit","Verbandskasten","First Aid Kit","El botiquín de primeros auxilios",null,"Botiquín de primeros auxilios","Kit de Primeiros Socorros","First Aid Kit","First Aid Kit"]
[2399,"Health & Safety / Risk Management","Fringes - H&S/RM","Fringes - H&S/RM","Fringes - H&S/RM","Fringes - H&S/RM",null,null,null,null,"Cargs sociales - seguridad y salud"]
[2313,"Health & Safety / Risk Management","GPS Tracking & Comms Support","GPS Tracking & Comms Support","GPS Tracking & Comms Support","GPS Tracking & Comms Support","GPS-Verfolgung","GPS Tracking & Comms Support",null,null,"Apoyo de GPS y comunicaciones","Suporte de GPS","GPS Tracking & Comms Support","GPS Tracking & Comms Support"]
[2314,"Health & Safety / Risk Management","GPS Tracking Devices","GPS Tracking Devices","GPS Tracking Devices","GPS Tracking Devices","GPS-Ortungsgeräte","GPS Tracking Devices","GPS ",null,"Equipos de GPS","GPS","GPS Tracking Devices","GPS Tracking Devices"]
[2304,"Health & Safety / Risk Management","H&S Advisor - Location","H&S Advisor - Location","H&S Advisor - Location","H&S Advisor - Location",null,null,null,null,"Consultor de seguridad y salud en locación",null,"H&S Advisor - Location","H&S Advisor - Location"]
[2303,"Health & Safety / Risk Management","H&S Advisor - Series","H&S Advisor - Series","H&S Advisor - Series","H&S Advisor - Series","Gesundheits- und Sicherheitsberater","H&S Advisor - Series","Health and Safety Advisor",null,"Consultor de seguridad y salud",null,"H&S Advisor - Series","H&S Advisor - Series"]
[2312,"Health & Safety / Risk Management","H&S Training","H&S Training","H&S Training","H&S Training","Gesundheits- und Sicherheitsschulung",null,null,null,"Capacitación de seguridad y salud","Treinamento de Segurança","H&S Training","H&S Training"]
[2327,"Health & Safety / Risk Management","Medical Supplies","Medical Supplies","Medical Supplies","Medical Supplies","Medizinische Versorgung","Medical Supplies",null,null,"Provisiones médicas","Material Hospitalar","Medical Supplies","Medical Supplies"]
[2398,"Health & Safety / Risk Management","Miscellaneous - H&S/RM","Miscellaneous - H&S/RM","Miscellaneous - H&S/RM","Miscellaneous - H&S/RM",null,null,null,null,"Misceláneos seguridad y salud"]
[2302,"Health & Safety / Risk Management","Nurse","Nurse","Nurse","Nurse","Krankenschwester",null,null,"Nurse","Enfermera",null,"Nurse","Nurse"]
[2321,"Health & Safety / Risk Management","Off-Road Drivers","Off-Road Drivers","Off-Road Drivers","Off-Road Drivers","Off-Road-Fahrer","Off-Road Drivers",null,null,null,null,"Off-Road Drivers","Off-Road Drivers"]
[2307,"Health & Safety / Risk Management","Paramedic","Paramedic","Paramedic","Paramedic","Sanitäter","Paramedic",null,"Paramedic","Paramédico","Paramédico","Ambulance","Paramedic"]
[2331,"Health & Safety / Risk Management","Physiotherapist","Physiotherapist","Physiotherapist","Physiotherapist",null,"Physiotherapist",null,null,"Fisioterapista","Fisioterapeuta","Physiotherapist","Physiotherapist"]
[2326,"Health & Safety / Risk Management","PPE Equipment","PPE Equipment","PPE Equipment","PPE Equipment","Persönliche Schutzausrüstung","PPE Equipment",null,null,null,null,"PPE Equipment","PPE Equipment"]
[2333,"Health & Safety / Risk Management","Psychiatrist","Psychiatrist / Psychologist","Psychiatrist ","Psychiatrist / Psychologist","Psychiater / Psychologe","Psychiatrist ","El psicólogo","Psychiatrist ","Sicólogo","Psiquiatra","Psychiatrist ","Psychiatrist "]
[2336,"Health & Safety / Risk Management","Pyrotechnic","Pyrotechnic","Pyrotechnic","Pyrotechnic","Pyrotechnik","Pyrotechnic",null,null,"Pirotécnico","Pirotécnico",null,"Pyrotechnic"]
[2309,"Health & Safety / Risk Management","Risk Assessment / Safety Report","Risk Assessment / Safety Report","Risk Assessment / Safety Report","Risk Assessment / Safety Report","Risikoabschätzung","Risk Assessment / Safety Report","Prevención de riesgos","Safety","Análisis de riesgos","Risk Assessment","Risk Assessment / Safety Report","Risk Assessment / Safety Report"]
[2325,"Health & Safety / Risk Management","Rope Specialist","Rope Specialist","Rope Specialist","Rope Specialist","Seilspezialist","Rope Specialist",null,null,null,"Especialista","Rope Specialist","Rope Specialist"]
[2315,"Health & Safety / Risk Management","Ropes Unit","Ropes Unit","Ropes Unit","Ropes Unit","Ropes Unit","Ropes Unit",null,null,null,null,"Ropes Unit","Ropes Unit"]
[2337,"Health & Safety / Risk Management","Safety divers","Safety divers","Safety divers","Safety divers","Sicherheitstaucher","Safety divers",null,null,"Buzos de seguridad","Motoristas",null,"Safety divers"]
[2308,"Health & Safety / Risk Management","Security","Security","Security","Security","Security","Security",null,"Security","Seguridad","Segurança","Security","Security"]
[2339,"Health & Safety / Risk Management","Special Effect Master","Special Effect Master","Special Effect Master","Special Effect Master",null,"Special Effect Master",null,null,null,null,"Special Effect Master","Special Effect Master"]
[2332,"Health & Safety / Risk Management","Sports Doctor","Sports Doctor","Sports Doctor","Sports Doctor",null,"Sports Doctor",null,null,"Médico atletas",null,"Sports Doctor","Sports Doctor"]
[2301,"Health & Safety / Risk Management","Studio/Set Medic","Studio/Set Medic ","Studio/Set Medic ","Studio/Set Medic ","Studio/Set Medic ","Studio/Set Medic ","El médico","Studio/ Set Medic","Médico en set / escenario","Médico","Studio/Set Medic ","Studio/Set Medic "]
[2323,"Health & Safety / Risk Management","Stunt Co-ordinator","Stunt Co-ordinator","Stunt Co-ordinator","Stunt Co-ordinator","Stunt Koordinator","Stunt Co-ordinator",null,"Stunt Co-ordinator","Coordinador de stunts","Coordenador de Dublê","Stunt Co-ordinator","Stunt Co-ordinator"]
[2324,"Health & Safety / Risk Management","Stunt Double","Stunt Double","Stunt Double","Stunt Double","Stunt Double","Stunt Double",null,"Stunt Person","Doble","Dublê","Stunt Double","Stunt Double"]
[2320,"Health & Safety / Risk Management","Stunt Drivers","Stunt Drivers","Stunt Drivers","Stunt Drivers","Stuntfahrer","Stunt Drivers",null,null,null,"Motoristas dublês","Stunt Drivers","Stunt Drivers"]
[2340,"Health & Safety / Risk Management","Stunt Manager","(not applicable for UK)",null,null,null,null,null,"Stunt Manager"]
[2305,"Health & Safety / Risk Management","Survival Expert/Consultant","Survival Expert/Consultant","Survival Expert/Consultant","Survival Expert/Consultant","Survival Experte / Consultant","Survival Expert/Consultant",null,null,"Consultor en supervivencia",null,"Survival Expert/Consultant","Survival Expert/Consultant"]
[2329,"Health & Safety / Risk Management","Traffic & Pedestrian Control","Traffic & Pedestrian Control","Traffic & Pedestrian Control","Traffic & Pedestrian Control",null,"Traffic & Pedestrian Control",null,null,null,"Controle de Tráfego","Traffic & Pedestrian Control","Traffic & Pedestrian Control"]
[2319,"Health & Safety / Risk Management","Underwater Cave Supervisor","Underwater Cave Supervisor","Underwater Cave Supervisor","Underwater Cave Supervisor",null,"Underwater Cave Supervisor",null,null,"Supervisor de buceo en cuevas",null,"Underwater Cave Supervisor","Underwater Cave Supervisor"]
[2318,"Health & Safety / Risk Management","Underwater Dive Supervisor","Underwater Dive Supervisor","Underwater Dive Supervisor","Underwater Dive Supervisor","Unterwasser-Tauchaufsicht","Underwater Dive Supervisor",null,null,"Supervisor de buceo",null,"Underwater Dive Supervisor","Underwater Dive Supervisor"]
[2322,"Health & Safety / Risk Management","Underwater Escape Training","Underwater Escape Training","Underwater Escape Training","Underwater Escape Training",null,"Underwater Escape Training",null,null,"Entrenamiento de escape bajo agua",null,"Underwater Escape Training","Underwater Escape Training"]
[2306,"Health & Safety / Risk Management","Unit Medic","Unit Medic","Unit Medic","Unit Medic","Unit Medic","Unit Medic",null,null,"Doctor",null,"Doctor","Unit Medic"]
[3102,"Insurance","AD&D","AD&D","AD&D","AD&D",null,"AD&D",null,null,"AD&D (muerte accidental / desmembramiento)","AD&D"]
[3109,"Insurance","Additional/Other Insurances","Additional/Other Insurances","Additional/Other Insurances","Additional/Other Insurances","Additional/Other Insurances","Additional/Other Insurances","Seguros especiales",null,"Seguros especiales","Coberturas de Seguro Adicionais","Additional/Other Insurances","Additional/Other Insurances"]
[3105,"Insurance","Aircraft","Aircraft","Aircraft","Aircraft","Aircraft","Aircraft","Aircraft",null,"Aircraft (aeronave)",null,null,"Aircraft"]
[3104,"Insurance","Cast Coverage","Cast Coverage","Cast Coverage","Cast Coverage",null,"Cast Coverage",null,null,"Cast coverage (seguro elenco)","Seguro de Equipe",null,"Cast Coverage"]
[3108,"Insurance","E&O","E&O","E&O","E&O","E&O","E&O","Seguros de error u omisión",null,"Seguros de error u omisión","E&O","E&O","E&O"]
[3199,"Insurance","Fringes - Insurance","Fringes - Insurance","Fringes - Insurance","Fringes - Insurance",null,null,null,null,"Cargas sociales - Seguros"]
[3110,"Insurance","FUTi / Travel Insurance","FUTi / Travel Insurance","FUTi / Travel Insurance","FUTi / Travel Insurance","FUTi / Travel Insurance","FUTi / Travel Insurance","Seguros FUTI",null,"Seguros de viaje",null,"FUTi / Travel Insurance","FUTi / Travel Insurance"]
[3101,"Insurance","Production Package/Insurance","Production Package/Insurance","Production Package/Insurance","Production Package/Insurance","Versicherung Pauschal","Production Package/Insurance","Seguros de Produccion","Insurance-Production","Seguros de producción","Seguro de produção","Production Package/Insurance","Production Package/Insurance"]
[3107,"Insurance","Stunt Coverage","Stunt Coverage","Stunt Coverage","Stunt Coverage","Stunt Coverage","Stunt Coverage","Stunt Coverage",null,"Stunt Coverage",null,null,"Stunt Coverage"]
[3103,"Insurance","UAV/Drone","UAV/Drone","UAV/Drone","UAV/Drone","UAV/Drone","UAV/Drone","UAV/Drone",null,"UAV/Drone",null,null,"UAV/Drone"]
[3106,"Insurance","Watercraft","Watercraft","Watercraft","Watercraft","Watercraft","Watercraft","Watercraft",null,"Watercraft (embarcación)",null,null,"Watercraft"]
[3301,"Legal","Background/Police Checks","Background/Police Checks","Background/Police Checks","Background/Police Checks",null,"Background/Police Checks",null,null,"Certificado antecedentes penales / Verificación de antecedentes","Pesquisa de antecedentes",null,"Background/Police Checks"]
[3303,"Legal","Competition Compliance","Competition Compliance","Competition Compliance","Competition Compliance",null,"Competition Compliance",null,null,"Cumplimiento jurídico competencia",null,null,"Competition Compliance"]
[3302,"Legal","Compliance","Compliance","Compliance","Compliance","Compliance","Compliance",null,null,"Compliance","Compliance",null,"Compliance"]
[3399,"Legal","Fringes - Legal","Fringes - Legal","Fringes - Legal","Fringes - Legal",null,null,null,null,"Cargas sociales - legales"]
[3304,"Legal","Legal Fees","Legal Fees","Legal Fees","Legal Fees","Rechtsberatung","Legal Fees","Asesoría Juridica","Legal","Gastos legales / asesoría jurídica","Despesas legais","Legal Fees","Legal Fees"]
[3305,"Legal","Psych Tests","Psych Tests","Psych tests","Psych Tests","Psychologische Tests","Psych Tests",null,"Psych tests","Exámenes psicológicos","Testes psicológicos",null,"Psych Tests"]
[3306,"Legal","Title Search & Legal Opinion","Title Search & Legal Opinion","Title Search & Legal Opinion","Title Search & Legal Opinion",null,"Title Search & Legal Opinion","Title Search & Legal Opinion",null,"Búsqueda disponibilidad de título / opinión legal","Title Search & Legal Opinion","Title Search & Legal Opinion","Title Search & Legal Opinion"]
[3307,"Legal","Working Permits for Minors","Working Permits for Minors","Working Permits for Minors","Working Permits for Minors",null,"Working Permits for Minors",null,null,"Permiso de trabajo para menores","Alvará para Menores"]
[2009,"Lighting Crew & Equipment","Best Boy","Best Boy","Best Boy","Best Boy","Best Boy","Best Boy",null,null,"Asistente de grip",null,"Best Boy","Best Boy"]
[2014,"Lighting Crew & Equipment","Board Op","Board Op","Board Op","Board Op",null,null,null,null,null,null,null,"Board Op"]
[2005,"Lighting Crew & Equipment","Electrician","Electrician","Electrician","Electrician","Beleuchter","Electrician","Electrico","Electrician","Eléctrico","Eletricista","Electrician","Electrician"]
[2099,"Lighting Crew & Equipment","Fringes - Lighting Crew & Equipment","Fringes - Lighting Crew & Equipment","Fringes - Lighting Crew & Equipment","Fringes - Lighting Crew & Equipment",null,null,null,null,"Cargas sociales - crew iluminación y equpo"]
[2004,"Lighting Crew & Equipment","Gaffer","Gaffer","Gaffer","Gaffer","Oberbeleuchter","Gaffer",null,"Gaffer","Gaffer ","Eletricista chefe","Gaffer","Gaffer"]
[2008,"Lighting Crew & Equipment","Grip Package / Rig","Grip Package / Rig","Grip Package / Rig","Grip Package / Rig",null,"Grip Package / Rig",null,null,"Paquete de grip","Contraregra","Grip Package / Rig","Grip Package / Rig"]
[2007,"Lighting Crew & Equipment","Grip(s)","Grip(s)","Grip(s)","Grip(s)",null,"Grip(s)",null,"Grip","Grip","Maquinista","Grip(s)","Grip(s)"]
[2006,"Lighting Crew & Equipment","Key Grip",{"$f":"IF(INDIRECT(ADDRESS(ROW(),MATCH(DefaultRegion,$1:$1,0)))=\"\",\"(not applicable for \" & DefaultRegion & \")\",INDIRECT(ADDRESS(ROW(),MATCH(DefaultRegion,$1:$1,0))))","v":"Key Grip"},"Key Grip","Key Grip",null,"Key Grip",null,null,"Jefe de grip","Chefe de Maquinária","Key Grip","Key Grip"]
[2016,"Lighting Crew & Equipment","Light design","Light design","Light design","Light design",null,null,null,"Light design","Diseño de iluminación"]
[2003,"Lighting Crew & Equipment","Lighting Assistant","Lighting Assistant","Lighting Assistant","Lighting Assistant","Lighting Assistant",null,null,"Lighting Assistant","Asistente de iluminación","Assistente de Iluminação","Lighting Assistant","Lighting Assistant"]
[2011,"Lighting Crew & Equipment","Lighting Consumables / Expendables","Lighting Consumables / Expendables","Lighting Consumables / Expendables","Lighting Consumables / Expendables","Kleinmaterial Verbrauch-Lighting","Lighting Consumables / Expendables","Consumos - Lighting",null,"Consumibles Iluminación","Consumíveis de iluminação","Lighting Consumables / Expendables","Lighting Consumables / Expendables"]
[2002,"Lighting Crew & Equipment","Lighting Director","Lighting Director","Lighting Director","Lighting Director","Lighting Director","Lighting Director","Iluminador","Lighting Director","Jefe de iluminación","Iluminador - chefe","Lighting Director","Lighting Director"]
[2001,"Lighting Crew & Equipment","Lighting Kit / Package","Lighting Kit / Package","Lighting Kit / Package","Lighting Kit / Package","Lampen & Kabel","Lighting Kit / Package","Material de iluminación","Lighting kit /package","Paquete de iluminación","Pacote de iluminação","Lighting Kit / Package","Lighting Kit / Package"]
[2012,"Lighting Crew & Equipment","Lightmen","Lightmen","Lightmen","Lightmen",null,null,null,null,"Iluminadores","Iluminadores","Lightmen"]
[2018,"Lighting Crew & Equipment","Loss & Damage - Lighting Crew & Equipment","(not applicable for UK)","Loss & Damage - Lighting Crew & Equipment",null,null,null,null,null,"Perdida y daño - crew iluminación y equipo","Perdas e danos - iluminação"]
[2098,"Lighting Crew & Equipment","Miscellaneous - Lighting Crew & Equipment","Miscellaneous - Lighting Crew & Equipment","Miscellaneous - Lighting Crew & Equipment","Miscellaneous - Lighting Crew & Equipment",null,null,null,null,"Misceláneos - crew iluminación y equipo",null,"Miscellaneous - Lighting Crew & Equipment","Miscellaneous - Lighting Crew & Equipment"]
[2015,"Lighting Crew & Equipment","Mobile Power for Lighting (with fuel)","Mobile Power for Lighting (with fuel)","Mobile Power for Lighting (with fuel)","Mobile Power for Lighting (with fuel)","Lichtaggregat",null,null,null,"Generador móvil"]
[2017,"Lighting Crew & Equipment","Rig lamps","Rig lamps","Rig lamps","Rig lamps",null,null,null,"Rig lamps","Lámparas de plataforma"]
[2010,"Lighting Crew & Equipment","Specialist Lighting (underwater etc.)","Specialist Lighting (underwater etc.)","Specialist Lighting (underwater etc.)","Specialist Lighting (underwater etc.)","Spezielles Licht (Unterwasser usw.)",null,null,"Specialist lighting","Especialista iluminación (submarina, etc.)","Especialista de Iluminação","Specialist Lighting (underwater etc.)","Specialist Lighting (underwater etc.)"]
[2013,"Lighting Crew & Equipment","Tarafa Boys (Catwalk)","Tarafa Boys (Catwalk)","Tarafa Boys (Catwalk)","Tarafa Boys (Catwalk)",null,null,null,null,null,null,"Tarafa Boys (Catwalk)"]
[4614,"Live","Bonded Cell Equipment/Live Remotes","Bonded Cell Equipment/Live Remotes","Bonded Cell Equipment/Live Remotes","Bonded Cell Equipment/Live Remotes",null,"Bonded Cell Equipment/Live Remotes"]
[4606,"Live","Broadcast Producer","Broadcast Producer","Broadcast Producer","Broadcast Producer",null,"Broadcast Producer",null,null,"Productor de transmisión"]
[4611,"Live","Chyron – Graphics Op","Chyron – Graphics Op","Chyron – Graphics Op","Chyron – Graphics Op",null,"Chyron – Graphics Op",null,null,"Chyron - gráficas"]
[4610,"Live","EVS/Tape Operator","EVS/Tape Operator","EVS/Tape Operator","EVS/Tape Operator",null,"EVS/Tape Operator",null,null,"Operador de video"]
[4699,"Live","Fringes - Live","Fringes - Live","Fringes - Live","Fringes - Live",null,null,null,null,"Cargas sociales - en vivo"]
[4608,"Live","Generator Operators","Generator Operators","Generator Operators","Generator Operators",null,"Generator Operators",null,null,"Operador grupo electrógeno"]
[4607,"Live","Generators","Generators","Generators","Generators",null,"Generators",null,null,"Grupo electrógeno"]
[4605,"Live","IT Coordinator","IT Coordinator","IT Coordinator","IT Coordinator",null,"IT Coordinator",null,null,"Coordinador de informática"]
[4615,"Live","PL /Communications","PL /Communications","PL /Communications","PL /Communications",null,"PL /Communications"]
[4616,"Live","PSSI – Uplink Mobile Teleport (Satellite Uplink Truck)","PSSI – Uplink Mobile Teleport (Satellite Uplink Truck)","PSSI – Uplink Mobile Teleport (Satellite Uplink Truck)","PSSI – Uplink Mobile Teleport (Satellite Uplink Truck)",null,"PSSI – Uplink Mobile Teleport (Satellite Uplink Truck)",null,null,"Camión de uplink de satélite"]
[4604,"Live","Satellite Coordinator","Satellite Coordinator","Satellite Coordinator","Satellite Coordinator",null,"Satellite Coordinator",null,null,"Coordinador satélite"]
[4602,"Live","Tech Director","Tech Director ","Tech Director ","Tech Director ",null,"Tech Director ",null,null,"Director técnico"]
[4601,"Live","Tech Manager","Tech Manager","Tech Manager","Tech Manager",null,"Tech Manager",null,null,"Gerente técnico"]
[4612,"Live","Teleprompter","Teleprompter","Teleprompter","Teleprompter",null,"Teleprompter",null,null,"Teleprompter"]
[4609,"Live","Video Control","Video Control","Video Control","Video Control",null,"Video Control",null,null,"Control de video - en vivo"]
[4603,"Live","Video Engineer","Video Engineer","Video Engineer","Video Engineer",null,"Video Engineer",null,null,"Ingeniero de video"]
[4613,"Live","Video Truck","Video Truck ","Video Truck ","Video Truck ",null,"Video Truck ",null,null,"Camión de video"]
[2233,"Location Expenses - Field","4x4/Specialist Car Hire","4x4/Specialist Car Hire","4x4/Specialist Car Hire","4x4/Specialist Car Hire","4x4 / Spezial Autovermietung",null,null,null,"Especialista en auto 4x4","Especialista em Automóveis","4x4/Specialist Car Hire","4x4/Specialist Car Hire"]
[2251,"Location Expenses - Field","Big Screens","Big Screens","Big Screens","Big Screens",null,null,null,"Big Screens"]
[2234,"Location Expenses - Field","Boat Co-ordinator / Skipper","Boat Co-ordinator / Skipper","Boat Co-ordinator / Skipper","Boat Co-ordinator / Skipper","Bootskoordinator / Kapitän",null,null,"Boat Co-ordinator / Skipper","Coordinador de embarcación","Piloto de Barco","Boat Co-ordinator / Skipper","Boat Co-ordinator / Skipper"]
[2235,"Location Expenses - Field","Boat Hire","Boat Hire","Boat Hire","Boat Hire","Bootsverleih",null,null,"Boat Hire","Alquiler de embarcación","Aluguel de Barco","Boat Hire","Boat Hire"]
[2205,"Location Expenses - Field","Broadcast Gear Rentals - Field","Broadcast Gear Rentals - Field ","Broadcast Gear Rentals - Field ","Broadcast Gear Rentals - Field ",null,"Broadcast Gear Rentals - Field ","Alquiler equipos de transmicion","Broadcast Gear Rentals - Field ","Alquiler equipos de transmisión","Aluguel de equipamento de broadcast","Broadcast Gear Rentals - Field ","Broadcast Gear Rentals - Field "]
[2236,"Location Expenses - Field","Camping Equipment","Camping Equipment","Camping Equipment","Camping Equipment","Camping-Ausrüstung",null,null,"Camping Equipment","Equipo de acampado","Equipamento de Camping","Camping Equipment","Camping Equipment"]
[2256,"Location Expenses - Field","Cleaning - Field","(not applicable for UK)",null,null,null,null,null,"Cleaning - Field"]
[2255,"Location Expenses - Field","DIT Kit Rental","DIT Kit Rental","DIT Kit Rental","DIT Kit Rental",null,null,null,null,null,"Aluguel de kit DIT"]
[2237,"Location Expenses - Field","Diving Equipment","Diving Equipment","Diving Equipment","Diving Equipment","Tauchausrüstung",null,null,"Diving Equipment","Equipo de buceo","Equipamento de Mergulho","Diving Equipment","Diving Equipment"]
[2238,"Location Expenses - Field","Diving Vessels","Diving Vessels","Diving Vessels","Diving Vessels","Tauchgefäße",null,null,null,"Embarcación de buceo",null,"Diving Vessels","Diving Vessels"]
[2221,"Location Expenses - Field","EVS","EVS ","EVS ","EVS ",null,"EVS ",null,"EVS ",null,null,null,"EVS "]
[2213,"Location Expenses - Field","Field A1","Field A1","Field A1","Field A1",null,null,null,null,"Primer asistente de director de campo"]
[2214,"Location Expenses - Field","Field A2's","Field A2's","Field A2's","Field A2's",null,null,null,null,"Segundo asistente de director de campo"]
[2212,"Location Expenses - Field","Field AD","Field AD","Field AD","Field AD",null,null,null,"Field AD","Asistente director de campo",null,null,"Field AD"]
[2216,"Location Expenses - Field","Field Camera Ops","Field Camera Ops ","Field Camera Ops ","Field Camera Ops ",null,"Field Camera Ops ",null,"Field Camera Ops ","Operador de cámaras de campo","Operador de Câmera de campo",null,"Field Camera Ops "]
[2254,"Location Expenses - Field","Field Catering","Field Catering","Field Catering","Field Catering","Field Catering","Field Catering",null,null,"Field Catering",null,null,"Field Catering"]
[2204,"Location Expenses - Field","Field Control Room / TV Production Truck(s)","Field Control Room / TV Production Truck(s)","Field Control Room / TV Production Truck(s)","Field Control Room / TV Production Truck(s)",null,"Field Control Room / TV Production Truck(s)",null,"Field Control Room / TV Production Truck(s)","Unidad móvil / de ponchado",null,"Field Control Room / TV Production Truck(s)","Field Control Room / TV Production Truck(s)"]
[2253,"Location Expenses - Field","Field Crafty","Field Crafty","Field Crafty","Field Crafty",null,"Field Crafty",null,null,"Encargados de snacks y bebidas"]
[2219,"Location Expenses - Field","Field Electrics","Field Electrics","Field Electrics","Field Electrics",null,"Field Electrics",null,"Field Electrics","Eléctricos de campo",null,null,"Field Electrics"]
[2218,"Location Expenses - Field","Field Gaffer","Field Gaffer","Field Gaffer","Field Gaffer",null,"Field Gaffer",null,"Field Gaffer","Gaffer de campo","Eletricista Chefe de campo",null,"Field Gaffer"]
[2227,"Location Expenses - Field","Field Generators","Field Generators ","Field Generators ","Field Generators ",null,"Field Generators ",null,"Field Generators ","Generadores /grupo electrógeno de campo","Gerador",null,"Field Generators "]
[2217,"Location Expenses - Field","Field Lighting Director","Field Lighting Director","Field Lighting Director","Field Lighting Director",null,"Field Lighting Director",null,"Field Lighting Director","Director de iluminación de campo","Diretor de Iluminação",null,"Field Lighting Director"]
[2208,"Location Expenses - Field","Field Location Manager","Field Location Manager ","Field Location Manager ","Field Location Manager ","Location-Manager","Field Location Manager ",null,"Field Location Manager ","Gerente de locación","Produtor de locação de campo","Field Location Manager ","Field Location Manager "]
[2202,"Location Expenses - Field","Field Location Permit(s)","Field Location Permit(s)","Field Location Permit(s)","Field Location Permit(s)","Drehgenehmigung (offentliche)","Field Location Permit(s)","Permisos de locacion","Field Location Permit(s)","Autorizacones/permisos de locación","Autorizações de locação","Field Location Permit(s)","Field Location Permit(s)"]
[2210,"Location Expenses - Field","Field Stage Manager","Field Stage Manager ","Field Stage Manager ","Field Stage Manager ",null,"Field Stage Manager ",null,"Field Stage Manager ",null,"Produtor de set",null,"Field Stage Manager"]
[2222,"Location Expenses - Field","Field Tape Op / Media Manager","Field Tape Op / Media Manager ","Field Tape Op / Media Manager ","Field Tape Op / Media Manager ",null,"Field Tape Op / Media Manager ",null,"Field Tape Op / Media Manager ","Media Manager de campo","Logger de campo",null,"Field Tape Op / Media Manager "]
[2211,"Location Expenses - Field","Field TD","Field TD","Field TD","Field TD",null,null,null,null,"Director técnico de campo",null,null,"Field TD"]
[2209,"Location Expenses - Field","Field Technical Manager","Field Technical Manager","Field Technical Manager","Field Technical Manager",null,"Field Technical Manager","Jefe Technical ","Field Technical Manager","Gerente de técnica","Coordenador técnico",null,"Field Technical Manager"]
[2223,"Location Expenses - Field","Field Teleprompter / Autocue","Field Teleprompter / Autocue","Field Teleprompter / Autocue","Field Teleprompter / Autocue",null,"Field Teleprompter / Autocue",null,"Field Teleprompter / Autocue","Teleprompter de campo","Teleprompter de campo",null,"Field Teleprompter / Autocue"]
[2224,"Location Expenses - Field","Field Teleprompter / Autocue Operator","Field Teleprompter / Autocue Operator","Field Teleprompter / Autocue Operator","Field Teleprompter / Autocue Operator",null,null,null,"Field Teleprompter / Autocue Operator","Operador de teleprompter de campo","Operador de Teleprompter de campo",null,"Field Teleprompter / Autocue Operator"]
[2229,"Location Expenses - Field","Field Uplink Trucks & Satellite Time","Field Uplink Trucks & Satellite Time","Field Uplink Trucks & Satellite Time","Field Uplink Trucks & Satellite Time",null,"Field Uplink Trucks & Satellite Time",null,"Field Uplink Trucks & Satellite Time","Camión de uplink y tiempo de satélite - campo","Uplink de campo",null,"Field Uplink Trucks & Satellite Time"]
[2203,"Location Expenses - Field","Filming Permit- Government Building","Filming Permit- Government Building ","Filming Permit- Government Building ","Filming Permit- Government Building ","Motivmiete Moderation ",null,null,null,"Permiso de filmación en oficinas de gobierno"]
[2299,"Location Expenses - Field","Fringes - Field","Fringes - Field","Fringes - Field","Fringes - Field",null,null,null,null,"Cargas sociales - campo"]
[2239,"Location Expenses - Field","General Equipment","General Equipment","General Equipment","General Equipment","Allgemeine Ausrüstung","General Equipment",null,"General Equipment","Equipos generales",null,"General Equipment","General Equipment"]
[2240,"Location Expenses - Field","Generator & Fuel",{"$f":"IF(INDIRECT(ADDRESS(ROW(),MATCH(DefaultRegion,$1:$1,0)))=\"\",\"(not applicable for \" & DefaultRegion & \")\",INDIRECT(ADDRESS(ROW(),MATCH(DefaultRegion,$1:$1,0))))","v":"Generator & Fuel"},"Generator & Fuel","Generator & Fuel","Generator und Kraftstoff","Generator & Fuel",null,"Generator & Fuel","Generador y combustible","Gerador e Combustível","Generator & Fuel","Generator & Fuel"]
[2241,"Location Expenses - Field","Guides/Rangers","Guides/Rangers","Guides/Rangers","Guides/Rangers","Guides/Rangers","Guides/Rangers",null,"Guides/Rangers","Guías","Guias","Guides/Rangers","Guides/Rangers"]
[2242,"Location Expenses - Field","Helicopters/Fixed Wing","Helicopters/Fixed Wing","Helicopters/Fixed Wing","Helicopters/Fixed Wing","Hubschrauber / Flugzeug","Helicopters/Fixed Wing",null,"Helicopters/Fixed Wing","Helicóptero","Helicóptero","Helicopters/Fixed Wing","Helicopters/Fixed Wing"]
[2243,"Location Expenses - Field","Interpreter/Translators","Interpreter/Translators","Interpreter/Translators","Interpreter/Translators","Dolmetscher","Interpreter/Translators",null,"Interpreter/Translators","Intérpretes / traductores","Intérprete","Interpreter/Translators","Interpreter/Translators"]
[2244,"Location Expenses - Field","Landing/Docking Fees","Landing/Docking Fees","Landing/Docking Fees","Landing/Docking Fees","Landegebühren / Dockinggebühren","Landing/Docking Fees",null,"Landing/Docking Fees","Gastos de atracado y aterrizado","Taxas","Landing/Docking Fees","Landing/Docking Fees"]
[2245,"Location Expenses - Field","Local Fixer","Local Fixer","Local Fixer","Local Fixer","Motivaufnahmeleiter","Local Fixer","Fixer/ Service Producción ","Local Fixer","Fixer local","Fixer","Local Fixer","Local Fixer"]
[2250,"Location Expenses - Field","Location Ancillary Costs","Location Ancillary Costs","Location Ancillary Costs","Location Ancillary Costs","Motivenebenkosten"]
[2206,"Location Expenses - Field","Location Security","Location Security ","Location Security ","Location Security ","Location Security ","Location Security ","Seguridad","Location Security ","Seguridad exteriores","Segurança de campo","Location Security ","Location Security"]
[2298,"Location Expenses - Field","Miscellaneous - Field","Miscellaneous - Field","Miscellaneous - Field","Miscellaneous - Field",null,null,null,null,"Misceláneos campo",null,null,"Miscellaneous - Field "]
[2246,"Location Expenses - Field","Mobile/Cell/SAT Phones","Mobile/Cell/SAT Phones","Mobile/Cell/SAT Phones","Mobile/Cell/SAT Phones","Mobiltelefone","Mobile/Cell Phones","Teléfonos móviles","Mobile/Cell Phones","Teléfonos celulares","Telefone Celular","Mobile/Cell Phones","Mobile/Cell Phones"]
[2232,"Location Expenses - Field","Motorhomes / Trailers - Field","Motorhomes / Trailers - Field ","Motorhomes / Trailers - Field ","Motorhomes / Trailers - Field ",null,"Motorhomes / Trailers - Field ",null,"Motorhomes / Trailers - Field ","Trailers de campo","Trailer de campo",null,"Motorhomes / Trailers - Field "]
[2252,"Location Expenses - Field","PA","PA","PA","PA",null,null,null,"PA",null,null,null,"PA"]
[2247,"Location Expenses - Field","Porters","Porters","Porters","Porters","Träger","Porters",null,null,"Portadores",null,"Porters","Porters"]
[2248,"Location Expenses - Field","Ropes","Ropes","Ropes","Ropes","Seile",null,null,null,"Sogas","Cordas","Ropes","Ropes"]
[2207,"Location Expenses - Field","Scout/Survey","(not applicable for UK)","Scout/Survey",null,null,null,null,"Location scout",null,"Pesquisa de locação",null,"Scout/Survey"]
[2201,"Location Expenses - Field","Site / Location Fees","Site / Location Fees","Site / Location Fees","Site / Location Fees","Dreherlaubnis fur Grundstucke und Gebaude","Site / Location Fees","Alquiler de Locacion","Site / Location Fees","Alquiler de locación","Aluguel de estúdio / locação","Site / Location Fees","Site / Location Fees"]
[2225,"Location Expenses - Field","Special Effects- Field","Special Effects- Field ","Special Effects- Field ","Special Effects- Field ",null,"Special Effects- Field ",null,"Special Effects- Field ","Efectos especiales de campo","Efeitos Especiais de campo",null,"Special Effects- Field "]
[2230,"Location Expenses - Field","Stunt Vehicles","Stunt Vehicles ","Stunt Vehicles ","Stunt Vehicles ",null,"Stunt Vehicles ",null,"Stunt Vehicles ","Autos acrobáticos exteriores","Veículos de Dublês",null,"Stunt Vehicles "]
[2226,"Location Expenses - Field","TIFF's / POTS - Field","TIFF's / POTS - Field ","TIFF's / POTS - Field ","TIFF's / POTS - Field ",null,"TIFF's / POTS - Field "]
[2249,"Location Expenses - Field","Toilets/Portaloo","Toilets/Portaloo","Toilets/Portaloo","Toilets/Portaloo","Tragbare Toiletten","Toilets/Portaloo",null,null,"Baños portátiles","Banheiros","Toilets/Portaloo","Toilets/ Portaloo"]
[2228,"Location Expenses - Field","Transmissions - Field","Transmissions - Field ","Transmissions - Field ","Transmissions - Field ",null,"Transmissions - Field ",null,"Transmissions - Field ","Tansmisiones de campo",null,null,"Transmissions - Field "]
[2231,"Location Expenses - Field","Truck Rentals - Field","Truck Rentals - Field ","Truck Rentals - Field ","Truck Rentals - Field ",null,"Truck Rentals - Field ",null,"Truck Rentals - Field ","Alquiler de camiones de campo","Aluguel de Caminhões  ",null,"Truck Rentals - Field "]
[2215,"Location Expenses - Field","Video Control -Field","Video Control -Field","Video Control -Fiel d","Video Control -Field",null,"Video Control -Field",null,"Video Control -Fiel d","Control de viedo de campo"]
[2220,"Location Expenses - Field","Xpression- Field","Xpression- Field ","Xpression- Field ","Xpression- Field "]
[2177,"Location Expenses - Studio","AC operator","AC operator","AC operator","AC operator",null,null,null,"AC operator","Operador de aire acondicionado",null,"AC operator"]
[2137,"Location Expenses - Studio","Assistant Floor Manager","Assistant Floor Manager","Assistant Floor Manager","Assistant Floor Manager","Assistent Floor Manager","Assistant Floor Manager",null,"Assistant Floor Manager","Asistente de manager de piso","Assistente de set","Assistant Floor Manager","Assistant Floor Manager"]
[2143,"Location Expenses - Studio","Aston Operator","Aston Operator","Aston Operator","Aston Operator","Aston Operator",null,null,null,"Operador Aston",null,"Aston Operator","Aston Operator"]
[2141,"Location Expenses - Studio","Audience Manager","Audience Manager","Audience Manager","Audience Manager",null,"Audience Manager",null,"Audience Manager","Manager audiencie",null,null,"Audience Manager"]
[2138,"Location Expenses - Studio","Audience Monitors","Audience Monitors","Audience Monitors","Audience Monitors","Zuschauermonitore",null,null,"Audience Monitors","Monitores para audiencia",null,"Audience Monitors","Audience Monitors"]
[2139,"Location Expenses - Studio","Audience PA","Audience PA","Audience PA","Audience PA",null,null,null,"Audience PA",null,null,"Audience PA","Audience PA"]
[2142,"Location Expenses - Studio","Audience Seating","Audience Seating","Audience Seating","Audience Seating",null,null,null,"Audience Seating",null,null,null,"Audience Seating"]
[2140,"Location Expenses - Studio","Audience Wranglers","Audience Wranglers","Audience Wranglers","Audience Wranglers",null,null,null,null,null,null,null,"Audience Wranglers"]
[2168,"Location Expenses - Studio","Audio Assistant","Audio Assistant","Audio Assistant","Audio Assistant",null,null,null,"Audio Assistant","Asistente de audio","Assistente de Áudio (de estúdio)",null,"Audio Assistant"]
[2106,"Location Expenses - Studio","Broadcast Gear Rentals - Studio","Broadcast Gear Rentals - Studio ","Broadcast Gear Rentals - Studio ","Broadcast Gear Rentals - Studio ","Ausrüstungsverleih","Broadcast Gear Rentals - Studio ",null,"Broadcast Gear Rentals - Studio ","Alquiler de equipo de transmisión","Aluguel de Equipamento de Estúdio","Broadcast Gear Rentals - Studio ","Broadcast Gear Rentals - Studio "]
[2145,"Location Expenses - Studio","Camera Peds","Camera Peds","Camera Peds","Camera Peds","Kameras ",null,null,null,null,null,"Camera Peds","Camera Peds"]
[2146,"Location Expenses - Studio","Camera Supervisor","Camera Supervisor","Camera Supervisor","Camera Supervisor","Kamera Supervisor","Camera Supervisor",null,null,"Supervisor de cámaras",null,"Camera Supervisor","Camera Supervisor"]
[2183,"Location Expenses - Studio","Cleaning","Cleaning","Cleaning","Cleaning",null,"Cleaning",null,"Cleaning ","Limpieza estudio","Limpeza",null,"Cleaning"]
[2147,"Location Expenses - Studio","Console Operator","Console Operator","Console Operator","Console Operator","Konsolenoperator","Console Operator",null,null,"Operador de consolas",null,"Console Operator","Console Operator"]
[2148,"Location Expenses - Studio","De-rig Crew","De-rig Crew","De-rig Crew","De-rig Crew",null,null,null,null,"Gastos desarmado",null,"De-rig Crew","De-rig Crew"]
[2149,"Location Expenses - Studio","Dressing Rooms","Dressing Rooms","Dressing Rooms","Dressing Rooms","Umkleideräume","Dressing Rooms",null,null,"Vestidores","Camarim estúdio","Dressing Rooms","Dressing Rooms"]
[2175,"Location Expenses - Studio","Floor Incharge","Floor Incharge","Floor Incharge","Floor Incharge",null,null,null,null,null,null,"Floor Incharge"]
[2136,"Location Expenses - Studio","Floor Manager","Floor Manager","Floor Manager","Floor Manager","Abteilungsleiter","Floor Manager",null,"Floor Manager","Manager de piso","Gerente de Set","Floor Manager","Floor Manager"]
[2199,"Location Expenses - Studio","Fringes - Studio","Fringes - Studio","Fringes - Studio","Fringes - Studio",null,null,null,null,"Cargas sociales - estudio"]
[2150,"Location Expenses - Studio","Grams Operator","Grams Operator","Grams Operator","Grams Operator",null,null,null,null,null,null,"Grams Operator","Grams Operator"]
[2151,"Location Expenses - Studio","Green Room","Green Room","Green Room","Green Room","Green Room",null,null,null,null,null,"Green Room","Green Room"]
[2174,"Location Expenses - Studio","Housekeeping","Housekeeping","Housekeeping","Housekeeping",null,"Housekeeping",null,"Housekeeping",null,null,"Housekeeping"]
[2153,"Location Expenses - Studio","Jib / Crane Assistant","Jib / Crane Assistant","Jib / Crane Assistant","Jib / Crane Assistant","Kran / Kran-Assistent","Jib / Crane Assistant",null,"Jib / Crane Assistant","Asistente de operaror de grúa",null,"Jib / Crane Assistant","Jib / Crane Assistant"]
[2152,"Location Expenses - Studio","Jib / Crane Operator","Jib / Crane Operator","Jib / Crane Operator","Jib / Crane Operator","Kranbalken / Kranführer","Jib / Crane Operator",null,"Jib / Crane Operator","Operador de grúa","Operador de Grua (de estúdio)","Jib / Crane Operator","Jib / Crane Operator"]
[2155,"Location Expenses - Studio","Main & ISO Record","Main & ISO Record","Main & ISO Record","Main & ISO Record","Haupt- und ISO-Aufzeichnung","Main & ISO Record",null,null,null,null,"Main & ISO Record","Main & ISO Record"]
[2182,"Location Expenses - Studio","Makeup Rooms","Makeup Rooms","Makeup Rooms","Makeup Rooms",null,null,null,null,"Salas de maquillaje","Camarim (estúdio)","Makeup Rooms","Make Up Rooms"]
[2198,"Location Expenses - Studio","Miscellaneous - Studio","Miscellaneous - Studio","Miscellaneous - Studio","Miscellaneous - Studio",null,null,null,null,"Misceláneos estudio"]
[2119,"Location Expenses - Studio","Motorhomes / Trailers- Studio","Motorhomes / Trailers- Studio  ","Motorhomes / Trailers- Studio  ","Motorhomes / Trailers- Studio  ",null,"Motorhomes / Trailers- Studio  ",null,"Motorhomes / Trailers- Studio  ","Alquiler de trailers","Trailer (estúdio)",null,"Motorhomes / Trailers- Studio  "]
[2178,"Location Expenses - Studio","PCR Room","PCR Room","PCR Room","PCR Room",null,null,null,null,null,null,"PCR Room"]
[2179,"Location Expenses - Studio","Production / Property Room","Production / Property Room","Production / Property Room","Production / Property Room",null,null,null,"Production / Property Room",null,null,"Production / Property Room"]
[2156,"Location Expenses - Studio","Production Office","Production Office","Production Office","Production Office","Produktionsbüro",null,null,"Production Office","Oficina de producción","Base de Produção","Production Office","Production Office"]
[2180,"Location Expenses - Studio","Recce Cost","Recce Cost","Recce Cost","Recce Cost",null,null,null,null,null,null,"Recce Cost"]
[2157,"Location Expenses - Studio","Recording Facilities","Recording Facilities","Recording Facilities","Recording Facilities",null,null,null,null,"Instalaciones de grabación",null,"Recording Facilities","Recording Facilities"]
[2159,"Location Expenses - Studio","Scenehand / Stagehand","Scenehand / Stagehand","Scenehand / Stagehand","Scenehand / Stagehand","Bühnenarbeiter",null,null,null,null,null,"Scenehand / Stagehand","Scenehand / Stagehand"]
[2169,"Location Expenses - Studio","Screens","Screens","Screens","Screens",null,"Screens",null,"Screens",null,null,null,"Screens"]
[2158,"Location Expenses - Studio","Script Supervisor","Script Supervisor","Script Supervisor","Script Supervisor","Script Supervisor",null,null,null,"Supervisor de guión","Story Producer (de estúdio)","Script Supervisor","Script Supervisor"]
[2171,"Location Expenses - Studio","Set Maintence","Set Maintence","Set Maintence","Set Maintence",null,"Set Maintence",null,null,"Mantenimiento set / escenario","Manutenção de Estúdio","Set Maintence","Set Maintenance"]
[2120,"Location Expenses - Studio","Set Security","Set Security","Set Security ","Set Security","Set Security","Set Security ",null,"Set Security ","Seguridad estudio","Segurança de Estúdio","Set Security","Security "]
[2172,"Location Expenses - Studio","Setting Material","Setting Material","Setting Material","Setting Material",null,null,null,null,"Materiales de set / escenario",null,"Setting Material"]
[2160,"Location Expenses - Studio","Sound Engineer","Sound Engineer","Sound Engineer","Sound Engineer","Toningenieur","Sound Engineer",null,"Sound Engineer","Ingeniero de sonido","Engenheiro de Som","Sound Engineer","Sound Engineer"]
[2161,"Location Expenses - Studio","Sound Supervisor",{"$f":"IF(INDIRECT(ADDRESS(ROW(),MATCH(DefaultRegion,$1:$1,0)))=\"\",\"(not applicable for \" & DefaultRegion & \")\",INDIRECT(ADDRESS(ROW(),MATCH(DefaultRegion,$1:$1,0))))","v":"Sound Supervisor"},"Sound Supervisor","Sound Supervisor","Sound Supervisor",null,null,"Sound Supervisor","Supervisor de sonido","Supervisor de Áudio","Sound Supervisor","Sound Supervisor"]
[2121,"Location Expenses - Studio","Special Effects- Studio","Special Effects- Studio ","Special Effects- Studio ","Special Effects- Studio ","Spezialeffekte - Studio","Special Effects- Studio ",null,null,"Efectos especiales de estudio","Efeitos Especiais (estúdio)","Special Effects- Studio ","Special Effects- Studio "]
[2122,"Location Expenses - Studio","Stage / Studio Manager","Stage / Studio Manager ","Stage / Studio Manager ","Stage / Studio Manager ","Bühne / Studio Manager","Stage / Studio Manager ",null,"Stage / Studio Manager ",null,null,"Stage / Studio Manager ","Stage / Studio Manager "]
[2164,"Location Expenses - Studio","Steadicam - Studio","Steadicam - Studio","Steadicam - Studio","Steadicam - Studio","Steadicam-Studio","Steadycam",null,"Steadicam","Steadicam estudio","Steadycam","Steadicam - Studio","Steadicam - Studio"]
[2101,"Location Expenses - Studio","Studio / Location Fees","Studio / Location Fees","Studio / Location Fees","Studio / Location Fees","Studiomiete","Studio / Location Fees",null,"Studio / Location Fees","Estudio / locación","Aluguel de Estúdio","Studio / Location Fees","Studio / Location Fees"]
[2103,"Location Expenses - Studio","Studio A1","Studio A1","Studio A1","Studio A1"]
[2104,"Location Expenses - Studio","Studio A2s","Studio A2s","Studio A2s","Studio A2s"]
[2105,"Location Expenses - Studio","Studio AD","Studio AD","Studio AD","Studio AD",null,null,null,"Studio AD",null,null,null,"Studio AD"]
[2108,"Location Expenses - Studio","Studio Assistant Camera Ops","Studio Assistant Camera Ops ","Studio Assistant Camera Ops ","Studio Assistant Camera Ops ","Studio Assistent Kameramann","Studio Assistant Camera Ops ",null,"Studio Assistant Camera Ops ","Asistende de cámaras de estudio","Assistentes de Câmera de Estúdio","Studio Assistant Camera Ops ","Studio Assistant Camera Ops "]
[2176,"Location Expenses - Studio","Studio Attendant","Studio Attendant","Studio Attendant","Studio Attendant",null,null,null,null,null,null,"Studio Attendant"]
[2144,"Location Expenses - Studio","Studio Boom Operator","Studio Boom Operator","Studio Boom Operator","Studio Boom Operator","Tonangler-Studio","Studio Boom Operator",null,"Studio Boom Operator","Operador sonido estudio","Operador de Boom de estúdio","Studio Boom Operator","Studio Boom Operator"]
[2107,"Location Expenses - Studio","Studio Camera Ops","Studio Camera Ops ","Studio Camera Ops ","Studio Camera Ops ","Studio Kameramann","Studio Camera Ops ",null,"Studio Camera Ops ","Operador de cámaras de estudio","Operadores de Câmera de Estúdio","Studio Camera Ops ","Studio Camera Ops "]
[2185,"Location Expenses - Studio","Studio Catering","Studio Catering","Studio Catering","Studio Catering","Studio Catering","Studio Catering",null,null,"Studio catering",null,null,"Studio Catering"]
[2109,"Location Expenses - Studio","Studio Control Room / TV Production Truck(s)","Studio Control Room / TV Production Truck(s)","Studio Control Room / TV Production Truck(s)","Studio Control Room / TV Production Truck(s)","Studio Kontrollraum","Studio Control Room / TV Production Truck(s)",null,"Studio Control Room / TV Production Truck(s)","Unidad móvil","Switcher (estúdio)","Outside Broadcast Truck ","Studio Control Room / TV Production Truck(s)"]
[2184,"Location Expenses - Studio","Studio Crafty","Studio Crafty","Studio Crafty","Studio Crafty",null,null,null,null,"Snacks y bebidas"]
[2111,"Location Expenses - Studio","Studio Electricians","Studio Electricians","Studio Electricians","Studio Electricians","Studio Beleuchter","Studio Electricians",null,"Studio Electricians","Electricistas de estudio","Eletricistas de Estúdio","Studio Electricians","Studio Electricians"]
[2112,"Location Expenses - Studio","Studio EVS Op","Studio EVS Op","Studio EVS Op","Studio EVS Op","Studio EVS Op","Studio EVS Op",null,"Studio EVS Op","EVS estudio",null,"Studio EVS Op","Studio EVS Op"]
[2113,"Location Expenses - Studio","Studio Gaffer","Studio Gaffer","Studio Gaffer","Studio Gaffer","Studio Oberbeleuchter",null,null,"Studio Gaffer","Gaffer de estudio","Eletricista Chefe de Estúdio","Studio Gaffer","Studio Gaffer"]
[2114,"Location Expenses - Studio","Studio Generators","Studio Generators ","Studio Generators ","Studio Generators ","Studio-Generator","Studio Generators ",null,"Studio Generators ","Generadores / grupo electrógeno de estudio","Geradores de Estúdio","Studio Generators ","Studio Generators "]
[2115,"Location Expenses - Studio","Studio Lighting Director","Studio Lighting Director","Studio Lighting Director","Studio Lighting Director",null,null,null,"Studio Lighting Director","Director de iluminación de estudio","Diretor de Iluminação de Estúdio","Studio Lighting Director","Studio Lighting Director"]
[2154,"Location Expenses - Studio","Studio Lighting Rig","Studio Lighting Rig","Studio Lighting Rig","Studio Lighting Rig","Studio Beleuchtung Rig","Studio Lighting Rig",null,"Studio Lighting Rig","Rig iluminación de estudio",null,"Studio Lighting Rig","Studio Lighting Rig"]
[2116,"Location Expenses - Studio","Studio Lighting Technician","Studio Lighting Technician","Studio Lighting Technician","Studio Lighting Technician",null,null,null,"Studio Lighting Technician","Técnico de iluminación de estudio","Técnico de Iluminação de Estúdio","Studio Lighting Technician","Studio Lighting Technician"]
[2117,"Location Expenses - Studio","Studio Location Manager","Studio Location Manager ","Studio Location Manager ","Studio Location Manager ","Studio-Standortmanager",null,null,"Studio Location Manager ","Manager de estudio","Gerente de Locação (estúdio)","Studio Location Manager ","Studio Location Manager "]
[2102,"Location Expenses - Studio","Studio Location Permit(s)","Studio Location Permit(s)","Studio Location Permit(s)","Studio Location Permit(s)","Studio-Standortgenehmigungen","Studio Location Permit(s)",null,"Studio Location Permit(s)","Permisos de estudio / locación","Licenças","Studio Location Permit(s)","Studio Location Permit(s)"]
[2118,"Location Expenses - Studio","Studio Location Staff","Studio Location Staff","Studio Location Staff","Studio Location Staff",null,null,null,"Studio Location Staff",null,null,"Studio Location Staff","Studio Location Staff"]
[2163,"Location Expenses - Studio","Studio Package","Studio Package","Studio Package","Studio Package","Studio-Paket",null,null,"Studio Package",null,null,"Studio Package","Studio Package"]
[2162,"Location Expenses - Studio","Studio Sound kit / PA","Studio Sound kit / PA","Studio Sound kit / PA","Studio Sound kit / PA","Studio Sound Kit / PA",null,null,"Studio Sound kit / PA","Equipo de sonido","Equipamento de Som de Estúdio","Studio Sound kit / PA","Studio Sound kit / PA"]
[2124,"Location Expenses - Studio","Studio Tape Op / Media Manager","Studio Tape Op / Media Manager ","Studio Tape Op / Media Manager ","Studio Tape Op / Media Manager ","Studio Data Wrangler","Studio Tape Op / Media Manager ",null,null,"Media manager de estudio",null,"Studio Tape Op / Media Manager ","Studio Tape Op / Media Manager "]
[2125,"Location Expenses - Studio","Studio TD","Studio TD","Studio TD","Studio TD",null,null,null,null,"Director técnico de estudio",null,null,"Studio TD"]
[2126,"Location Expenses - Studio","Studio Technical Manager","Studio Technical Manager","Studio Technical Manager","Studio Technical Manager","Studio Technischer Manager","Studio Technical Manager",null,"Studio Technical Manager","Manager técnico de estudio","Gerente Técnico de Estúdio","Studio Technical Manager","Studio Technical Manager"]
[2127,"Location Expenses - Studio","Studio Technical Supervisor","Studio Technical Supervisor","Studio Technical Supervisor","Studio Technical Supervisor","Technischer Leiter des Studios","Studio Technical Supervisor",null,"Studio Technical Supervisor","Supervisor técnico de estudio","Supervisor Técnico de Estúdio","Studio Technical Supervisor","Studio Technical Supervisor"]
[2128,"Location Expenses - Studio","Studio Teleprompter / Autocue","Studio Teleprompter / Autocue","Studio Teleprompter / Autocue","Studio Teleprompter / Autocue","Teleprompter / Autocue","Studio Teleprompter / Autocue",null,"Studio Teleprompter / Autocue","Teleprompter de estudio","Teleprompter (estúdio)","Studio Teleprompter / Autocue","Studio Teleprompter / Autocue"]
[2129,"Location Expenses - Studio","Studio Teleprompter / Autocue Operator","Studio Teleprompter / Autocue Operator","Studio Teleprompter / Autocue Operator","Studio Teleprompter / Autocue Operator","Studio Teleprompter / Autocue Operator","Studio Teleprompter / Autocue Operator",null,"Studio Teleprompter / Autocue Operator","Operador teleprompter de estudio","Operador de Teleprompter (estúdio)","Studio Teleprompter / Autocue Operator","Studio Teleprompter / Autocue Operator"]
[2133,"Location Expenses - Studio","Studio Uplink Trucks & Satellite Time","Studio Uplink Trucks & Satellite Time","Studio Uplink Trucks & Satellite Time","Studio Uplink Trucks & Satellite Time","Studio Uplink Trucks & Satellitenzeit","Studio Uplink Trucks & Satellite Time",null,"Studio Uplink Trucks & Satellite Time","Camión de uplink y tiempo de satélite - estudio","Uplink  (de estúdio)","Studio Uplink Trucks & Satellite Time","Studio Uplink Trucks & Satellite Time"]
[2123,"Location Expenses - Studio","Stunt Vehicles- Studio","Stunt Vehicles- Studio ","Stunt Vehicles- Studio ","Stunt Vehicles- Studio ",null,null,null,null,"Autos acrobáticos estudio"]
[2173,"Location Expenses - Studio","Tarapa hire (Catwalk)","Tarapa hire (Catwalk)","Tarapa hire (Catwalk)","Tarapa hire (Catwalk)",null,null,null,null,null,null,"Tarapa hire (Catwalk)"]
[2130,"Location Expenses - Studio","TIFF's / POTS - Studio","TIFF's / POTS - Studio ","TIFF's / POTS - Studio ","TIFF's / POTS - Studio "]
[2131,"Location Expenses - Studio","Transmissions -Studio","Transmissions -Studio ","Transmissions -Studio ","Transmissions -Studio ",null,"Transmissions -Studio ",null,"Transmissions -Studio ","Transmisiones de estudio"]
[2132,"Location Expenses - Studio","Truck Rentals- Studio","Truck Rentals- Studio ","Truck Rentals- Studio ","Truck Rentals- Studio ",null,"Truck Rentals- Studio ",null,"Truck Rentals- Studio ","Camión de transmisión de estudio","Aluguel de Caminhões (de estúdio)"]
[2170,"Location Expenses - Studio","Utilities (Water, Electricity etc)","Utilities (Water, Electricity etc)","Utilities (Water, Electricity etc)","Utilities (Water, Electricity etc)",null,"Utilities (Water, Electricity etc)",null,"Utilities (Water, Electricity etc)","Gastos de agua, electricidad etc.",null,"Utilities (Water, Electricity etc)","Utilities"]
[2181,"Location Expenses - Studio","Vanity Vans","Vanity Vans","Vanity Vans","Vanity Vans",null,null,null,null,null,null,"Vanity Vans"]
[2134,"Location Expenses - Studio","Video Control - Studio","Video Control - Studio ","Video Control - Studio ","Video Control - Studio ",null,"Video Control - Studio ",null,"Video Control - Studio ","Control de video - estudio","Sala de Corte"]
[2167,"Location Expenses - Studio","Video Control / VT Operator","Video Control / VT Operator","Video Control / VT Operator","Video Control / VT Operator","VT-Betreiber","Video Control / VT Operator",null,null,"Operador de VT","Operador de VT","Video Control / VT Operator","Video Control / VT Operator"]
[2165,"Location Expenses - Studio","Vision Mixer / Switcher","Vision Mixer / Switcher","Vision Mixer / Switcher","Vision Mixer / Switcher","Bildmischer",null,null,"Video Control / VT Operator","Switcher",null,"Vision Mixer / Switcher","Vision Mixer / Switcher"]
[2166,"Location Expenses - Studio","Vision Supervisor","Vision Supervisor","Vision Supervisor","Vision Supervisor","Vision Supervisor",null,null,null,"Supervisor de visionado",null,"Vision Supervisor","Vision Supervisor"]
[2135,"Location Expenses - Studio","Xpression- Studio","Xpression- Studio ","Xpression- Studio ","Xpression- Studio "]
[4210,"Makeover & Construction","Construction Equipment","Construction Equipment","Construction Equipment","Construction Equipment",null,null,"Construction Equipment",null,"Equipo de transformación","Equipe de transformação"]
[4204,"Makeover & Construction","Construction Labor","Construction Labor","Construction Labor","Construction Labor",null,null,"Construction Labor",null,"Mano de obra consstrucción"]
[4211,"Makeover & Construction","Construction Materials","Construction Materials","Construction Materials","Construction Materials",null,null,"Construction Materials",null,"Materiales de transformación","Despesas com transformação"]
[4201,"Makeover & Construction","Contruction Manager","Contruction Manager","Contruction Manager","Contruction Manager",null,null,"Contruction Manager"]
[4203,"Makeover & Construction","Design Coordinator","Design Coordinator","Design Coordinator","Design Coordinator",null,null,"Design Coordinator",null,"Coordinador de diseño"]
[4202,"Makeover & Construction","Design Supervisor","Design Supervisor","Design Supervisor","Design Supervisor",null,null,"Design Supervisor",null,"Supervisor de diseño"]
[4209,"Makeover & Construction","Electrical certification (after make-over)","Electrical certification (after make-over)","Electrical certification (after make-over)","Electrical certification (after make-over)",null,null,null,null,"Certificación eléctrica"]
[4299,"Makeover & Construction","Fringes - Makeover & Construction","Fringes - Makeover & Construction","Fringes - Makeover & Construction","Fringes - Makeover & Construction",null,null,null,null,"Cargas sociales - transformación"]
[4208,"Makeover & Construction","Make over costs","Make over costs","Make over costs","Make over costs",null,null,null,null,"Costos de transformación"]
[4207,"Makeover & Construction","Make over team","Make over team","Make over team","Make over team",null,null,null,null,"Personal de transformación"]
[4206,"Makeover & Construction","Set Construction","Set Construction","Set Construction","Set Construction",null,null,"Set Construction",null,"Constrcción de set"]
[4205,"Makeover & Construction","Staging Allowance","Staging Allowance","Staging Allowance","Staging Allowance",null,null,"Staging Allowance",null,"Gastos de escenificación"]
[3003,"Marketing & Promotional Materials","Digital Deliverables","Digital Deliverables","Digital Deliverables","Digital Deliverables","Digital Deliverables","Digital Deliverables","Digital Deliverables","Digital Deliverables","Entregables digitales","Deliverables Digitais","Digital Deliverables","Digital Deliverables"]
[3099,"Marketing & Promotional Materials","Fringes - Marketing & Promotional","Fringes - Marketing & Promotional","Fringes - Marketing & Promotional","Fringes - Marketing & Promotional",null,null,null,null,"Cargas sociales - marketing y promociones"]
[3002,"Marketing & Promotional Materials","Marketing Materials","Marketing Materials","Marketing Materials","Marketing Materials","Marketing Materials","Marketing Materials","Marketing Materials","Trailers","Materiales de márketing","Material de Marketing",null,"Marketing Materials"]
[3005,"Marketing & Promotional Materials","SoMe Expenses","(not applicable for UK)",null,null,null,null,null,"SoMe Expenses"]
[3004,"Marketing & Promotional Materials","SoMe Person","(not applicable for UK)",null,null,null,null,null,"SoMe Person"]
[3001,"Marketing & Promotional Materials","Stills Photographer","Stills Photographer","Stills Photographer","Stills Photographer","Stills Photographer","Stills Photographer","Fotografo / Foto fija","Stills Photographer","Fotógrafo / Foto fija","Fotógrafo","Stills Photographer","Stills Photographer"]
[2705,"Music","Background Music Director",{"$f":"IF(INDIRECT(ADDRESS(ROW(),MATCH(DefaultRegion,$1:$1,0)))=\"\",\"(not applicable for \" & DefaultRegion & \")\",INDIRECT(ADDRESS(ROW(),MATCH(DefaultRegion,$1:$1,0))))","v":"Background Music Director"},"Background Music Director","Background Music Director",null,null,null,null,"Director música de fondo",null,"Background Music Director","Background Music Director"]
[2708,"Music","Blanket Agreement","Blanket Agreement","Blanket Agreement","Blanket Agreement",null,null,null,null,"Acuerdo general / maestro",null,"Blanket Agreement","Blanket Agreement"]
[2702,"Music","Commercial Music Licences","Commercial Music Licences","Commercial Music Licenses","Commercial Music Licences","GEMA","Commercial Music Licences","Licencias de musica","Music commercial","Licencias música","Licenças de trilha sonora","Commercial Music Licences","Commercial Music Licences"]
[2703,"Music","Composed Music","Composed Music","Composed Music","Composed Music","Komponierte Musik","Composed Music","Musica compuesta ","Composed Music","Música original / composición","Trilha sonora original",null,"Composed Music"]
[2799,"Music","Fringes - Music","Fringes - Music","Fringes - Music","Fringes - Music",null,null,null,null,"Cargas sociales - música"]
[2701,"Music","Library Music Licences","Library Music Licences","Library Music Licenses","Library Music Licences","Library Music Licences","Library Music Licences","Música de librería","Music (archive)","Licencias música de librería","Biblioteca de trilhas sonoroas","Library Music Licences","Library Music Licences"]
[2707,"Music","Music Co-ordinator","Music Co-ordinator","Music Co-ordinator","Music Co-ordinator",null,"Music Co-ordinator",null,null,"Coordinador de música","Coodenador de trilha sonora",null,"Music Co-ordinator"]
[2704,"Music","Music Director","Music Director","Music Director","Music Director",null,null,null,null,"Director musical","Diretor Musical","Music Director","Music Director"]
[2706,"Music","Music Supervisor","Music Supervisor","Music Supervisor","Music Supervisor",null,"Music Supervisor",null,"Music Supervisor","Supervisor de música","Supervisor de trilha sonora",null,"Music Supervisor"]
[3801,"Non-Linear","Non-Linear Asset Costs","Non-Linear Asset Costs","Non-Linear Asset Costs","Non-Linear Asset Costs"]
[3407,"Overhead","Furniture - Overhead","(not applicable for UK)","Furniture - Overhead"]
[3410,"Overhead","Miscellaneous - Overhead","(not applicable for UK)","Miscellaneous - Overhead"]
[3402,"Overhead","Office Space - Overhead","(not applicable for UK)","Office Space - Overhead"]
[3405,"Overhead","Office Supplies - Overhead","(not applicable for UK)","Office Supplies - Overhead"]
[3401,"Overhead","Overhead","Overhead",null,"Overhead","Overhead","Overhead","Overhead","Administration Costs - Overhead","Overhead","Overhead","Overhead","Overhead"]
[3408,"Overhead","Parking - Overhead","(not applicable for UK)","Parking - Overhead"]
[3406,"Overhead","Phones - Overhead","(not applicable for UK)","Phones - Overhead"]
[3403,"Overhead","Printers - Overhead","(not applicable for UK)","Printers - Overhead"]
[3404,"Overhead","Shipping - Overhead","(not applicable for UK)","Shipping - Overhead"]
[3409,"Overhead","Storage - Overhead","(not applicable for UK)","Storage - Overhead"]
[2529,"Post Production Facilities & Equipment","Audio Re-stripe","Audio Re-stripe","Audio Re-stripe","Audio Re-stripe",null,null,null,null,null,null,"Audio Re-stripe","Audio Re-stripe"]
[2504,"Post Production Facilities & Equipment","Avid Rental","Avid Rental ","Avid Rental ","Avid Rental ","Avid Rental ",null,null,"Avid hire ","Alquiler avid",null,null,"Avid Rental"]
[2510,"Post Production Facilities & Equipment","Color Correction / Grade","Colour Correction / Grade","Color Correction / Grade","Colour Correction / Grade","Colour Correction / Grade","Color Correction / Grade","Etalonaje","Colourgrade incl. Tecnician","Corrección de color","Correção de cor","Color Correction / Grade","Color Correction / Grade"]
[2534,"Post Production Facilities & Equipment","Colorist","Colorist","Colorist","Colorist","Colorist","Colorist","Colorist","Colorist","Colorista","Colorista",null,"Colourist"]
[2520,"Post Production Facilities & Equipment","Conform","Conform","Conform","Conform","Conform",null,null,null,null,null,"Conform","Conform/Online Prep"]
[2516,"Post Production Facilities & Equipment","Deck Rentals","(not applicable for UK)","Deck Rentals",null,null,null,null,null,"Alquiler mezcladoras","Aluguel de deck"]
[2519,"Post Production Facilities & Equipment","Deliverables","Deliverables ","Deliverables ","Deliverables ","Deliverables ","Deliverables ","Entregas",null,"Entregables","Deliverables","Deliverables ","Deliverables "]
[2532,"Post Production Facilities & Equipment","Dubbing Racks","Dubbing Racks","Dubbing Racks","Dubbing Racks"]
[2525,"Post Production Facilities & Equipment","Edit Laptops","Edit Laptops","Edit Laptops","Edit Laptops",null,null,null,"Edit Laptops","Computadores de edición","Laptops","Edit Laptops","Edit Laptops"]
[2503,"Post Production Facilities & Equipment","Edit Rooms","Edit Rooms","Edit Rooms","Edit Rooms",null,"Edit Rooms",null,"Editing Rooms- offline","Salas de edición",null,null,"Edit Rooms"]
[2531,"Post Production Facilities & Equipment","File Upload","File Upload","File Upload","File Upload","File Upload","File Upload","File Upload","File Upload","Upload archivos",null,null,"File Upload"]
[2523,"Post Production Facilities & Equipment","Forscene Licence","Forscene Licence","Forscene License","Forscene Licence",null,null,null,null,null,null,"Forscene Licence","Forscene Licence"]
[2599,"Post Production Facilities & Equipment","Fringes - Post Production F&E","Fringes - Post Production F&E","Fringes - Post Production F&E","Fringes - Post Production F&E",null,null,null,null,"Cargas sociales - post producción"]
[2506,"Post Production Facilities & Equipment","Hard Disc Storage","Hard Disc Storage","Hard Disc Storage","Hard Disc Storage",null,"Hard Disc Storage",null,"Hard Disc Storage ","Almacenaje en disco duro",null,null,"Hard Disc Storage"]
[2526,"Post Production Facilities & Equipment","In-Field Editing Systems","In-Field Editing Systems","In-Field Editing Systems","In-Field Editing Systems","In-Field Editing Systems","In-Field Editing Systems",null,null,"Sistemas de edición",null,"In-Field Editing Systems","In-Field Editing Systems"]
[2501,"Post Production Facilities & Equipment","Ingest","Ingest","Ingest","Ingest","Digitalisieren","Ingest","Digitalizador","Ingest","Ingesta","Ingest","Ingest","Ingest"]
[2522,"Post Production Facilities & Equipment","LTO Back-up","LTO Back-up","LTO Back-up","LTO Back-up","LTO Back-up","LTO Back-up","LTO ",null,"LTO para back up","Fitas LTO para back up","LTO Back-up","LTO Back-up"]
[2521,"Post Production Facilities & Equipment","LTO Stock","LTO Stock","LTO Stock","LTO Stock","LTO Bänder","LTO Stock","Copias LTO ",null,"Cintas LTO","Fitas LTO","LTO Stock","LTO Stock"]
[2527,"Post Production Facilities & Equipment","Mastering","Mastering","Mastering","Mastering","Mastering","Mastering","Master ","Master","Masterización","Masterização","Mastering","Mastering"]
[2598,"Post Production Facilities & Equipment","Miscellaneous - Post Production F&E","Miscellaneous - Post Production F&E","Miscellaneous - Post Production F&E","Miscellaneous - Post Production F&E",null,"Miscellaneous - Post Production F&E",null,null,"Misceláneos post producción",null,null,"Miscellaneous - Post Production F&E"]
[2528,"Post Production Facilities & Equipment","Miscellanous Transfers","Miscellanous Transfers","Miscellanous Transfers","Miscellanous Transfers",null,"Miscellanous Transfers",null,null,"Misceláneos transfer",null,"Miscellanous Transfers","Miscellanous Transfers"]
[2517,"Post Production Facilities & Equipment","Mix Studio Rental","(not applicable for UK)","Mix Studio Rental",null,null,null,null,null,"Alquiler estudio de audio","Estúdio de mixagem",null,"Mix Studio Rental"]
[2515,"Post Production Facilities & Equipment","Mix/Dub (30/60/90/120)","Mix/Dub (30/60/90/120)","Mix/Dub (30/60/90/120)","Mix/Dub (30/60/90/120)","Hauptmischung - 30/60/90/120 mins","Mix / Dub - 30/60/90/120 mins","Sala Protools/ Sonido - 30/60/90/120 minutos","Post Production Sound- 30/60/90/120 minutes","Mezcla de audio - 30/60/90/120 min","Mixagem de som - 30/60/90/120 min.","Mix / Dub - 30/60/90/120 mins","Mix / Dub - 30/60/90/120 mins"]
[2502,"Post Production Facilities & Equipment","Offline Edit Suite & Rental","Offline Edit Suite & Rental","Offline Edit Suite & Rental","Offline Edit Suite & Rental","Schnittplatz ","Offline Edit Suite & Rental","Sala Montaje",null,"Alquiler islas de edición offline","Edição offline","Offline Edit Suite & Rental","Offline Edit Suite & Rental"]
[2511,"Post Production Facilities & Equipment","Online (30/60/90/120)","Online (30/60/90/120)","Online (30/60/90/120)","Online (30/60/90/120)","Online - 30/60/90/120 mins","Online (30/60/90/120)","Sala after effects- 30/60/90/120 minutos","Editing rooms/ online- 30/60/90/120 minutes","Online - 30/60/90/120 mins","Edição on-line - 30/60/90/120 min.","Online - 30/60/90/120 mins","Online - 30/60/90/120 mins"]
[2524,"Post Production Facilities & Equipment","Post Production Scripts","Post Production Scripts","Post Production Scripts","Post Production Scripts","Post Production Scripts","Post Production Scripts",null,null,"Guiones de post producción","Roteiros de Pós-Produção","Post Production Scripts","Post Production Scripts"]
[2509,"Post Production Facilities & Equipment","QA and PSE test / QC / Tech Eval","QA and PSE test / QC / Tech Eval","QA and PSE test / QC / Tech Eval","QA and PSE test / QC / Tech Eval","QA and PSE test / QC / Tech Eval","QA and PSE test / QC / Tech Eval","Quality Control",null,"Control de calidad / evaluación técnica","Avaliação Técnica","QA and PSE test / QC / Tech Eval","QA and PSE test / QC / Tech Eval"]
[2518,"Post Production Facilities & Equipment","Screening Station","Screening Station","Screening Station","Screening Station","Sichtplatz",null,null,"Screening Station","Estación de visionado",null,"Screening Station","Screening Station"]
[2533,"Post Production Facilities & Equipment","Sound Mixer","Sound Mixer","Sound Mixer","Sound Mixer","Sound Mixer","Sound Mixer","Sound Mixer","Sound Mixer","Mezclador sonido","Editor de Som",null,"Sound Mixer"]
[2508,"Post Production Facilities & Equipment","Standards Conversion","Standards Conversion","Standards Conversion","Standards Conversion","Standards Conversion","Standards Conversion",null,null,"Conversión de formato","Conversão","Standards Conversion","Standards Conversion"]
[2505,"Post Production Facilities & Equipment","Storage/Unity /ISIS","Storage/Unity /ISIS","Storage/Unity /ISIS","Storage/Unity /ISIS","Speichermedien-Post","Storage/Unity /ISIS","Storage/Unity /ISIS","Unity ","Sistema de almacenaje / Unity / Isis","Storage","Storage/Unity /ISIS","Storage/Unity /ISIS"]
[2530,"Post Production Facilities & Equipment","Subtitles","Subtitles","Subtitles","Subtitles","Untertitel","Subtitles",null,"Subtitles","Subtítulos","Legendas","Subtitles","Subtitles"]
[2507,"Post Production Facilities & Equipment","Tape Stock or Media","Tape Stock or Media","Tape Stock or Media","Tape Stock or Media","Tape Stock or Media","Tape Stock or Media","Tape Stock or Media",null,"Cintas / discos  ","Arquivamento de material","Tape Stock or Media","Tape Stock or Media"]
[2514,"Post Production Facilities & Equipment","Track-lay","Track-lay","Track-lay","Track-lay","Sprecher - Synchronisation",null,null,null,"Asignación canales de audio / Bajada de audio",null,"Track-lay","Track-lay"]
[2513,"Post Production Facilities & Equipment","Voice Over Booth","Voice Over Booth","Voice Over Booth","Voice Over Booth",null,null,null,null,"Cabina de locuciones / narración","Cabine de gravação"]
[2512,"Post Production Facilities & Equipment","Voice Over/Narration record","Voice Over/Narration record","Voice Over/Narration record","Voice Over/Narration record","Sprachaufnahme","Voice Over/Narration record","Voice Over/Narration record","Speak incl. Box","Grabación de locuciones / narración","Gravação de narração","Voice Over/Narration record","Voice Over/Narration record"]
[2407,"Post Production Team","Assistant Editors","Assistant Editors","Assistant Editors","Assistant Editors","Cutter Assistent","Assistant Editors","Ayudante de Montaje","Assistant Editors","Asistente de edición","Editores assistentes","Assistant Editors","Assistant Editors"]
[2413,"Post Production Team","Deliverables Coordinator","Deliverables Coordinator ","Deliverables Coordinator ","Deliverables Coordinator ","Deliverables-Koordinator","Deliverables Coordinator ",null,null,"Coordinador de entregables","Coordenador de Deliverables",null,"Deliverables Coordinator "]
[2415,"Post Production Team","Dubber","Dubber","Dubber","Dubber",null,null,null,null,"Duplicador","Dublador"]
[2406,"Post Production Team","Editor","Editor","Editor","Editor","Cutter","Editor","Editor","Editor","Editor","Editor","Editor","Editor"]
[2499,"Post Production Team","Fringes - Post Production Team","Fringes - Post Production Team","Fringes - Post Production Team","Fringes - Post Production Team",null,null,null,null,"Cargas sociales - equipo de post producción"]
[2405,"Post Production Team","Lead Editor","Lead Editor","Lead Editor","Lead Editor",null,"Lead Editor","Jefe de Montaje","Lead Editor","Jefe de editores / editor senior",null,null,"Lead Editor"]
[2414,"Post Production Team","Loader","Loader ","Loader ","Loader ",null,null,null,"Loader ","Loader"]
[2408,"Post Production Team","Loggers / Transcribers / Logging Assistants","Loggers / Transcribers / Logging Assistants","Loggers / Transcribers / Logging Assistants","Loggers / Transcribers / Logging Assistants","Logger / Umsetzer","Loggers / Transcribers / Logging Assistants","Loggers ","Loggers / Transcribers / Logging Assistants","Loggers / transcriptores","Loggers","Loggers / Transcribers / Logging Assistants","Loggers / Transcribers / Logging Assistants"]
[2404,"Post Production Team","Post Production Assistant",{"$f":"IF(INDIRECT(ADDRESS(ROW(),MATCH(DefaultRegion,$1:$1,0)))=\"\",\"(not applicable for \" & DefaultRegion & \")\",INDIRECT(ADDRESS(ROW(),MATCH(DefaultRegion,$1:$1,0))))","v":"Post Production Assistant"},"Post Production Assistant","Post Production Assistant","Post Production Assistant",null,null,"Post Production Assistant","Asistente de post producción","Assistente de pós-produção",null,"Post Production Assistant"]
[2403,"Post Production Team","Post Production Coordinator","Post Production Coordinator","Post Production Coordinator","Post Production Coordinator","Postproduktionskoordinator","Post Production Coordinator",null,"Post Production Coordinator","Coordinador de post produccion","Coordenador de pós-produção","Post Production Coordinator","Post Production Coordinator"]
[2401,"Post Production Team","Post Production Manager","Post Production Manager","Post Production Manager","Post Production Manager","Postproduktionsmanager","Post Production Manager",null,"Post Production Manager","Manager de post producción","Gerente de Pós-Produção","Post Production Manager","Post Production Manager"]
[2402,"Post Production Team","Post Production Supervisor","Post Production Supervisor ","Post Production Supervisor ","Post Production Supervisor ","Postproduktionsleiter",null,null,"Post Production Supervisor ","Supervisor de post produccion","Supervisor de pós-produção","Post Production Supervisor ","Post Production Supervisor "]
[2410,"Post Production Team","Post Technical Supervisor","Post Technical Supervisor","Post Technical Supervisor","Post Technical Supervisor",null,null,null,"Post Technical Supervisor","Supervisor técnico de post producción","Supervisor Técnico de Pós-Produção","Post Technical Supervisor","Post Technical Supervisor"]
[2411,"Post Production Team","Technical Support","Technical Support","Technical Support","Technical Support",null,null,null,"Technical Support","Soporte técnico","Suporte Técnico","Technical Support","Technical Support"]
[2412,"Post Production Team","Transcriptions","Transcriptions","Transcriptions","Transcriptions","Transkriptionen","Transcriptions","Transcripción",null,"Transcripciones","Transcrições","Transcriptions","Transcriptions"]
[2409,"Post Production Team","Translations","Translations","Translations","Translations","Ubersetzungen","Translations","Traductor","Translations","Traducciones","Traduções","Translations","Translations"]
[3501,"Production Fee","Production Fee","Production Fee ","Production Fee ","Production Fee ","Production Fee ","Production Fee ","Production Fee ","Overhead - Production Fee","Production Fee","Production Fee ","Production Fee ","Production Fee "]
[1308,"Production Team","Assistant Production Manager","Assistant Production Manager","Assistant Production Manager","Assistant Production Manager",null,"Assistant Production Manager",null,null,null,null,"Assistant Production Manager"]
[1321,"Production Team","Assistant Set Manager","Assistant Set Manager","Assistant Set Manager","Assistant Set Manager","Set-Aufnahmeleiter Assistent",null,null,null,"Asistente manager de escenario / set"]
[1322,"Production Team","Audience Coordinator","Audience Coordinator","Audience Coordinator","Audience Coordinator",null,null,null,"Audience coordinator","Coordinador de audiencia / público"]
[1302,"Production Team","Director of Production","Director of Production","Director of Production","Director of Production",null,"Director of Production","Director deproducción ",null,"Director de producción"]
[1303,"Production Team","Executive in Charge","Executive in Charge","Executive in Charge","Executive in Charge",null,null,null,null,"Ejecutivo a cargo de la producción"]
[1314,"Production Team","Field PA","Field PA","Field PA","Field PA",null,null,null,null,"Asistente producción de campo",null,null,"Field PA/DA"]
[1399,"Production Team","Fringes - Production Team","Fringes - Production Team","Fringes - Production Team","Fringes - Production Team",null,null,null,null,"Cargas sociales - personal producción"]
[1301,"Production Team","Head of Production","Head of Production","Head of Production","Head of Production","Head of Production","Head of Production","Jefe de producción ",null,"Jefe de producción","Diretor de produção","Head of Production","Head of Production"]
[1323,"Production Team","Host/ Participant Coordinator","Host/ Participant Coordinator","Host/ Participant Coordinator","Host/ Participant Coordinator",null,null,null,"Host/participant coordinator","Coordinador de presentador y participantes"]
[1319,"Production Team","Intern / Trainee","Intern / Trainee","Intern / Trainee","Intern / Trainee","Praktikant",null,null,"Intern/Trainee","Pasante",null,"Intern / Trainee"]
[1307,"Production Team","Junior Production Manager","Junior Production Manager","Junior Production Manager","Junior Production Manager",null,null,null,null,"Gerente de producción junior","Gerente de produção junior","Junior Production Manager","Junior Production Manager"]
[1305,"Production Team","Line Producer","Line Producer","Line Producer","Line Producer","Herstellungsleiter","Line Producer",null,"Line Producer","Productor en línea","Produtor","Line Producer","Line Producer"]
[1317,"Production Team","Location Coordinator","Location Coordinator","Location Coordinator","Location Coordinator",null,null,null,"Location coordinator","Coordinador de locaciones","Produtor de Locação","Location Coordinator","Location Coordinator"]
[1324,"Production Team","Office PA","Office PA","Office PA","Office PA",null,null,null,null,"Asistente de producción de oficina"]
[1316,"Production Team","Production Accountant","Production Accountant","Production Accountant","Production Accountant","Production Accountant","Production Accountant","Contador de producción",null,"Contador de producción","Contador","Production Accountant","Production Accountant"]
[1312,"Production Team","Production Assistant","Production Assistant","Production Assistant","Production Assistant","Produktionsassistent","Production Assistant","Ayudante de producción","Production assistant","Asistente de producción","Assistente de produção","Production Assistant","Production Assistant"]
[1310,"Production Team","Production Coordinator","Production Coordinator","Production Coordinator","Production Coordinator","Produktions-Koordination","Production Coordinator","Coordinador de producción ","Production coordinator","Coordinador de producción","Coordenador de produção","Production Coordinator","Production Coordinator"]
[1304,"Production Team","Production Executive / Controller","Production Executive ","Production Executive / Controller","Production Executive ",null,"Production Executive / Controller",null,null,"Ejecutivo de producción ","Produtor Executivo de produção","Production Executive / Controller","Production Executive / Controller"]
[1306,"Production Team","Production Manager","Production Manager","Production Manager","Production Manager","Produktionsleiter","Production Manager","Gerente de producción ","Project Manager / production manager","Gerente de produccion","Gerente de produção","Production Manager","Production Manager"]
[1311,"Production Team","Production Secretary","Production Secretary  ","Production Secretary  ","Production Secretary  ",null,null,"Secretaria de  producción/ Administrador ",null,"Secretaria/o de producción","Secretária de produção",null,"Production Secretary  "]
[1313,"Production Team","Runner","Runner  ","Runner  ","Runner  ","Runner","Runner  ","Auxiliares producción ","Runner","Runner",null,"Runner  ","Runner  "]
[1320,"Production Team","Set Manager","Set Manager","Set Manager","Set Manager","Set-Aufnahmeleiter  ",null,null,"Set Manager","Manager de escenario / set"]
[1318,"Production Team","Spot Boys","Spot Boys","Spot Boys","Spot Boys",null,null,null,null,null,null,"Spot Boys"]
[1315,"Production Team","Trade out Producer","Trade out Producer","Trade out Producer","Trade out Producer",null,null,null,null,"Productor de integraciones"]
[1309,"Production Team","Unit Manager","Unit Manager","Unit Manager","Unit Manager","Aufnahmeleiter","Unit Manager",null,null,null,null,null,"Unit Manager"]
[4399,"Recon / Recre","Fringes - Recon / Recre","Fringes - Recon / Recre","Fringes - Recon / Recre","Fringes - Recon / Recre"]
[4302,"Recon / Recre","Recreation Company Service Fee","Recreation Company Service Fee","Recreation Company Service Fee","Recreation Company Service Fee"]
[4303,"Recon / Recre","Recreation Detail","Recreation Detail","Recreation Detail","Recreation Detail"]
[4301,"Recon / Recre","Recreation Director","Recreation Director","Recreation Director","Recreation Director",null,null,null,null," "]
[1509,"Salary & Wage Related Overheads","Care Insurance","Care Insurance","Care Insurance","Care Insurance","PV - Pflegeversicherung"]
[1599,"Salary & Wage Related Overheads","Fringes - Salary & Wage Overhead","Fringes - Salary & Wage Overhead","Fringes - Salary & Wage Overhead","Fringes - Salary & Wage Overhead",null,null,null,null,"Cargas sociales - gastos salarios"]
[1506,"Salary & Wage Related Overheads","Health Insurance","Health Insurance","Health Insurance","Health Insurance","KV - Krankenversicherung",null,null,null,"Seguro de salud"]
[1502,"Salary & Wage Related Overheads","Holiday Pay","Holiday Pay","Holiday Pay","Holiday Pay","Urlaubsabgeltung",null,null,null,null,null,null,"Holiday Pay"]
[1501,"Salary & Wage Related Overheads","National Insurance/Payroll Tax","National Insurance/Payroll Tax","National Insurance/Payroll Tax","National Insurance/Payroll Tax","Sozialversicherung","Social Security Contribution","Seguridad Social ","Social costs incl. Holiday pay ","Cargas Sociales",null,null,"National Insurance/Payroll Tax"]
[1511,"Salary & Wage Related Overheads","Overtime","(not applicable for UK)",null,null,null,null,null,"Overtime"]
[1503,"Salary & Wage Related Overheads","Pension Contribution / Superannuation","Pension Contribution / Superannuation","Pension Contribution / Superannuation","Pension Contribution / Superannuation",null,null,null,null,null,null,null,"Pension Contribution / Superannuation"]
[1507,"Salary & Wage Related Overheads","Pension Insurance","Pension Insurance","Pension Insurance","Pension Insurance","RV - Rentenversicherung"]
[1505,"Salary & Wage Related Overheads","Social Insurance","Social Insurance","Social Insurance","Social Insurance","Kunstlersozialkasse",null,null,"Insurance"]
[1510,"Salary & Wage Related Overheads","Trade Association","Trade Association","Trade Association","Trade Association","Berufsgenossenschaft"]
[1508,"Salary & Wage Related Overheads","Unemployment Insurance","Unemployment Insurance","Unemployment Insurance","Unemployment Insurance","AV -Arbeitslosenversicherung",null,null,null,"Seguro de desempleo"]
[1504,"Salary & Wage Related Overheads","Workers Comp","Workers Comp","Workers Comp","Workers Comp",null,null,null,null,"Seguro contra accidentes laborales",null,null,"Workers Comp"]
[1906,"Sound Crew & Equipment","Audio 1","Audio 1","Audio 1","Audio 1",null,null,null,null,"Audio 1 / Microfonista"]
[1907,"Sound Crew & Equipment","Audio 2","Audio 2","Audio 2","Audio 2",null,null,null,null,"Audio 2"]
[1908,"Sound Crew & Equipment","Boom Operator","Boom Operator","Boom Operator","Boom Operator","Tonangler","Boom Operator",null,"Boom Operator","Operador de micrófonos","Operador de Boom","Boom Operator","Boom Operator"]
[1999,"Sound Crew & Equipment","Fringes - Sound Crew & Equipment","Fringes - Sound Crew & Equipment","Fringes - Sound Crew & Equipment","Fringes - Sound Crew & Equipment"]
[1998,"Sound Crew & Equipment","Miscellanous - Sound Crew & Equipment","Miscellanous - Sound Crew & Equipment","Miscellanous - Sound Crew & Equipment","Miscellanous - Sound Crew & Equipment",null,null,null,null,"Misceláneos - crew sonido y equipos",null,"Miscellanous - Sound Crew & Equipment","Miscellanous - Sound Crew & Equipment"]
[1910,"Sound Crew & Equipment","Sound Assistant","Sound Assistant","Sound Assistant","Sound Assistant",null,null,null,"Sound Assistant","Asistente de sonido","Assistente de Áudio","Sound Assistant","Sound Assistant"]
[1902,"Sound Crew & Equipment","Sound Consumables / Expendables","Sound Consumables / Expendables","Sound Consumables / Expendables","Sound Consumables / Expendables","Kleinmaterial Verbrauch-Sound","Sound Consumables / Expendables","Consumos - Sound",null,"Consumibles de Sonido","Consumíveis de áudio","Sound Consumables / Expendables","Sound Consumables / Expendables"]
[1909,"Sound Crew & Equipment","Sound Designer","Sound Designer","Sound Designer","Sound Designer",null,"Sound Designer",null,"Sound Designer ","Diseño de sonido","Sound Designer","Sound Designer","Sound Designer"]
[1901,"Sound Crew & Equipment","Sound Kit / Package","Sound Kit / Package","Sound Kit / Package","Sound Kit / Package","Tonapparatur","Sound Kit / Package","Equipo de Sonido","Sound kit /package","Paquete de Sonido","Pacote de áudio","Sound Kit / Package","Sound Kit / Package"]
[1903,"Sound Crew & Equipment","Sound Recordist","Sound Recordist","Sound Recordist","Sound Recordist","Tonmeister","Sound Recordist","Operador/ Ingeniero Sonido ","Sound Recordist","Sonidista /Ingeniero de sonido","Operador de áudio","Sound Recordist","Sound Recordist"]
[1904,"Sound Crew & Equipment","Sound Reduction","Sound Reduction","Sound Reduction","Sound Reduction",null,null,null,null,null,null,null,"Sound Reduction"]
[1905,"Sound Crew & Equipment","Specialist Sound Kit","Specialist Sound Kit","Specialist Sound Kit","Specialist Sound Kit","Spezielles Sound-Kit","Specialist Sound Kit",null,null,"Crew equipo de sonido","Equipamento de Áudio","Specialist Sound Kit","Specialist Sound Kit"]
[1405,"Talent","Additional Cast","Additional Cast","Additional Cast","Additional Cast","Sonstiges Darsteller","Additional Cast","Participantes",null,"Participantes","Participantes","Additional Cast","Additional Cast"]
[1419,"Talent","Aftercare","Aftercare","Aftercare","Aftercare"]
[1421,"Talent","Agency Commissions (for actors)",{"$f":"IF(INDIRECT(ADDRESS(ROW(),MATCH(DefaultRegion,$1:$1,0)))=\"\",\"(not applicable for \" & DefaultRegion & \")\",INDIRECT(ADDRESS(ROW(),MATCH(DefaultRegion,$1:$1,0))))","v":"Agency Commissions (for actors)"},"Agency Commissions (for actors)","Agency Commissions (for actors)","Agenturprovisionen",null,null,null,"Comisión de agencia"]
[1416,"Talent","B & C Characters (Reality)","B & C Characters (Reality)","B & C Characters (Reality)","B & C Characters (Reality)",null,null,null,null,null,null,null,"B & C Characters (Reality)"]
[1420,"Talent","Chaperone","Chaperone","Chaperone","Chaperone",null,null,null,null,"Acopañante de menores / chaperón",null,null,"Chaperone"]
[1418,"Talent","Childcare","Childcare","Childcare","Childcare",null,"Childcare",null,null,"Cuidado de niños","Monitor"]
[1407,"Talent","Consultants / Experts","Consultants / Experts","Consultants / Experts","Consultants / Experts","Fachberater","Consultants / Experts","Consultores/expertos","Consultants / Experts","Consultores / expertos","Consultores Talentos","Consultants / Experts","Consultants / Experts"]
[1410,"Talent","Extras","Extras","Extras","Extras","Komparsen","Extras","Extras","Extras","Extras","Figurantes","Extras","Extras"]
[1499,"Talent","Fringes - Talent","Fringes - Talent","Fringes - Talent","Fringes - Talent",null,null,null,null,"Cargas sociales - talento"]
[1417,"Talent","Honorariums/Lost Wages","Honorariums/Lost Wages","Honorariums/Lost Wages","Honorariums/Lost Wages",null,null,null,"Honorariums/Lost Wages","Honorarios"]
[1401,"Talent","Host/Presenter","Host/Presenter","Host/Presenter","Host/Presenter","Moderator","Host/Presenter","Presentador ","Host/s","Conductor / presentador / host","Apresentador","Host/Presenter","Host/Presenter"]
[1406,"Talent","Interviewees","Interviewees","Interviewees","Interviewees","Interviewte","Interviewees","Entrevistados",null,"Entrevistados","Entrevistados","Interviewees","Interviewees"]
[1412,"Talent","Judges / Competitors","Judges / Competitors","Judges / Competitors","Judges / Competitors","Richter / Konkurrenten","Competitors",null,"Judges / Competitors","Jueces","Jurados","Judges / Competitors","Judges / Competitors"]
[1404,"Talent","Main Contributors","Main Contributors","Main Contributors","Main Contributors","Kandidaten","Main Contributors","Principales / Invitados","Participant/s","Invitados",null,"Main Contributors","Main Contributors"]
[1498,"Talent","Miscellanous - Talent","Miscellanous - Talent","Miscellanous - Talent","Miscellanous - Talent",null,null,null,null,"Misceláneos talento"]
[1408,"Talent","On Screen Expert","On Screen Expert ","On Screen Expert ","On Screen Expert ","Experten im Bild","On Screen Expert ",null,null,"Expertos en cámara",null,null,"On Screen expert"]
[1409,"Talent","Performers / Actors","Performers / Actors","Performers / Actors","Performers / Actors","Darsteller","Performers / Actors","Actores","Performers / Actors","Actores","Artistas","Performers / Actors","Performers / Actors"]
[1414,"Talent","Question Verifier/Adjudicator","Question Verifier/Adjudicator","Question Verifier/Adjudicator","Question Verifier/Adjudicator",null,null,null,"Question Verifier/Adjudicator",null,null,"Question Verifier/Adjudicator","Question Verifier/Adjudicator"]
[1413,"Talent","Studio Teacher","Studio Teacher","Studio Teacher","Studio Teacher"]
[1411,"Talent","Stuntman / Stuntwoman","Stunt Performer ","Stuntman / Stuntwoman","Stunt Performer ","Stuntman / Stuntwoman","Stuntman / Stuntwoman",null,null,"Dobles / stunt","Dublês","Stunt Performer ","Stuntman/Stuntwoman"]
[1403,"Talent","Talent","Talent","Talent","Talent","Talent","Talent",null,"Talent","Talento","Talento","Talent","Talent"]
[1402,"Talent","Voice Over / Narrator","Voice Over / Narrator","Voice Over / Narrator","Voice Over / Narrator","Voice-Over","Voice Over / Narrator","Locutor",null,"Locutor / narrador/ voice over","Narração","Voice Over / Narrator","Voice Over / Narrator"]
[1415,"Talent","Warm-Up Artist","Warm-Up Artist","Warm-Up Artist","Warm-Up Artist",null,null,null,"Warm up ent.",null,null,"Warm-Up Artist","Warm-Up Artist"]
[2914,"Travel & Living","Accommodations - Crew","Accommodations - Crew","Accommodations - Crew","Accommodations - Crew","Hotelkosten - Crew","Accommodations - Crew","Hoteles","Hotel - Crew","Hospedaje crew","Hospedagem - Crew","Accommodations - Crew","Accommodations - Crew"]
[2915,"Travel & Living","Accommodations - Talent","Accommodations - Talent","Accommodations - Talent","Accommodations - Talent","Hotelkosten - Talent","Accommodations - Talent",null,"Hotel - Talents","Hospedaje talento","Hospedagem - Talento","Accommodations - Talent","Accommodations - Talent"]
[2925,"Travel & Living","Airport Transfers","Airport Transfers","Airport Transfers","Airport Transfers","Flughafentransfer","Airport Transfers",null,null,"Traslados aeropuerto","Traslados","Airport Transfers","Airport Transfers"]
[2926,"Travel & Living","Bikes & Taxis","Bikes & Taxis","Bikes & Taxis","Bikes & Taxis","Taxi Personen","Bikes & Taxis","Taxis ","Taxi ","Taxis","Taxi","Bikes & Taxis","Bikes & Taxis"]
[2936,"Travel & Living","Bridges & Toll Roads","(not applicable for UK)",null,null,null,null,null,"Bridges & Toll Roads"]
[2907,"Travel & Living","Car Hire","Car Hire ","Car Hire ","Car Hire ","Mietwagen","Car Hire ","Alquiler Vehiculos","Car hire","Alquiler de vehículos","Aluguel de carro","Car Hire ","Car Hire "]
[2912,"Travel & Living","Carnet","Carnet ","Carnet ","Carnet ","Carnet","Carnet ","Carnet ","Carnet","Documentación para el ingreso temporal de equipos",null,"Carnet ","Carnet "]
[2919,"Travel & Living","Cast & Crew Meals","Cast & Crew Meals","Cast & Crew Meals","Cast & Crew Meals","Cast & Crew Meals","Cast & Crew Meals","Comidas ",null,"Alimentación en campo","Alimentação","Cast & Crew Meals","Cast & Crew Meals"]
[2927,"Travel & Living","Courier Service","Courier Service","Courier Service","Courier Service","Kurierdienst",null,null,"Courier","Servicio de mensajería",null,null,"Courier service"]
[2933,"Travel & Living","Driver","Driver","Driver","Driver","Fahrer",null,"Chofer",null,"Chofer",null,"Driver","Driver"]
[2906,"Travel & Living","Excess Baggage","Excess Baggage","Excess Baggage","Excess Baggage","Übergepäck","Excess Baggage","Exceso de equipaje","Luggage","Exceso de equipaje","Excesso de bagagem","Excess Baggage","Excess Baggage"]
[2935,"Travel & Living","Ferries","(not applicable for UK)",null,null,null,null,null,"Ferries"]
[2901,"Travel & Living","Flights - Domestic - Crew","Flights - Domestic - Crew","Flights - Domestic - Crew","Flights - Domestic - Crew","Flug - Inland - Crew","Flights - Domestic - Crew","Vuelos domésticos",null,"Vuelos domésticos","Vôos Domésticos - Equipe","Flights - Domestic - Crew","Flights - Domestic - Crew"]
[2903,"Travel & Living","Flights - Domestic - Talent","Flights - Domestic - Talent","Flights - Domestic - Talent","Flights - Domestic - Talent","Flug - Inland - Talent","Flights - Domestic - Talent",null,null,"Vuelos domésticos talento","Vôos Domésticos - Talento","Flights - Domestic - Talent","Flights - Domestic - Talent"]
[2902,"Travel & Living","Flights - International - Crew","Flights - International - Crew","Flights - International - Crew","Flights - International - Crew","Flug - International - Crew","Flights - International - Crew","Vuelos internacionales","Flights- Crew","Vuelos internacionales","Vôos Internacionais - Equipe","Flights - International - Crew","Flights - International - Crew"]
[2904,"Travel & Living","Flights - International - Talent","Flights - International - Talent","Flights - International - Talent","Flights - International - Talent","Flug - International - Talent","Flights - International - Talent",null,"Flights- Talent","Vuelos internacionales talento","Vôos Internacionais - Talento","Flights - International - Talent","Flights - International - Talent"]
[2999,"Travel & Living","Fringes - Travel & Living","Fringes - Travel & Living","Fringes - Travel & Living","Fringes - Travel & Living",null,null,null,null,"Cargas sociales - viajes"]
[2909,"Travel & Living","Fuel","Fuel ","Fuel ","Fuel ","Benzinkosten","Fuel ","Gasolina ","Fuel","Combustible","Combustível","Fuel ","Fuel "]
[2931,"Travel & Living","General/Miscellanoues i.e Laundry","General/Miscellanoues i.e Laundry","General/Miscellanoues i.e Laundry","General/Miscellanoues i.e Laundry",null,"General/Miscellanoues i.e Laundry",null,null,"Misceláneos / lavandería etc.","Lavanderia","General/Miscellanoues i.e Laundry","General/Miscellanoues i.e Laundry"]
[2932,"Travel & Living","Gratuities","Gratuities","Gratuities","Gratuities",null,null,null,null,"Propinas","Gorjetas","Gratuities","Gratuities"]
[2923,"Travel & Living","Hospitality / Entertaining","Hospitality / Entertaining","Hospitality / Entertaining","Hospitality / Entertaining","Bewirtung","Hospitality / Entertaining",null,null,"Gastos de representación",null,"Hospitality / Entertaining","Hospitality / Entertaining"]
[2924,"Travel & Living","International Mobile/SAT Phones","International Mobile/SAT Phones ","International Mobile/SAT Phones ","International Mobile/SAT Phones ","Telefon","International Mobile/SAT Phones ","International Mobile/SAT Phones ",null,"Teléfonos celulares / satelitales","Telefones","International Mobile/SAT Phones ","International Mobile/SAT Phones "]
[2922,"Travel & Living","Meal - Post Production","Meal - Post Production","Meal - Post Production","Meal - Post Production",null,null,null,"Meal - Post Production","Alimentación - post producción",null,null,"Meal - Post Production"]
[2920,"Travel & Living","Meal - Pre production","Meal - Pre production","Meal - Pre production","Meal - Pre production",null,null,null,"Meal - Pre production","Alimentación - preproducción",null,null,"Meal - Pre production"]
[2921,"Travel & Living","Meal - Production","Meal - Production","Meal - Production","Meal - Production",null,null,null,"Meal - Production","Alimentación - producción",null,null,"Meal - Production "]
[2910,"Travel & Living","Mileage","Mileage ","Mileage ","Mileage ","Kilomertergeldabrechnung","Mileage ","Kilometraje",null,"Kilometraje / millaje","Quilometragem","Mileage ","Mileage "]
[2934,"Travel & Living","Office Supplies","Office Supplies","Office Supplies","Office Supplies",null,null,null,"Office Supplies ","Gastos de oficina",null,null,"Office Supplies"]
[2911,"Travel & Living","Parking & Tolls","Parking & Tolls","Parking & Tolls","Parking & Tolls","Parken und Gebühren","Parking & Tolls","Aparcamientos y peajes","Parking ","Estacionamiento","Estacionamento","Parking & Tolls","Parking & Tolls"]
[2916,"Travel & Living","Per Diems - Crew","Per Diems - Crew","Per Diems - Crew","Per Diems - Crew","Spesen (Inland) - Crew","Per Diems - Crew","Dietas","Per diems - Crew","Per diem crew","Per Diem - Crew","Per Diems - Crew","Per Diems - Crew"]
[2917,"Travel & Living","Per Diems - Talent","Per Diems - Talent","Per Diems - Talent","Per Diems - Talent","Spesen (Inland) - Talent","Per Diems - Talent",null,"Per diems - Talents","Per diem talento","Per Diem - Talento","Per Diems - Talent","Per Diems - Talent"]
[2908,"Travel & Living","Production Vehicles","Production Vehicles ","Production Vehicles ","Production Vehicles ","Produktionsfahrzeuge","Production Vehicles ",null,"Production car","Vehículos de producción","Carro de Produção","Production Vehicles","Production Vehicles"]
[2905,"Travel & Living","Recce Travel","(not applicable for UK)",null,null,null,null,null,"Casting Travel ","Viaje de reconocimiento",null,"Recce Travel","Recce Travel"]
[2913,"Travel & Living","Shipping","Shipping","Shipping","Shipping","Versand","Shipping","Envíos y mensajería","Shipping ","Envíos","Postagem","Shipping","Shipping"]
[2928,"Travel & Living","Vaccinations/Inncoulations","Vaccinations/Inncoulations","Vaccinations/ Innoculations","Vaccinations/Inncoulations","Impfungen","Vaccinations/Inncoulations","Vacunación","Vaccinations ","Vacunación","Vacinas","Vaccinations/Innoculations","Vaccinations/Innoculations"]
[2930,"Travel & Living","Vehicle Expenses i.e. Tyres & repairs not covered by insurance","Vehicle Expenses i.e. Tyres & repairs not covered by insurance",null,"Vehicle Expenses i.e. Tyres & repairs not covered by insurance",null,"Vehicle Expenses i.e. Tyres & repairs not covered by insurance",null,null,"Gastos automóviles no cubiertos por seguro","Despesas de Manutenção de Carro","Vehicle Expenses i.e. Tyres & repairs not covered by insurance","Vehicle Expenses i.e. Tyres & repairs not covered by insurance"]
[2929,"Travel & Living","Visa/Work Permits","Visa/Work Permits","Visa/Work Permits","Visa/Work Permits","Visa / Arbeitserlaubnis","Visa/Work Permits",null,"Visa","Permisos / visa de trabajo","Vistos de Trabalho","Visas","Visas"]
[4103,"Turbo Restoration","Build Costs","Build Costs","Build Costs","Build Costs",null,"Build Costs","Build Costs",null,"Costos construcción","Custos de construção"]
[4102,"Turbo Restoration","Build Producer/Project Manager","Build Producer/Project Manager","Build Producer/Project Manager","Build Producer/Project Manager",null,null,null,null,"Productor de construcción"]
[4104,"Turbo Restoration","Build/Construction Labor","Build/Construction Labor","Build/Construction Labor","Build/Construction Labor",null,null,null,null,"Mano de obra construcción"]
[4117,"Turbo Restoration","Car Parts","Car Parts","Car Parts","Car Parts","Fahrzeug Verbau, Material Mehraufwand durch Dreh","Car Parts",null,null,"Repuestos"]
[4116,"Turbo Restoration","Car Purchase","Car Purchase","Car Purchase","Car Purchase","Fahrzeuge","Car Purchase",null,null,"Compra de vehículo"]
[4119,"Turbo Restoration","Car Storage","Car Storage","Car Storage","Car Storage","Miete fur ua Stellflachen","Car Storage",null,null,"Almacenamiento vehículo"]
[4120,"Turbo Restoration","Compensation for workshop residents","Compensation for workshop residents","Compensation for workshop residents","Compensation for workshop residents","Ausfall-Vergutung fur Untermieter des Hauptmotivs"]
[4199,"Turbo Restoration","Fringes - Turbo Restoration",{"$f":"IF(INDIRECT(ADDRESS(ROW(),MATCH(DefaultRegion,$1:$1,0)))=\"\",\"(not applicable for \" & DefaultRegion & \")\",INDIRECT(ADDRESS(ROW(),MATCH(DefaultRegion,$1:$1,0))))","v":"Fringes - Turbo Restoration"},"Fringes - Turbo Restoration","Fringes - Turbo Restoration",null,null,null,null,"Cargas sociales - restauración vehículos"]
[4108,"Turbo Restoration","Mechanic off Screen","Mechanic off Screen","Mechanic off Screen","Mechanic off Screen","Mechaniker - off screen","Mechanic off Screen",null,null,"Mecánico detrás de cámaras"]
[4107,"Turbo Restoration","Mechanic on screen","Mechanic on screen","Mechanic on screen","Mechanic on screen","Mechaniker - on screen","Mechanic on screen",null,null,"Mecánico en cámara"]
[4114,"Turbo Restoration","MOT (certificate of roadworthiness)","MOT (certificate of roadworthiness)","MOT (certificate of roadworthiness)","MOT (certificate of roadworthiness)",null,"MOT (certificate of roadworthiness)",null,null,"Certificado seguridad vial"]
[4112,"Turbo Restoration","Specialist Car Assistant Producer","Specialist Car Assistant Producer","Specialist Car Assistant Producer","Specialist Car Assistant Producer",null,"Specialist Car Assistant Producer",null,null,"Asistente producción especialista automovilístico"]
[4111,"Turbo Restoration","Specialist Car Researcher","Specialist Car Researcher","Specialist Car Researcher","Specialist Car Researcher",null,"Specialist Car Researcher",null,null,"Especialista / consultor automovilístico"]
[4106,"Turbo Restoration","Stunt Coordinator","Stunt Coordinator","Stunt Coordinator","Stunt Coordinator",null,null,null,null,"Coordinador de stunts - automovilismo"]
[4113,"Turbo Restoration","Trade Out","Trade Out ","Trade Out ","Trade Out ",null,"Trade Out ",null,null,"Intercambios comerciales / Integraciones"]
[4105,"Turbo Restoration","Trade Out Coordinator","Trade Out Coordinator","Trade Out Coordinator","Trade Out Coordinator",null,null,null,null,"Coordinador de intercambios comerciales"]
[4118,"Turbo Restoration","Vehicle Transport","Vehicle Transport","Vehicle Transport","Vehicle Transport","Fahrzeug Transporte","Vehicle Transport",null,null,"Transporte de vehículo"]
[4101,"Turbo Restoration","Workshop Costs","Workshop Costs","Workshop Costs","Workshop Costs","Miete fur Hauptmotiv Werkstatt","Workshop Costs",null,null,"Costos taller"]
[4109,"Turbo Restoration","Workshop Kit","Workshop Kit","Workshop Kit","Workshop Kit","Werkzeug","Workshop Kit",null,null,"Kit de taller"]
[4110,"Turbo Restoration","Workshop Manager","Workshop Manager","Workshop Manager","Workshop Manager",null,"Workshop Manager",null,null,"Gerente de taller"]
[4115,"Turbo Restoration","Workshop set up","Workshop set up","Workshop set up","Workshop set up",null,"Workshop set up",null,null,"Costos de montaje de taller"]
[1707,"Wardrobe/ Make Up/ Hair","Cleaning / Alterations","Cleaning / Alterations","Cleaning / Alterations","Cleaning / Alterations","Reinigung / Änderungen","Cleaning / Alterations","Tintorería",null,"Lavandería","Camareira",null,"Cleaning / Alterations"]
[1718,"Wardrobe/ Make Up/ Hair","Costume Designer","Costume Designer","Costume Designer","Costume Designer","Kostumbildner",null,null,null,"Diseñador de vestuario",null,null,"Costume Designer"]
[1705,"Wardrobe/ Make Up/ Hair","Dressman","Dressman","Dressman","Dressman",null,null,null,null,null,null,"Dressman"]
[1799,"Wardrobe/ Make Up/ Hair","Fringes - Wardrobe/Makeup/Hair","Fringes - Wardrobe/Makeup/Hair","Fringes - Wardrobe/Makeup/Hair","Fringes - Wardrobe/Makeup/Hair",null,null,null,null,"Cargas sociales - vestuario/maquillaje/peinado"]
[1713,"Wardrobe/ Make Up/ Hair","Hair Dresser","Hair Dresser","Hair Dresser","Hair Dresser","Hair Dresser","Hair Dresser","Peluqueria",null,"Estilista / peinado","Cabelereiro","Hair Dresser","Hair Dresser"]
[1714,"Wardrobe/ Make Up/ Hair","Hair Dresser Assistant","Hair Dresser Assistant","Hair Dresser Assistant","Hair Dresser Assistant","Hair Dresser Assistent","Hair Dresser Assistant",null,null,"Ayudante de peinado","Assistente de Cabelereiro","Hair Dresser Assistant","Hair Dresser Assistant"]
[1715,"Wardrobe/ Make Up/ Hair","Kit rental","Kit rental","Kit rental","Kit rental",null,null,null,"Make up/hair costs",null,"Aluguel de Material","Stylist / Costune Designer","Kit Rental"]
[1717,"Wardrobe/ Make Up/ Hair","Main Talent Hair","Main Talent Hair ","Main Talent Hair ","Main Talent Hair ",null,"Main Talent Hair ",null,null,"Estilista talento principal","Cabelereiro de Talento",null,"Main Talent Hair"]
[1712,"Wardrobe/ Make Up/ Hair","Main Talent Make-Up","Main Talent Make-Up ","Main Talent Make-Up ","Main Talent Make-Up ",null,"Main Talent Make-Up ",null,null,"Maquillaje talento principal","Maquiador de Talento",null,"Main Talent Make-Up"]
[1708,"Wardrobe/ Make Up/ Hair","Main Talent Wardrobe","Main Talent Wardrobe ","Main Talent Wardrobe ","Main Talent Wardrobe ",null,"Main Talent Wardrobe ",null,null,"Vestuario talento principal","Figurinista de Talento",null,"Main Talent Wardrobe"]
[1709,"Wardrobe/ Make Up/ Hair","Make-Up Artist","Make-Up Artist","Make-Up Artist","Make-Up Artist","Maskenbildner","Make-Up Artist","Maquilladora","Make Up/ Hair Artist","Maquilladora","Maquiador","Make-Up Artist","Make-Up Artist"]
[1710,"Wardrobe/ Make Up/ Hair","Make-Up Assistant","Make-Up Assistant","Make-Up Assistant","Make-Up Assistant","Make-up-Assistent","Make-Up Assistant","Ayudante de Maquilladora",null,"Ayudante de maquillaje","Assistente de Maquiagem","Make-Up Assistant","Make-Up Assistant"]
[1711,"Wardrobe/ Make Up/ Hair","Make-Up Consumables","Make-up Consumables","Make-Up Consumables","Make-up Consumables","Maske",null,"Material de Maquillaje y Peluqueria",null,"Materiales de maquillaje","Consumíveis de Maquiagem","Hair & Makeup Consumables","Make-up Consumables"]
[1719,"Wardrobe/ Make Up/ Hair","Overtime","Overtime","Overtime","Overtime","Uberstunden",null,null,null,"Sobretiempo"]
[1704,"Wardrobe/ Make Up/ Hair","Seamstress","Seamstress","Seamstress","Seamstress",null,"Seamstress",null,null,"Costurera","Costureira",null,"Seamstress"]
[1706,"Wardrobe/ Make Up/ Hair","Specialist / Protective Clothing","Specialist / Proctective  Clothing","Specialist / Protective  Clothing","Specialist / Proctective  Clothing","Spezialist / Schutzkleidung","Specialist / Protective  Clothing",null,null,"Especialista en ropa protectora",null,"Special Costume Rentals","Specialist / Proctective  Clothing"]
[1703,"Wardrobe/ Make Up/ Hair","Wardrobe assistant","Wardrobe assistant","Wardrobe assistant","Wardrobe assistant","Garderobenassistent","Wardrobe assistant","Ayudante de Estilista",null,"Asistente de vestuario","Assistente de figurino","Costume Designer / Stylist Assistant","Wardrobe assistant"]
[1701,"Wardrobe/ Make Up/ Hair","Wardrobe Purchases / Rentals / Allowances","Wardrobe Purchases / Rentals / Allowances","Wardrobe Purchases / Rentals / Allowances","Wardrobe Purchases / Rentals / Allowances","Kostume","Wardrobe Purchases / Rentals / Allowances","Vestuario alquilado.","Clothes","Alquiler / compra vestuario","Figurino","Costume Supplier","Wardrobe Purchases / Rentals / Allowances"]
[1702,"Wardrobe/ Make Up/ Hair","Wardrobe stylist","Wardrobe stylist","Wardrobe stylist","Wardrobe stylist","Garderobe Stylistin","Wardrobe stylist","Estilista","Stylist","Vestuarista","Figurinista","Costume Designer / Stylist","Wardrobe stylist"]
[1716,"Wardrobe/ Make Up/ Hair","Wigs","Wigs ","Wigs ","Wigs ","Haarteile",null,null,null,"Pelucas","Perucas","Wigs ","Wigs"]
[4701,"Covid-19","Covid Cost","Covid Cost","Covid Cost","Covid Cost","Covid Cost","Covid Cost","Covid Cost","Covid Cost","Covid Cost","Covid Cost","Covid Cost","Covid Cost"]
[4799,"Covid-19","Fringes - Covid","(not applicable for UK)","Fringes - Covid"]
[]
["COA Updated 14-Sept-2020 [Elaine Foster Provided Detail]"]
[{"$f":"\"Budget Assumptions Template Version \" & TEXT(Version_Number,\"0.00\") & \" (\" & TEXT(Version_Date,\"DD-MMM-YYYY\") & \")\"","v":"Budget Assumptions Template Version 5.16 20210621 1900 (21-Jun-2021)"}]

{"sheet":"Lookups","index":5,"n_rows":256,"n_cols":7,"rows_kept":256,"cut":false,"hidden":true,"merged":[]}
[null,"Allowed Units",null,"Useful Stuff for Calculations"]
[null,"Hours",null,"Default Region Column",4]
[null,"Days",null,"Total Budget Items",{"$f":"COUNTA('Budget Detail'!$A:$A)-COUNTA('Budget Detail'!$A$1:$A$4)","v":1}]
[null,"Weeks",null,"Default Currency Rate",{"$f":"IF(ISNA(VLOOKUP(DefaultCurrency,CurrencyTable,3,0)),1,VLOOKUP(DefaultCurrency,CurrencyTable,3,0))","v":1.35944}]
[null,"Months",null,"Version Number","5.16 20210621 1900"]
[null,"Episodes",null,"Version Date","2021-06-21"]
[null,"Fixed"]
[null,"Allow"]
[null,"Flights"]
[null,"Nights"]
[]
[]
[]
[]
[]
[]
[]
[]
[]
[null,null,null,null,null,null,"Country"]
[null,null,null,null,null,null,"Afghanistan"]
[null,null,null,null,null,null,"Albania"]
[null,null,null,null,null,null,"Algeria"]
[null,null,null,null,null,null,"American Samoa"]
[null,null,null,null,null,null,"Andorra"]
[null,null,null,null,null,null,"Angola"]
[null,null,null,null,null,null,"Anguilla"]
[null,null,null,null,null,null,"Antigua & Barbuda"]
[null,null,null,null,null,null,"Aramco"]
[null,null,null,null,null,null,"Argentina"]
[null,null,null,null,null,null,"Armenia"]
[null,null,null,null,null,null,"Aruba"]
[null,null,null,null,null,null,"Australia"]
[null,null,null,null,null,null,"Austria"]
[null,null,null,null,null,null,"Azerbaijan"]
[null,null,null,null,null,null,"Bahamas"]
[null,null,null,null,null,null,"Bahrain"]
[null,null,null,null,null,null,"Bangladesh"]
[null,null,null,null,null,null,"Barbados"]
[null,null,null,null,null,null,"Belarus"]
[null,null,null,null,null,null,"Belgium"]
[null,null,null,null,null,null,"Belize"]
[null,null,null,null,null,null,"Bermuda"]
[null,null,null,null,null,null,"Bhutan"]
[null,null,null,null,null,null,"Bolivia"]
[null,null,null,null,null,null,"Bosnia"]
[null,null,null,null,null,null,"Botswana"]
[null,null,null,null,null,null,"Brazil"]
[null,null,null,null,null,null,"British Virgin Islands"]
[null,null,null,null,null,null,"Brunei"]
[null,null,null,null,null,null,"Bulgaria"]
[null,null,null,null,null,null,"Burkina Faso"]
[null,null,null,null,null,null,"Burundi"]
[null,null,null,null,null,null,"Cambodia"]
[null,null,null,null,null,null,"Cameroon"]
[null,null,null,null,null,null,"Canada"]
[null,null,null,null,null,null,"Cape Verde"]
[null,null,null,null,null,null,"Capodistria"]
[null,null,null,null,null,null,"Cayman Islands"]
[null,null,null,null,null,null,"Central African Republic"]
[null,null,null,null,null,null,"Chad"]
[null,null,null,null,null,null,"Channel Islands"]
[null,null,null,null,null,null,"Chile"]
[null,null,null,null,null,null,"China"]
[null,null,null,null,null,null,"Colombia"]
[null,null,null,null,null,null,"Comoro Islands"]
[null,null,null,null,null,null,"Cook Islands"]
[null,null,null,null,null,null,"Corsica (France)"]
[null,null,null,null,null,null,"Costa Rica"]
[null,null,null,null,null,null,"Croatia"]
[null,null,null,null,null,null,"Cuba"]
[null,null,null,null,null,null,"Cyprus"]
[null,null,null,null,null,null,"Czech Republic"]
[null,null,null,null,null,null,"Democratic Republic of the Congo"]
[null,null,null,null,null,null,"Denmark"]
[null,null,null,null,null,null,"Djibouti"]
[null,null,null,null,null,null,"Dominica"]
[null,null,null,null,null,null,"Dominican Republic"]
[null,null,null,null,null,null,"Ecuador"]
[null,null,null,null,null,null,"Egypt"]
[null,null,null,null,null,null,"Eire"]
[null,null,null,null,null,null,"El Salvador"]
[null,null,null,null,null,null,"Equatorial Guinea"]
[null,null,null,null,null,null,"Eritrea"]
[null,null,null,null,null,null,"Estonia"]
[null,null,null,null,null,null,"Ethiopia"]
[null,null,null,null,null,null,"Faeroe Islands"]
[null,null,null,null,null,null,"Falkland Islands"]
[null,null,null,null,null,null,"Fiji"]
[null,null,null,null,null,null,"Finland"]
[null,null,null,null,null,null,"France"]
[null,null,null,null,null,null,"French Guiana"]
[null,null,null,null,null,null,"French Polynesia"]
[null,null,null,null,null,null,"Gabon"]
[null,null,null,null,null,null,"Gambia"]
[null,null,null,null,null,null,"Georgia"]
[null,null,null,null,null,null,"Germany"]
[null,null,null,null,null,null,"Ghana"]
[null,null,null,null,null,null,"Greece"]
[null,null,null,null,null,null,"Greenland"]
[null,null,null,null,null,null,"Grenada"]
[null,null,null,null,null,null,"Guadeloupe"]
[null,null,null,null,null,null,"Guam"]
[null,null,null,null,null,null,"Guatemala"]
[null,null,null,null,null,null,"Guinea"]
[null,null,null,null,null,null,"Guinea-Bissau"]
[null,null,null,null,null,null,"Guyana"]
[null,null,null,null,null,null,"Haiti"]
[null,null,null,null,null,null,"Herzegovenia"]
[null,null,null,null,null,null,"Honduras"]
[null,null,null,null,null,null,"Hong Kong"]
[null,null,null,null,null,null,"Hungary"]
[null,null,null,null,null,null,"Iceland"]
[null,null,null,null,null,null,"India"]
[null,null,null,null,null,null,"Indonesia"]
[null,null,null,null,null,null,"Iran"]
[null,null,null,null,null,null,"Iraq"]
[null,null,null,null,null,null,"Isle of Man"]
[null,null,null,null,null,null,"Israel"]
[null,null,null,null,null,null,"Italy"]
[null,null,null,null,null,null,"Ivory Coast"]
[null,null,null,null,null,null,"Jamaica"]
[null,null,null,null,null,null,"Japan"]
[null,null,null,null,null,null,"Jordan"]
[null,null,null,null,null,null,"Kazakhstan"]
[null,null,null,null,null,null,"Kenya"]
[null,null,null,null,null,null,"Kiribati Islands"]
[null,null,null,null,null,null,"Kosovo"]
[null,null,null,null,null,null,"Kuwait"]
[null,null,null,null,null,null,"Kyrgyzstan"]
[null,null,null,null,null,null,"Laos"]
[null,null,null,null,null,null,"Latvia"]
[null,null,null,null,null,null,"Lebanon"]
[null,null,null,null,null,null,"Lesotho"]
[null,null,null,null,null,null,"Liberia"]
[null,null,null,null,null,null,"Libya"]
[null,null,null,null,null,null,"Liechtenstein"]
[null,null,null,null,null,null,"Lithuania"]
[null,null,null,null,null,null,"Luxembourg"]
[null,null,null,null,null,null,"Macao"]
[null,null,null,null,null,null,"Macedonia"]
[null,null,null,null,null,null,"Madagascar"]
[null,null,null,null,null,null,"Malawi"]
[null,null,null,null,null,null,"Malaysia"]
[null,null,null,null,null,null,"Maldives"]
[null,null,null,null,null,null,"Mali"]
[null,null,null,null,null,null,"Malta"]
[null,null,null,null,null,null,"Marshall Islands"]
[null,null,null,null,null,null,"Martinique"]
[null,null,null,null,null,null,"Mascarenas Islands"]
[null,null,null,null,null,null,"Mauritania"]
[null,null,null,null,null,null,"Mauritius"]
[null,null,null,null,null,null,"Mayotte (Mahore)"]
[null,null,null,null,null,null,"Mexico"]
[null,null,null,null,null,null,"Micronesia"]
[null,null,null,null,null,null,"Moldova"]
[null,null,null,null,null,null,"Monaco"]
[null,null,null,null,null,null,"Mongolia"]
[null,null,null,null,null,null,"Montserrat"]
[null,null,null,null,null,null,"Morocco"]
[null,null,null,null,null,null,"Mozambique"]
[null,null,null,null,null,null,"Myanmar"]
[null,null,null,null,null,null,"Namibia"]
[null,null,null,null,null,null,"Nauru"]
[null,null,null,null,null,null,"Nepal"]
[null,null,null,null,null,null,"Netherlands Antilles"]
[null,null,null,null,null,null,"New Caledonia"]
[null,null,null,null,null,null,"New Zealand"]
[null,null,null,null,null,null,"Nicaragua"]
[null,null,null,null,null,null,"Niger"]
[null,null,null,null,null,null,"Nigeria"]
[null,null,null,null,null,null,"Niue"]
[null,null,null,null,null,null,"North Korea"]
[null,null,null,null,null,null,"North Mariana Islands"]
[null,null,null,null,null,null,"Northern Ireland"]
[null,null,null,null,null,null,"Norway"]
[null,null,null,null,null,null,"Oman"]
[null,null,null,null,null,null,"Pakistan"]
[null,null,null,null,null,null,"Palau"]
[null,null,null,null,null,null,"Palestine"]
[null,null,null,null,null,null,"Panama"]
[null,null,null,null,null,null,"Papua New Guinea"]
[null,null,null,null,null,null,"Paraguay"]
[null,null,null,null,null,null,"Peru"]
[null,null,null,null,null,null,"Philippines"]
[null,null,null,null,null,null,"Poland"]
[null,null,null,null,null,null,"Portugal"]
[null,null,null,null,null,null,"Puerto Rico"]
[null,null,null,null,null,null,"Qatar"]
[null,null,null,null,null,null,"Republic of Benin"]
[null,null,null,null,null,null,"Republic of the Congo"]
[null,null,null,null,null,null,"Reunion"]
[null,null,null,null,null,null,"Romania"]
[null,null,null,null,null,null,"Russia"]
[null,null,null,null,null,null,"Rwanda"]
[null,null,null,null,null,null,"San Marino"]
[null,null,null,null,null,null,"San Tome &amp; Principe"]
[null,null,null,null,null,null,"Saudi Arabia"]
[null,null,null,null,null,null,"Senegal"]
[null,null,null,null,null,null,"Seychelles"]
[null,null,null,null,null,null,"Seychelles Islands"]
[null,null,null,null,null,null,"Sierra Leone"]
[null,null,null,null,null,null,"Singapore"]
[null,null,null,null,null,null,"Slovakia"]
[null,null,null,null,null,null,"Slovenia"]
[null,null,null,null,null,null,"Solomon Islands"]
[null,null,null,null,null,null,"Somalia"]
[null,null,null,null,null,null,"South Africa"]
[null,null,null,null,null,null,"South Korea"]
[null,null,null,null,null,null,"South Sudan"]
[null,null,null,null,null,null,"South Tyrol"]
[null,null,null,null,null,null,"Spain"]
[null,null,null,null,null,null,"Sri Lanka"]
[null,null,null,null,null,null,"St. Helena"]
[null,null,null,null,null,null,"St. Kitts & Nevis"]
[null,null,null,null,null,null,"St. Lucia"]
[null,null,null,null,null,null,"St. Pierre and Miquelon"]
[null,null,null,null,null,null,"St. Vincent & Grenadines"]
[null,null,null,null,null,null,"Sudan"]
[null,null,null,null,null,null,"Suriname"]
[null,null,null,null,null,null,"Swaziland"]
[null,null,null,null,null,null,"Sweden"]
[null,null,null,null,null,null,"Switzerland"]
[null,null,null,null,null,null,"Syria"]
[null,null,null,null,null,null,"Taiwan"]
[null,null,null,null,null,null,"Tajikistan"]
[null,null,null,null,null,null,"Tanzania"]
[null,null,null,null,null,null,"Thailand"]
[null,null,null,null,null,null,"The Netherlands"]
[null,null,null,null,null,null,"Togo"]
[null,null,null,null,null,null,"Tonga"]
[null,null,null,null,null,null,"Trinidad & Tobago"]
[null,null,null,null,null,null,"Tunisia"]
[null,null,null,null,null,null,"Turkey"]
[null,null,null,null,null,null,"Turkmenistan"]
[null,null,null,null,null,null,"Turks & Caicos Islands"]
[null,null,null,null,null,null,"Tuvalu"]
[null,null,null,null,null,null,"U.S. Virgin Islands"]
[null,null,null,null,null,null,"Uganda"]
[null,null,null,null,null,null,"UK"]
[null,null,null,null,null,null,"Ukraine"]
[null,null,null,null,null,null,"United Arab Emirates"]
[null,null,null,null,null,null,"United States"]
[null,null,null,null,null,null,"Uruguay"]
[null,null,null,null,null,null,"Uzbekistan"]
[null,null,null,null,null,null,"Vanuatu"]
[null,null,null,null,null,null,"Vatican City"]
[null,null,null,null,null,null,"Venezuela"]
[null,null,null,null,null,null,"Vietnam"]
[null,null,null,null,null,null,"Wallis and Futuna Islands"]
[null,null,null,null,null,null,"Western Sahara"]
[null,null,null,null,null,null,"Western Samoa"]
[null,null,null,null,null,null,"Yemen"]
[null,null,null,null,null,null,"Yugoslavia (also known as Serbia and Montenegro)"]
[null,null,null,null,null,null,"Zambia"]
[null,null,null,null,null,null,"Zimbabwe"]